{"text_format":"1","workbook":"xlsx","n_sheets":53,"sheets":["Новини","Змiст","8in1","Animonda","AquaDella","Aquael","Aquarium Ukr","Benty Sandy","Biokats","Brit Care","Brit Fresh","Brit Premium","Brit VetDiets","Buddy Boo","Carnilove","Cats Best","Chipsi","Chris Christensen","Comfy","Crown Royale","Dubex","Edel","Essence","ExoTerra","Flexi","Fop","GimBi","GimCat","GimDog","Half&Half","Kiwi Walker","Living World","Moser","My Family","Nechay ZOO","Pet Fashion","Profine","ProVET","ProVET аква","SaniPet","Savory","SGbox","Special One","Tetra","Trixie","Tropical","True Fresh","Vitakraft","Білі лапки","Природа","Профілайн","Стоп","Загальне замовлення"],"not_rendered":{"charts":0,"images":87,"macros":1,"external_links":0,"defined_names":1,"comments":0,"pivot_tables":0},"unopened":[],"bounds":{"document_bytes":16777216,"sheet_cells":100000,"rows_first":2000,"rows_last":500,"rows_between":2000,"halvings":0,"cell_chars":16384,"cell_head_chars":4096},"cells_cut":0,"cells_raw":0,"read":"whole","date_system":"1900"}

{"sheet":"Новини","index":0,"n_rows":4,"n_cols":7,"rows_kept":4,"cut":false,"hidden":false,"merged":[]}
[]
[null,null,null,null,null,null,"suziria.ua"]
[null,null,null,null,null,null,"0 800 21 82 99"]
[null,null,null,null,null,null,"feedback@suziria.ua"]

{"sheet":"Змiст","index":1,"n_rows":60,"n_cols":7,"rows_kept":60,"cut":false,"hidden":false,"merged":[]}
[]
[null,null,null,null,null,null,"suziria.ua"]
[null,null,null,null,null,null,"0 800 21 82 99"]
[null,null,null,null,null,null,"feedback@suziria.ua"]
[]
[]
[null,null,"ПРАЙС-ЛИСТ для формування замовлення"]
[null,"Зміст"]
["№","Назва сторінки","Посилання на сторінку","Примітки","Запитання"]
[1,"8in1","8in1"]
[2,"Animonda","Animonda"]
[3,"AquaDella","AquaDella"]
[4,"Aquael","Aquael"]
[5,"Aquarium Ukr","Aquarium Ukr"]
[6,"Benty Sandy","Benty Sandy"]
[7,"Biokats","Biokats"]
[8,"Brit Care","Brit Care"]
[9,"Brit Fresh","Brit Fresh"]
[10,"Brit Premium","Brit Premium"]
[11,"Brit VetDiets","Brit VetDiets"]
[12,"Buddy Boo","Buddy Boo"]
[13,"Carnilove","Carnilove"]
[14,"Cats Best","Cats Best"]
[15,"Chipsi","Chipsi"]
[16,"Chris Christensen","Chris Christensen"]
[17,"Comfy","Comfy"]
[18,"Crown Royale","Crown Royale"]
[19,"Dubex","Dubex"]
[20,"Edel","Edel"]
[21,"Essence","Essence"]
[22,"ExoTerra","ExoTerra"]
[23,"Flexi","Flexi"]
[24,"Fop","Fop"]
[25,"GimBi","GimBi"]
[26,"GimCat","GimCat"]
[27,"GimDog","GimDog"]
[28,"Half&Half","Half&Half"]
[29,"Kiwi Walker","Kiwi Walker"]
[30,"Living World","Living World"]
[31,"Moser","Moser"]
[32,"My Family","My Family"]
[33,"Nechay ZOO","Nechay ZOO"]
[34,"Pet Fashion","Pet Fashion"]
[35,"Profine","Profine"]
[36,"ProVET","ProVET"]
[37,"ProVET аква","ProVET аква"]
[38,"SaniPet","SaniPet"]
[39,"Savory","Savory"]
[40,"SGbox","SGbox"]
[41,"Special One","Special One"]
[42,"Tetra","Tetra"]
[43,"Trixie","Trixie"]
[44,"Tropical","Tropical"]
[45,"True Fresh","True Fresh"]
[46,"Vitakraft","Vitakraft"]
[47,"Білі лапки","Білі лапки"]
[48,"Природа","Природа"]
[49,"Профілайн","Профілайн"]
[50,"Стоп","Стоп"]
[51,"Загальне замовлення","Загальне замовлення"]

{"sheet":"8in1","index":2,"n_rows":12,"n_cols":10,"rows_kept":12,"cut":false,"hidden":false,"merged":[]}
[]
[null,null,null,null,null,null,"suziria.ua"]
[null,null,null,null,null,null,"0 800 21 82 99"]
[null,null,null,null,null,null,"feedback@suziria.ua"]
[]
["Зображення","Код","Артикул","Номенклатура","Наявність","Категорія","Ціна опт.","Ціна РРЦ","Замовлення, шт.","Сума, грн."]
[null,null,null,null,null,null,null,null,null,{"$f":"SUM(J8:J12)","v":312.97000000000003}]
[null,1111161986,"680432/ 983121 USA*****","Засіб 8in1 Nature_s Miracle для собак освіжаючий спрей 236 мл","Менше 10","Догляд та гігієна для собак",312.97000000000003,456,1,{"$f":"G8*I8","v":312.97000000000003}]
[null,1111136564,"680493USA","Засіб д/прання 8in1 для усунення плям та запахів NM Laundry BOOst In-W","Більше 10","Засоби для догляду за будинком з собаками",545.4,845,0,{"$f":"G9*I9","v":0}]
[null,1111206130,"680432/ 983121 USA*****","ТЕРМ 06.26 НЕ ТОВ ВИД Засіб 8in1 Nature_s Miracle освіж.спрей 236мл","Менше 10","Догляд та гігієна для собак",156.54,0,0,{"$f":"G10*I10","v":0}]
[null,1111203646,"680284 /5778  USA****","ТЕРМ. 07.25 8in1 NM JFC No Scratch Deter Spray від дряпання 236мл","Менше 10","Корекція поведінки для котів",194.22,0,0,{"$f":"G11*I11","v":0}]
[null,1111196248,"680286 /5780 USA","ТЕРМ.06.25 8in1 NM JFC Calming Spray д/кот заспок спр236мл","Більше 100","Корекція поведінки для котів",211.8,0,0,{"$f":"G12*I12","v":0}]

{"sheet":"Animonda","index":3,"n_rows":10,"n_cols":10,"rows_kept":10,"cut":false,"hidden":false,"merged":[]}
[]
[null,null,null,null,null,null,"suziria.ua"]
[null,null,null,null,null,null,"0 800 21 82 99"]
[null,null,null,null,null,null,"feedback@suziria.ua"]
[]
["Зображення","Код","Артикул","Номенклатура","Наявність","Категорія","Ціна опт.","Ціна РРЦ","Замовлення, шт.","Сума, грн."]
[null,null,null,null,null,null,null,null,null,{"$f":"SUM(J8:J10)","v":0}]
[null,1111171470,"AM-83261","Vom Feinsten Adult with Chicken Salmon filet Spinach кіт курк/лос 100г","Більше 10","Корм вологий для котів",45.96,65,0,{"$f":"G8*I8","v":0}]
[null,1111195997,"AM-83306","ТЕРМ. 04.26, ПОМ_ЯТ. Vom Feinsten Adult with Chicken Seafood кот 100г","Більше 10","Корм вологий для котів",21.66,0,0,{"$f":"G9*I9","v":0}]
[null,1111190207,"AM-83261","ТЕРМ. 11.25 ПОМЯТ Vom Feinsten Adult Chicken Salmon filet Spinach 100г","Більше 10","Корм вологий для котів",21.66,0,0,{"$f":"G10*I10","v":0}]

{"sheet":"AquaDella","index":4,"n_rows":10,"n_cols":10,"rows_kept":10,"cut":false,"hidden":false,"merged":[]}
[]
[null,null,null,null,null,null,"suziria.ua"]
[null,null,null,null,null,null,"0 800 21 82 99"]
[null,null,null,null,null,null,"feedback@suziria.ua"]
[]
["Зображення","Код","Артикул","Номенклатура","Наявність","Категорія","Ціна опт.","Ціна РРЦ","Замовлення, шт.","Сума, грн."]
[null,null,null,null,null,null,null,null,null,{"$f":"SUM(J8:J10)","v":0}]
[null,1111165579,"234/446218*****","Декорація AquaDella для акваріума Корал-Гілка плоска 19х6х21 см","Менше 10","Декорації для акваріума",472.44,937,0,{"$f":"G8*I8","v":0}]
[null,1111166111,"251/110041*****","Декорація AquaDella для акваріума натур корч Мангове Дерево 600-800мм","Менше 10","Декорації для акваріума",1418.07,2707,0,{"$f":"G9*I9","v":0}]
[null,1111165587,"251/110034*****","Декорація AquaDella для акваріума натуральний корч Манго 300-500 мм","Менше 10","Декорації для акваріума",1088.6500000000001,2441,0,{"$f":"G10*I10","v":0}]

{"sheet":"Aquael","index":5,"n_rows":13,"n_cols":10,"rows_kept":13,"cut":false,"hidden":false,"merged":[]}
[]
[null,null,null,null,null,null,"suziria.ua"]
[null,null,null,null,null,null,"0 800 21 82 99"]
[null,null,null,null,null,null,"feedback@suziria.ua"]
[]
["Зображення","Код","Артикул","Номенклатура","Наявність","Категорія","Ціна опт.","Ціна РРЦ","Замовлення, шт.","Сума, грн."]
[null,null,null,null,null,null,null,null,null,{"$f":"SUM(J8:J13)","v":1084.6199999999999}]
[null,1111144307,"114579****","Модуль Aquael освітлювальний Retrofit LED Actinic 16Вт 85-90см","Менше 10","Освітлення для акваріумів",2416.19,3503,0,{"$f":"G8*I8","v":0}]
[null,1111190417,"102369 /3070","НЕ ТРИМ. КОРПУС Фільтр Aquael д/аквар. Fan-2 Plus 450л/год на 100-150л","Менше 10","Фільтри для акваріумів",552.84,0,0,0]
[null,1111192800,"107621 /3067","НЕКОМПЛ. Фільтр Aquael д/акваріума FAN-mikro Plus 250л/год на 30л","Менше 10","Фільтри для акваріумів",339.21,0,0,0]
[null,1111204485,"102369 /3070","ПІСЛЯ РЕМОНТУ Фільтр Aquael внутрішній Fan-2 Plus 450л/год на 100-150л","Менше 10","Фільтри для акваріумів",552.84,0,0,0]
[null,1111192365,"131304/246274","ПОРВ. Ґрунт Aquael для акваріума гравій доломітовий 2-4мм 10кг","Менше 10","Грунти для акваріума",229.92,0,0,0]
[null,1111178550,"129896_ord","Фільтр-скімер Aquael поверхневий SAS FILTER 500","Менше 10","Обладнання для акваріума",1084.6199999999999,1663,1,1084.6199999999999]

{"sheet":"Aquarium Ukr","index":6,"n_rows":8,"n_cols":10,"rows_kept":8,"cut":false,"hidden":false,"merged":[]}
[]
[null,null,null,null,null,null,"suziria.ua"]
[null,null,null,null,null,null,"0 800 21 82 99"]
[null,null,null,null,null,null,"feedback@suziria.ua"]
[]
["Зображення","Код","Артикул","Номенклатура","Наявність","Категорія","Ціна опт.","Ціна РРЦ","Замовлення, шт.","Сума, грн."]
[null,null,null,null,null,null,null,null,null,{"$f":"SUM(J8:J8)","v":0}]
[null,1111192791,"Х009/14851","ВИРОБН. БРАК СКЛА Акваріум круглий 22х26см 9 л","Менше 10","Акваріуми та акваріумні комплекти",414.84,0,0,{"$f":"G8*I8","v":0}]

{"sheet":"Benty Sandy","index":7,"n_rows":8,"n_cols":10,"rows_kept":8,"cut":false,"hidden":false,"merged":[]}
[]
[null,null,null,null,null,null,"suziria.ua"]
[null,null,null,null,null,null,"0 800 21 82 99"]
[null,null,null,null,null,null,"feedback@suziria.ua"]
[]
["Зображення","Код","Артикул","Номенклатура","Наявність","Категорія","Ціна опт.","Ціна РРЦ","Замовлення, шт.","Сума, грн."]
[null,null,null,null,null,null,null,null,null,{"$f":"SUM(J8:J8)","v":303.66000000000003}]
[null,1111169190,"BS5108*****","Наповнювач Benty Sandy для котячого туалету бентоніт 0,60-2,38 мм 5л","Більше 10","Наповнювачі для котячих туалетів",303.66000000000003,395,1,{"$f":"G8*I8","v":303.66000000000003}]

{"sheet":"Biokats","index":8,"n_rows":10,"n_cols":10,"rows_kept":10,"cut":false,"hidden":false,"merged":[]}
[]
[null,null,null,null,null,null,"suziria.ua"]
[null,null,null,null,null,null,"0 800 21 82 99"]
[null,null,null,null,null,null,"feedback@suziria.ua"]
[]
["Зображення","Код","Артикул","Номенклатура","Наявність","Категорія","Ціна опт.","Ціна РРЦ","Замовлення, шт.","Сума, грн."]
[null,null,null,null,null,null,null,null,null,{"$f":"SUM(J8:J10)","v":0}]
[null,1111189255,"G-75.65","ВАГА 4.7 КГ,Наповн.Biokats д/кот/туал. Bianc Fresh бент.0,25/5,0мм 5кг","Менше 10","Наповнювачі для котячих туалетів",214.86,0,0,{"$f":"G8*I8","v":0}]
[null,1111186993,"G-75.65","ПОРВ. Наповнювач Biokats д/кот Bianco Fresh бентонітов 0,25/5,0мм 5кг","Менше 10","Наповнювачі для котячих туалетів",214.86,0,0,{"$f":"G9*I9","v":0}]
[null,1111194894,"G-75.64","ПОРВ. Наповнювач Biokats кот/туал Bianco Fresh бент 0,25/5,0мм 10кг","Менше 10","Наповнювачі для котячих туалетів",378.42,0,0,{"$f":"G10*I10","v":0}]

{"sheet":"Brit Care","index":9,"n_rows":17,"n_cols":10,"rows_kept":17,"cut":false,"hidden":false,"merged":[]}
[]
[null,null,null,null,null,null,"suziria.ua"]
[null,null,null,null,null,null,"0 800 21 82 99"]
[null,null,null,null,null,null,"feedback@suziria.ua"]
[]
["Зображення","Код","Артикул","Номенклатура","Наявність","Категорія","Ціна опт.","Ціна РРЦ","Замовлення, шт.","Сума, грн."]
[null,null,null,null,null,null,null,null,null,{"$f":"SUM(J8:J17)","v":25.38}]
[null,1111188514,172651,"БЕЗ ТЕРМ. Brit Care Hypoallergenic Small Breed соб/мал ягня 7кг","Немає в наявності","Корм сухий для собак",968.28,0,0,{"$f":"G8*I8","v":0}]
[null,1111202581,"111264/1388","ТЕРМ 07.25  Brit Care Cat Snack Shiny Hair лас. шкіра/шерсть лос. 50г","Менше 10","Ласощі для котів",40.5,0,0,0]
[null,1111198728,"171285/0723","ТЕРМ. 05.25.Brit Care Cat Sterilized д/стерліз/котів  курка 7кг","Немає в наявності","Корм сухий для котів",1144.2,0,0,0]
[null,1111198134,"100914/100219/4449","ТЕРМ. 07.25  Brit Care Mini філе соус дор/соб/мал лосось/оселедець 85г","Більше 10","Корм вологий для собак",25.38,0,0,0]
[null,1111199834,"171311/0921","ТЕРМ. 07.25 Brit Care Cat Large Power Vitality кот/вел качк/курка 400г","Більше 10","Корм сухий для котів",90.84,0,0,0]
[null,1111200257,"171299/0839","ТЕРМ. 07.25 Корм сухий Brit Care Cat Grain Free Adult Activity Support","Менше 10","Корм сухий для котів",90.84,0,0,0]
[null,1111199599,"111263/1371","ТЕРМ. 07.25 Функціональні ласощі Brit Care Cat Snack Dental для котів","Менше 10","Ласощі для котів",42.12,0,0,0]
[null,1111202086,"100528/0501","ТЕРМ. 08.25 Brit Care Cat Pouch філе в соусі індичка/лосось 85г","Менше 10","Корм вологий для котів",21.66,0,0,0]
[null,1111200453,"100915/100220/4456","ТЕРМ. 08.25 Brit Care Mini філе в соусі доросл/собак/малих дичина 85г","Більше 10","Корм вологий для собак",25.38,0,1,25.38]
[null,1111201855,"101115/2844","ТЕРМ. 08.25 Care Brit лососева олія вітаміни/соб покр/шерст/шкіра 250г","Менше 10","Вітаміни для собак",312.36,0,0,0]

{"sheet":"Brit Fresh","index":10,"n_rows":9,"n_cols":10,"rows_kept":9,"cut":false,"hidden":false,"merged":[]}
[]
[null,null,null,null,null,null,"suziria.ua"]
[null,null,null,null,null,null,"0 800 21 82 99"]
[null,null,null,null,null,null,"feedback@suziria.ua"]
[]
["Зображення","Код","Артикул","Номенклатура","Наявність","Категорія","Ціна опт.","Ціна РРЦ","Замовлення, шт.","Сума, грн."]
[null,null,null,null,null,null,null,null,null,{"$f":"SUM(J8:J9)","v":0}]
[null,1111186997,200260018,"ПОРВ. Наповнювач Brit Fresh д/котяч/туалету Excellent бентоніт 5кг","Менше 10","Наповнювачі для котячих туалетів",133.62,0,0,{"$f":"G8*I8","v":0}]
[null,1111194192,"170990/0748","ТЕРМ. 05.25 Brit Fresh Chicken/Potato дор/соб/всіх курк/картопл 2,5кг","Менше 10","Корм сухий для собак",326.39999999999998,0,0,{"$f":"G9*I9","v":0}]

{"sheet":"Brit Premium","index":11,"n_rows":22,"n_cols":10,"rows_kept":22,"cut":false,"hidden":false,"merged":[]}
[]
[null,null,null,null,null,null,"suziria.ua"]
[null,null,null,null,null,null,"0 800 21 82 99"]
[null,null,null,null,null,null,"feedback@suziria.ua"]
[]
["Зображення","Код","Артикул","Номенклатура","Наявність","Категорія","Ціна опт.","Ціна РРЦ","Замовлення, шт.","Сума, грн."]
[null,null,null,null,null,null,null,null,null,{"$f":"SUM(J8:J22)","v":0}]
[null,1111200264,"111250/524*****","ТЕРМ 07.25 Brit Premium Cat Chicken Fillets Gravy pouch курка/соус 85г","Менше 10","Корм вологий для котів",15.12,0,0,{"$f":"G8*I8","v":0}]
[null,1111194826,171843,"ТЕРМ. 05.25 Brit Premium Cat by Nature Adult Chicken дор/кот курк 300г","Більше 10","Корм сухий для котів",49.02,0,0,0]
[null,1111194838,171845,"ТЕРМ. 05.25 Brit Premium Cat by Nature Indoor дор/домаш/кот курка 300г","Менше 10","Корм сухий для котів",45.9,0,0,0]
[null,1111196789,171843,"ТЕРМ. 06.25 Brit Premium Cat by Nature Adult Chicken дор/кот курк 300г","Менше 10","Корм сухий для котів",49.02,0,0,0]
[null,1111196201,171844,"ТЕРМ. 06.25 Brit Premium Cat by Nature Adult Salmon лосось 300г","Менше 10","Корм сухий для котів",50.58,0,0,0]
[null,1111196200,171845,"ТЕРМ. 06.25 Brit Premium Cat by Nature Indoor дор/домаш/кот курка 300г","Більше 10","Корм сухий для котів",45.9,0,0,0]
[null,1111196790,171849,"ТЕРМ. 06.25 Корм сухий Brit Premium by Nature Cat Sensitive для котів","Менше 10","Корм сухий для котів",50.58,0,0,0]
[null,1111198796,171849,"ТЕРМ. 07.25 Brit Premium by Nature Cat Sensitive чут/трав ягн 300г","Менше 10","Корм сухий для котів",50.58,0,0,0]
[null,1111199921,"111241/470*****","ТЕРМ. 07.25 Brit Premium Cat Beef Fillets Jelly pouch ялович/желе 85г","Менше 10","Корм вологий для котів",15.12,0,0,0]
[null,1111200268,"170809/6284","ТЕРМ. 07.25 Brit Premium Dog Adult S соб/дрібн вага 1-10кг курка 1кг","Більше 10","Корм сухий для собак",125.04,0,0,0]
[null,1111200101,"111252/548*****","ТЕРМ. 07.25 Корм вологий Brit Premium Cat Tuna Fillets Gravy pouch для","Більше 10","Корм вологий для котів",15.12,0,0,0]
[null,1111200768,"111241/470*****","ТЕРМ. 08.25 Brit Premium Cat Beef Fillets Jelly pouch ялович/желе 85г","Більше 10","Корм вологий для котів",15.12,0,0,0]
[null,1111201287,171843,"ТЕРМ. 08.25 Brit Premium Cat by Nature Adult Chicken дор/кот курк 300г","Більше 10","Корм сухий для котів",49.02,0,0,0]
[null,1111202389,"111243/494*****","ТЕРМ. 08.25 Brit Premium Cat Trout Fillets Jelly pouch форель/желе 85г","Більше 10","Корм вологий для котів",15.12,0,0,0]
[null,1111202943,"170815/6345","ТЕРМ. 08.25 Brit Premium Dog Adult M собак/середніх 10-25кг курка 1кг","Менше 10","Корм сухий для собак",95.22,0,0,0]

{"sheet":"Brit VetDiets","index":12,"n_rows":9,"n_cols":10,"rows_kept":9,"cut":false,"hidden":false,"merged":[]}
[]
[null,null,null,null,null,null,"suziria.ua"]
[null,null,null,null,null,null,"0 800 21 82 99"]
[null,null,null,null,null,null,"feedback@suziria.ua"]
[]
["Зображення","Код","Артикул","Номенклатура","Наявність","Категорія","Ціна опт.","Ціна РРЦ","Замовлення, шт.","Сума, грн."]
[null,null,null,null,null,null,null,null,null,{"$f":"SUM(J8:J9)","v":0}]
[null,1111194047,"170958/528332","ТЕРМ. 05.25 Brit GF VetDiet Cat Renal захворюван/нирок яйце/горох 400г","Менше 10","Корм сухий для котів",105.36,0,0,{"$f":"G8*I8","v":0}]
[null,1111194207,"170970/528530","ТЕРМ. 05.25 Brit VetDiet Cat Diabetes цукров/діабет курка/горох 400г","Менше 10","Корм сухий для котів",97.92,0,0,{"$f":"G9*I9","v":0}]

{"sheet":"Buddy Boo","index":13,"n_rows":114,"n_cols":10,"rows_kept":114,"cut":false,"hidden":false,"merged":[]}
[]
[null,null,null,null,null,null,"suziria.ua"]
[null,null,null,null,null,null,"0 800 21 82 99"]
[null,null,null,null,null,null,"feedback@suziria.ua"]
[]
["Зображення","Код","Артикул","Номенклатура","Наявність","Категорія","Ціна опт.","Ціна РРЦ","Замовлення, шт.","Сума, грн."]
[null,null,null,null,null,null,null,null,null,{"$f":"SUM(J8:J114)","v":0}]
[null,1111183003,"PR243821*****","Accessory Bat S-М for dogs","Більше 10",null,160.86000000000001,0,0,{"$f":"G8*I8","v":0}]
[null,1111183004,"PR243826*****","Accessory Bat XS-XS2  for dogs","Більше 10",null,155.63999999999999,0,0,0]
[null,1111183005,"PR243829*****","Accessory Devil M-L red for dogs","Більше 10",null,184.62,0,0,0]
[null,1111183006,"PR243832*****","Accessory Devil red XS-S for dogs","Більше 10",null,170.94,0,0,0]
[null,1111182995,"PR243822*****","Accessory Spider S-M for dogs","Більше 10",null,162.18,0,0,0]
[null,1111182996,"PR243820*****","Accessory Spider XS-XS2 for dogs","Більше 10",null,150.54,0,0,0]
[null,1111182539,"PR243729*****","Bandana Jack M-L for dogs","Більше 10",null,0,0,0,0]
[null,1111182540,"PR243728*****","Bandana Jack XS-S for dogs","Більше 10",null,0,0,0,0]
[null,1111182207,"PR243668*****","Cardigan Garcia  S","Більше 10",null,0,0,0,0]
[null,1111182206,"PR243669*****","Cardigan Garcia  М","Більше 10",null,0,0,0,0]
[null,1111182209,"PR243666*****","Cardigan Garcia ХS","Більше 10",null,0,0,0,0]
[null,1111182208,"PR243667*****","Cardigan Garcia ХS2","Більше 10",null,0,0,0,0]
[null,1111182550,"PR243718*****","Hat Teddy S for dogs","Менше 10",null,217.68,393,0,0]
[null,1111182549,"PR243719*****","Hat Teddy XS for dogs","Менше 10",null,245.82,443,0,0]
[null,1111182551,"PR243717*****","Hat Teddy М for dogs","Менше 10",null,259.08,467,0,0]
[null,1111182547,"PR243721*****","Hat Valley S for dogs","Менше 10",null,162.30000000000001,293,0,0]
[null,1111182546,"PR243722*****","Hat Valley М for dogs","Менше 10",null,169.68,306,0,0]
[null,1111182548,"PR243720*****","Hat Valley ХS for dogs","Менше 10",null,151.91999999999999,274,0,0]
[null,1111182240,"PR243635*****","Hoodie  Snoody gray S","Більше 10",null,379.56,0,0,0]
[null,1111182241,"PR243634*****","Hoodie  Snoody gray SМ","Більше 10",null,0,0,0,0]
[null,1111182238,"PR243637*****","Hoodie  Snoody gray М","Менше 10",null,0,0,0,0]
[null,1111182239,"PR243636*****","Hoodie  Snoody gray М2","Більше 10",null,0,0,0,0]
[null,1111182236,"PR243639*****","Hoodie  Snoody red S","Менше 10",null,380.46,0,0,0]
[null,1111182237,"PR243638*****","Hoodie  Snoody red SМ","Більше 10",null,0,0,0,0]
[null,1111182234,"PR243641*****","Hoodie  Snoody red М","Менше 10",null,0,0,0,0]
[null,1111182235,"PR243640*****","Hoodie  Snoody red М2","Більше 10",null,0,0,0,0]
[null,1111182187,"PR243688*****","Hoodie girl Home   М","Більше 10",null,0,0,0,0]
[null,1111182189,"PR243686*****","Hoodie girl Home  ХS2","Більше 10",null,0,0,0,0]
[null,1111182193,"PR243682*****","Hoodie Woody  ХS2","Більше 10",null,0,0,0,0]
[null,1111182230,"PR243645*****","Overall  Rain gray L","Більше 10",null,0,0,0,0]
[null,1111182231,"PR243644*****","Overall  Rain gray M","Більше 10",null,465,0,0,0]
[null,1111182232,"PR243643*****","Overall  Rain gray S","Більше 10",null,0,0,0,0]
[null,1111182233,"PR243642*****","Overall  Rain gray XS","Більше 10",null,0,0,0,{"$f":"G40*I40","v":0}]
[null,1111182229,"PR243646*****","Overall  Rain gray ХL","Більше 10",null,0,0,0,0]
[null,1111182225,"PR243650*****","Overall  Rain red L","Більше 10",null,0,0,0,0]
[null,1111182226,"PR243649*****","Overall  Rain red M","Більше 10",null,486.3,0,0,0]
[null,1111182227,"PR243648*****","Overall  Rain red S","Більше 10",null,0,0,0,0]
[null,1111182228,"PR243647*****","Overall  Rain red XS","Більше 10",null,0,0,0,0]
[null,1111182224,"PR243651*****","Overall  Rain red ХL","Більше 10",null,0,0,0,0]
[null,1111182220,"PR243655*****","Overall Cold gray L","Менше 10",null,0,0,0,0]
[null,1111182219,"PR243656*****","Overall Cold gray ХL","Більше 10",null,0,0,0,0]
[null,1111182215,"PR243660*****","Overall Cold red L","Більше 10",null,0,0,0,0]
[null,1111182216,"PR243659*****","Overall Cold red M","Більше 10",null,0,0,0,0]
[null,1111182217,"PR243658*****","Overall Cold red S","Більше 10",null,0,0,0,0]
[null,1111182218,"PR243657*****","Overall Cold red XS","Більше 10",null,0,0,0,0]
[null,1111182214,"PR243661*****","Overall Cold red ХL","Більше 10",null,0,0,0,0]
[null,1111182531,"PR243738*****","Overall girl Cherry L for dogs","Більше 10",null,0,0,0,0]
[null,1111182534,"PR243735*****","Overall girl Cherry S for dogs","Менше 10",null,698.28,1260,0,0]
[null,1111182530,"PR243739*****","Overall girl Cherry XL for dogs","Більше 10",null,0,0,0,0]
[null,1111182532,"PR243737*****","Overall girl Cherry М for dogs","Менше 10",null,841.38,1518,0,0]
[null,1111182541,"PR243727*****","Overall Сharlie L for dogs","Більше 10",null,0,0,0,0]
[null,1111182543,"PR243725*****","Overall Сharlie S for dogs","Більше 10",null,0,0,0,0]
[null,1111182542,"PR243726*****","Overall Сharlie М for dogs","Більше 10",null,0,0,0,0]
[null,1111182545,"PR243723*****","Overall Сharlie ХS for dogs","Більше 10",null,0,0,0,0]
[null,1111182544,"PR243724*****","Overall Сharlie ХS2 for dogs","Більше 10",null,0,0,0,0]
[null,1111182176,"PR243699*****","Raincoat girl Tina  М","Більше 10",null,0,0,0,0]
[null,1111182175,"PR243700*****","Raincoat girl Tina L","Більше 10",null,0,0,0,0]
[null,1111182178,"PR243697*****","Raincoat girl Tina S","Більше 10",null,0,0,0,0]
[null,1111182177,"PR243698*****","Raincoat girl Tina S2","Більше 10",null,0,0,0,0]
[null,1111182174,"PR243701*****","Raincoat girl Tina XL","Більше 10",null,0,0,0,0]
[null,1111182179,"PR243696*****","Raincoat girl Tina ХS","Більше 10",null,0,0,0,0]
[null,1111182181,"PR243694*****","Raincoat Mustang L","Більше 10",null,0,0,0,0]
[null,1111182185,"PR243690*****","Raincoat Mustang S","Більше 10",null,0,0,0,0]
[null,1111182184,"PR243691*****","Raincoat Mustang S2","Більше 10",null,0,0,0,0]
[null,1111182180,"PR243695*****","Raincoat Mustang XL","Більше 10",null,0,0,0,{"$f":"G72*I72","v":0}]
[null,1111182183,"PR243692*****","Raincoat Mustang М","Більше 10",null,0,0,0,0]
[null,1111182182,"PR243693*****","Raincoat Mustang М2","Більше 10",null,0,0,0,0]
[null,1111182186,"PR243689*****","Raincoat Mustang ХS","Більше 10",null,0,0,0,0]
[null,1111182537,"PR243732*****","Sheepskin coat Black S for dogs","Менше 10",null,401.76,725,0,0]
[null,1111182454,"PR243730*****","Sheepskin coat Black ХS for dogs","Менше 10",null,376.56,679,0,0]
[null,1111182538,"PR243731*****","Sheepskin coat Black ХS2 for dogs","Менше 10",null,390.24,704,0,0]
[null,1111184569,"PR243853*****","Suit  girl Alisa M","Більше 10",null,0,0,0,0]
[null,1111184570,"PR243852*****","Suit  girl Alisa S","Більше 10",null,0,0,0,0]
[null,1111184572,"PR243850*****","Suit  girl Alisa XS","Більше 10",null,0,0,0,0]
[null,1111184571,"PR243851*****","Suit  girl Alisa XS2","Більше 10",null,0,0,0,0]
[null,1111182205,"PR243670*****","Sweater  Fur ХS","Більше 10",null,0,0,0,0]
[null,1111182195,"PR243680*****","Sweater  Happy XL","Більше 10",null,0,0,0,0]
[null,1111182212,"PR243663*****","Sweater for cat Tim  S","Більше 10",null,224.34,0,0,0]
[null,1111182211,"PR243664*****","Sweater for cat Tim  М","Більше 10",null,0,0,0,0]
[null,1111182210,"PR243665*****","Sweater for cat Tim L","Більше 10",null,0,0,0,0]
[null,1111182213,"PR243662*****","Sweater for cat Tim ХS","Більше 10",null,0,0,0,0]
[null,1111182203,"PR243672*****","Sweater Fur  S","Більше 10",null,0,0,0,0]
[null,1111182202,"PR243673*****","Sweater Fur  М","Більше 10",null,0,0,0,0]
[null,1111182201,"PR243674*****","Sweater Fur L","Більше 10",null,0,0,0,0]
[null,1111182204,"PR243671*****","Sweater Fur ХS2","Більше 10",null,0,0,0,0]
[null,1111182196,"PR243679*****","Sweater Happy L","Більше 10",null,0,0,0,0]
[null,1111182197,"PR243678*****","Sweater Happy M","Більше 10",null,0,0,0,0]
[null,1111182199,"PR243676*****","Sweater Happy XS2","Більше 10",null,0,0,0,0]
[null,1111182243,"PR243632*****","Vest E.Vest red L","Більше 10",null,0,0,0,0]
[null,1111182245,"PR243630*****","Vest E.Vest red M","Більше 10",null,0,0,0,0]
[null,1111182244,"PR243631*****","Vest E.Vest red M2","Більше 10",null,0,0,0,0]
[null,1111182247,"PR243628*****","Vest E.Vest red S","Більше 10",null,410.94,0,0,0]
[null,1111182246,"PR243629*****","Vest E.Vest red SМ","Більше 10",null,0,0,0,0]
[null,1111182248,"PR243627*****","Vest E.Vest red XS","Більше 10",null,0,0,0,0]
[null,1111182242,"PR243633*****","Vest E.Vest red ХL","Більше 10",null,0,0,0,0]
[null,1111182250,"PR243625*****","Vest E.Vest sea wave L","Більше 10",null,0,0,0,0]
[null,1111182252,"PR243623*****","Vest E.Vest sea wave M","Більше 10",null,0,0,0,{"$f":"G104*I104","v":0}]
[null,1111182251,"PR243624*****","Vest E.Vest sea wave M2","Більше 10",null,0,0,0,0]
[null,1111182254,"PR243621*****","Vest E.Vest sea wave S","Більше 10",null,378.78,0,0,0]
[null,1111182253,"PR243622*****","Vest E.Vest sea wave SМ","Більше 10",null,0,0,0,0]
[null,1111182255,"PR243620*****","Vest E.Vest sea wave XS","Більше 10",null,0,0,0,0]
[null,1111182249,"PR243626*****","Vest E.Vest sea wave ХL","Більше 10",null,0,0,0,0]
[null,1111182257,"PR243618*****","Vest Y.Vest 2.0 3XL-4XL","Більше 10",null,387.48,0,0,0]
[null,1111182256,"PR243619*****","Vest Y.Vest 2.0 5XL-6XL","Більше 10",null,424.8,0,0,0]
[null,1111182259,"PR243616*****","Vest Y.Vest 2.0 M2-ML","Більше 10",null,349.08,0,0,0]
[null,1111182260,"PR243615*****","Vest Y.Vest 2.0 S-SM","Більше 10",null,324.24,0,0,0]
[null,1111182258,"PR243617*****","Vest Y.Vest 2.0 XL-2XL","Більше 10",null,357.96,0,0,0]

{"sheet":"Carnilove","index":14,"n_rows":9,"n_cols":10,"rows_kept":9,"cut":false,"hidden":false,"merged":[]}
[]
[null,null,null,null,null,null,"suziria.ua"]
[null,null,null,null,null,null,"0 800 21 82 99"]
[null,null,null,null,null,null,"feedback@suziria.ua"]
[]
["Зображення","Код","Артикул","Номенклатура","Наявність","Категорія","Ціна опт.","Ціна РРЦ","Замовлення, шт.","Сума, грн."]
[null,null,null,null,null,null,null,null,null,{"$f":"SUM(J8:J9)","v":0}]
[null,1111199946,"150819/8907","08.25,ПОШК.Carnilove Adult Salmon д/собак усіх порід з лососем 12 кг","Немає в наявності","Корм сухий для собак",1771.08,0,0,{"$f":"G8*I8","v":0}]
[null,1111193225,"170871/7533","ТЕРМ. 03.26 ПОРВ. CarniloveFreshCarp and TroutAdult dogs корп/фор1,5кг","Менше 10","Корм сухий для собак",310.2,0,0,{"$f":"G9*I9","v":0}]

{"sheet":"Cats Best","index":15,"n_rows":11,"n_cols":10,"rows_kept":11,"cut":false,"hidden":false,"merged":[]}
[]
[null,null,null,null,null,null,"suziria.ua"]
[null,null,null,null,null,null,"0 800 21 82 99"]
[null,null,null,null,null,null,"feedback@suziria.ua"]
[]
["Зображення","Код","Артикул","Номенклатура","Наявність","Категорія","Ціна опт.","Ціна РРЦ","Замовлення, шт.","Сума, грн."]
[null,null,null,null,null,null,null,null,null,{"$f":"SUM(J8:J11)","v":0}]
[null,1111186990,"JRS300062/0625","ПОРВ. Наповнювач Cat_s Best для домашніх тварин Universal дерев7л/4кг","Менше 10","Наповнювачі для котячих туалетів",161.63999999999999,0,0,{"$f":"G8*I8","v":0}]
[null,1111191231,"JRS319116/1163","ПОРВ. Наповнювач Cat_s Best кот/туалет Original дерев 10 та 2л/5,2кг","Немає в наявності","Наповнювачі для котячих туалетів",347.64,0,0,{"$f":"G9*I9","v":0}]
[null,1111186694,"JRS300088/0885","ПОРВ. Наповнювач Cat’s Best кот/туалет Smart Pellets деревн 10л/5кг","Менше 10","Наповнювачі для котячих туалетів",413.04,0,0,{"$f":"G10*I10","v":0}]
[null,1111186992,"JRS321742/7429","ПОРВ. Наповнювач Cat’s Best котяч.туалет Smart Pellets деревн 20л/10кг","Менше 10","Наповнювачі для котячих туалетів",745.62,0,0,{"$f":"G11*I11","v":0}]

{"sheet":"Chipsi","index":16,"n_rows":9,"n_cols":10,"rows_kept":9,"cut":false,"hidden":false,"merged":[]}
[]
[null,null,null,null,null,null,"suziria.ua"]
[null,null,null,null,null,null,"0 800 21 82 99"]
[null,null,null,null,null,null,"feedback@suziria.ua"]
[]
["Зображення","Код","Артикул","Номенклатура","Наявність","Категорія","Ціна опт.","Ціна РРЦ","Замовлення, шт.","Сума, грн."]
[null,null,null,null,null,null,null,null,null,{"$f":"SUM(J8:J9)","v":0}]
[null,1111192246,"JRS300070/0700","ПОРВ. Наповнювач Chipsi для гризунів Класік гігієнічний тирса 60 л/3,2","Менше 10","Наповнювачі для гризунів",129.30000000000001,0,0,{"$f":"G8*I8","v":0}]
[null,1111187158,"10л/0427","ПОРВ. Наповнювач Chipsi для дрібних тварин Mais кукурудзяний 10л","Менше 10","Наповнювачі для гризунів",222.72,0,0,{"$f":"G9*I9","v":0}]

{"sheet":"Chris Christensen","index":17,"n_rows":26,"n_cols":10,"rows_kept":26,"cut":false,"hidden":false,"merged":[]}
[]
[null,null,null,null,null,null,"suziria.ua"]
[null,null,null,null,null,null,"0 800 21 82 99"]
[null,null,null,null,null,null,"feedback@suziria.ua"]
[]
["Зображення","Код","Артикул","Номенклатура","Наявність","Категорія","Ціна опт.","Ціна РРЦ","Замовлення, шт.","Сума, грн."]
[null,null,null,null,null,null,null,null,null,{"$f":"SUM(J8:J26)","v":0}]
[null,1111158680,"850604/А923*****","Гребінець Chris Christensen для тварин овальний розмір медіум 16","Менше 10","Інструменти для грумінгу",1750.14,2275,0,{"$f":"G8*I8","v":0}]
[null,1111147756,"A620***** СПЕЦЦЕНА","Гребінець іонізуючий (щетина мідь/нейлон) 21,59 см","Менше 10","Інструменти для грумінгу",1371.3,1783,0,0]
[null,1111201648,841056,"Кондиціонер Chris Christensen Ice On Ice д/собак та котів 473мл","Менше 10",null,2016.96,0,0,0]
[null,1111201637,844246,"Кондиціонер Chris Christensen Precious Drop д/собак та котів 473мл","Менше 10",null,1221.96,0,0,0]
[null,1111126648,"844801/054 /03-202*****","Спрей Chris Christensen Show Off для очищення 473мл","Менше 10","Косметика для тварин",1131.18,1471,0,0]
[null,1111193746,841457,"ТЕРМ. 05.25 Шампунь для котів Topcat Volumising Shampoo 473ml","Менше 10",null,347.1,0,0,0]
[null,1111192436,"841032/057 /03-227","ТЕРМ. 05.26, ОСАД, ДЕФОРМ. Шампунь Chris Christensen Day to Day 473мл","Менше 10","Косметика для тварин",321.48,0,0,0]
[null,1111192437,"841032/057 /03-227","ТЕРМ. 08.26, ОСАД, ДЕФОРМ. Шампунь Chris Christensen Day to Day 473мл","Більше 10","Косметика для тварин",321.48,0,0,0]
[null,1111206455,844819,"ТЕРМ. 11.25 Спрей Chris Christensen Super Hold д/собак та котів 295мл","Менше 10",null,451.86,0,0,0]
[null,1111192435,"841032/057 /03-227","ТЕРМ. 12.25, ОСАД, ДЕФОРМ. Шампунь Chris Christensen Day to Day 473мл","Більше 10","Косметика для тварин",321.48,0,0,0]
[null,1111126633,"841032/057 /03-227","Шампунь Chris Christensen Day to Day д/собак/котів догляд/шерсть 473мл","Менше 10","Косметика для тварин",642.95000000000005,1299,0,0]
[null,1111202270,849050,"Шампунь Chris Christensen Happy Eyes Tearless д/собак та котів 473мл","Менше 10",null,747.9,0,0,0]
[null,1111201638,841442,"Шампунь Chris Christensen Smartwash50 Hydrating д/собак та котів 3,8л","Менше 10",null,2198.4,0,0,0]
[null,1111191957,841564,"Шампунь Chris Christensen SmartWash50 Hypo-Allergenic Shampoo 473ml","Менше 10",null,1356.24,1763,0,0]
[null,1111132718,"841036/070/ Скл.071","Шампунь Chris Christensen Spectrum Ten д/собак/котів д/шовк/шерс 473мл","Менше 10","Косметика для тварин",1300.1400000000001,1690,0,0]
[null,1111126634,841030,"Шампунь Clean Start суперочищуючий 473 мл","Менше 10","Косметика для тварин",642.95000000000005,1299,0,0]
[null,1111184463,841557,"Шампунь д/соб Chris Christensen Whitening and Brightening  473ml","Менше 10","Косметика для тварин",1335.84,1737,0,0]
[null,1111184464,844877,"Шампунь для собак Chris Christensen Ice On Ice 473ml","Менше 10","Косметика для тварин",1300.1400000000001,1690,0,0]
[null,1111184462,841496,"Шампунь для собак Chris Christensen Smartwash50 De-Shed  473ml","Менше 10","Косметика для тварин",1335.84,1737,0,0]

{"sheet":"Comfy","index":18,"n_rows":13,"n_cols":10,"rows_kept":13,"cut":false,"hidden":false,"merged":[]}
[]
[null,null,null,null,null,null,"suziria.ua"]
[null,null,null,null,null,null,"0 800 21 82 99"]
[null,null,null,null,null,null,"feedback@suziria.ua"]
[]
["Зображення","Код","Артикул","Номенклатура","Наявність","Категорія","Ціна опт.","Ціна РРЦ","Замовлення, шт.","Сума, грн."]
[null,null,null,null,null,null,null,null,null,{"$f":"SUM(J8:J13)","v":0}]
[null,1111153614,"121634*****","Іграшка Create and Play кулька з отвором зелена (35шт./уп.)","Менше 10","Іграшки для собак",573.24,1727,0,{"$f":"G8*I8","v":0}]
[null,1111153615,"121635*****","Іграшка Create and Play кулька з отвором оранж. (35шт./уп.)","Менше 10","Іграшки для собак",573.24,1727,0,0]
[null,1111153613,"121633*****","Іграшка Create and Play кулька з отвором рожева (35шт./уп.)","Менше 10","Іграшки для собак",573.24,1727,0,0]
[null,1111153619,"121639*****","Іграшка Create and Play мотузка COMFY (30шт./упак.)","Менше 10","Іграшки для собак",854.94,1154,0,0]
[null,1111151873,"121697*****","Іграшка Create and Play набір гачків метал COMFY","Менше 10","Іграшки для собак",288.3,865,0,0]
[null,1111153617,"121637*****","Іграшка Create and Play товсте кільце оранжеве (30шт/упак.)","Менше 10","Іграшки для собак",155.82,0,0,0]

{"sheet":"Crown Royale","index":19,"n_rows":10,"n_cols":10,"rows_kept":10,"cut":false,"hidden":false,"merged":[]}
[]
[null,null,null,null,null,null,"suziria.ua"]
[null,null,null,null,null,null,"0 800 21 82 99"]
[null,null,null,null,null,null,"feedback@suziria.ua"]
[]
["Зображення","Код","Артикул","Номенклатура","Наявність","Категорія","Ціна опт.","Ціна РРЦ","Замовлення, шт.","Сума, грн."]
[null,null,null,null,null,null,null,null,null,{"$f":"SUM(J8:J10)","v":0}]
[null,1111127498,1712,"Спрей д/розчісуван. CR Magic Touch #1 тонкої/шовковист.","Менше 10","Косметика для тварин",1088.04,1632,0,{"$f":"G8*I8","v":0}]
[null,1111127500,1720,"Спрей д/розчісуван. CR Magic Touch #3 густої/жорсткої шерсті 473 мл","Менше 10","Косметика для тварин",1095.5999999999999,1424,0,{"$f":"G9*I9","v":0}]
[null,1111130511,"CR02410","Спрей для розчісування CR Ultimate Detangling 237 мл","Менше 10","Косметика для тварин",1719.96,2236,0,{"$f":"G10*I10","v":0}]

{"sheet":"Dubex","index":20,"n_rows":11,"n_cols":10,"rows_kept":11,"cut":false,"hidden":false,"merged":[]}
[]
[null,null,null,null,null,null,"suziria.ua"]
[null,null,null,null,null,null,"0 800 21 82 99"]
[null,null,null,null,null,null,"feedback@suziria.ua"]
[]
["Зображення","Код","Артикул","Номенклатура","Наявність","Категорія","Ціна опт.","Ціна РРЦ","Замовлення, шт.","Сума, грн."]
[null,null,null,null,null,null,null,null,null,{"$f":"SUM(J8:J11)","v":0}]
[null,1111168658,"VR05*****","Лежак  для собак антиалергенний Simit Series плюшевий жовтий 52*9см","Менше 10","Спальні місця для собак",665.79,900,0,{"$f":"G8*I8","v":0}]
[null,1111168656,"VR02*****","Лежак для собак антиалергенний Simit Series плюш темно-малинов. 52х9см","Менше 10","Спальні місця для собак",665.79,900,0,{"$f":"G9*I9","v":0}]
[null,1111168657,"VR04*****","Лежак для собак антиалергенний Simit Series плюшевий блакитний 52*9см","Менше 10","Спальні місця для собак",665.79,900,0,{"$f":"G10*I10","v":0}]
[null,1111168659,"VR04_2*****","Матрас для собак водовідштов. ортопедичний темно-персиковий  80*62*8см","Менше 10","Спальні місця для собак",852.9,1151,0,{"$f":"G11*I11","v":0}]

{"sheet":"Edel","index":21,"n_rows":9,"n_cols":10,"rows_kept":9,"cut":false,"hidden":false,"merged":[]}
[]
[null,null,null,null,null,null,"suziria.ua"]
[null,null,null,null,null,null,"0 800 21 82 99"]
[null,null,null,null,null,null,"feedback@suziria.ua"]
[]
["Зображення","Код","Артикул","Номенклатура","Наявність","Категорія","Ціна опт.","Ціна РРЦ","Замовлення, шт.","Сума, грн."]
[null,null,null,null,null,null,null,null,null,{"$f":"SUM(J8:J9)","v":0}]
[null,1111200027,"1000321/173053*****","ТЕРМ. 07.25 Edel Cat консерви для котів з лососем та фореллю 400г","Більше 100","Корм вологий для котів",40.98,0,0,{"$f":"G8*I8","v":0}]
[null,1111199425,"1000332/177020*****","ТЕРМ.07.25,Edel Cat консерви для собак з індичкою і печінкою 400 г","Більше 10","Корм вологий для собак",40.98,0,0,{"$f":"G9*I9","v":0}]

{"sheet":"Essence","index":22,"n_rows":8,"n_cols":10,"rows_kept":8,"cut":false,"hidden":false,"merged":[]}
[]
[null,null,null,null,null,null,"suziria.ua"]
[null,null,null,null,null,null,"0 800 21 82 99"]
[null,null,null,null,null,null,"feedback@suziria.ua"]
[]
["Зображення","Код","Артикул","Номенклатура","Наявність","Категорія","Ціна опт.","Ціна РРЦ","Замовлення, шт.","Сума, грн."]
[null,null,null,null,null,null,null,null,null,{"$f":"SUM(J8:J8)","v":0}]
[null,1111193782,"20321*****","ТЕРМ. 05.25 Вологий корм Essence для дорослих собак з куркою 200г","Більше 10","Корм вологий для собак",16.02,0,0,{"$f":"G8*I8","v":0}]

{"sheet":"ExoTerra","index":23,"n_rows":8,"n_cols":10,"rows_kept":8,"cut":false,"hidden":false,"merged":[]}
[]
[null,null,null,null,null,null,"suziria.ua"]
[null,null,null,null,null,null,"0 800 21 82 99"]
[null,null,null,null,null,null,"feedback@suziria.ua"]
[]
["Зображення","Код","Артикул","Номенклатура","Наявність","Категорія","Ціна опт.","Ціна РРЦ","Замовлення, шт.","Сума, грн."]
[null,null,null,null,null,null,null,null,null,{"$f":"SUM(J8:J8)","v":0}]
[null,1111198276,"PT2775","ПОШК ПАК Субстрат ExoTerra/тер тв Coco Husk 7л","Менше 10","Наповнювачі та субстрати для тераріума",67.86,0,0,{"$f":"G8*I8","v":0}]

{"sheet":"Flexi","index":24,"n_rows":8,"n_cols":10,"rows_kept":8,"cut":false,"hidden":false,"merged":[]}
[]
[null,null,null,null,null,null,"suziria.ua"]
[null,null,null,null,null,null,"0 800 21 82 99"]
[null,null,null,null,null,null,"feedback@suziria.ua"]
[]
["Зображення","Код","Артикул","Номенклатура","Наявність","Категорія","Ціна опт.","Ціна РРЦ","Замовлення, шт.","Сума, грн."]
[null,null,null,null,null,null,null,null,null,{"$f":"SUM(J8:J8)","v":0}]
[null,1111187573,"11831 BLACK Flexi","НЕ ТРИМ. КНОП.рулетка Flexi д/соб New Classic стрічка чорна S 5м/ 15кг","Менше 10","Амуніція для собак",290.62,0,0,{"$f":"G8*I8","v":0}]

{"sheet":"Fop","index":25,"n_rows":10,"n_cols":10,"rows_kept":10,"cut":false,"hidden":false,"merged":[]}
[]
[null,null,null,null,null,null,"suziria.ua"]
[null,null,null,null,null,null,"0 800 21 82 99"]
[null,null,null,null,null,null,"feedback@suziria.ua"]
[]
["Зображення","Код","Артикул","Номенклатура","Наявність","Категорія","Ціна опт.","Ціна РРЦ","Замовлення, шт.","Сума, грн."]
[null,null,null,null,null,null,null,null,null,{"$f":"SUM(J8:J10)","v":0}]
[null,1111187099,10720011,"НЕКОМПЛЕКТ Клітка Fop Lara Big Fun для птахів 40х27х51см","Менше 10","Обладнання для птахів",1107.99,0,0,{"$f":"G8*I8","v":0}]
[null,1111204105,10710011,"ПОДРЯПИНИ, ПОШК. УП. Клітка Fop Anita Big Fun д/птахів 53х32х67см","Менше 10","Обладнання для птахів",1749.06,0,0,{"$f":"G9*I9","v":0}]
[null,1111187098,10720011,"ТРІЩИНА Клітка Fop Lara Big Fun для птахів 40х27х51см","Менше 10","Обладнання для птахів",1107.99,0,0,{"$f":"G10*I10","v":0}]

{"sheet":"GimBi","index":26,"n_rows":13,"n_cols":10,"rows_kept":13,"cut":false,"hidden":false,"merged":[]}
[]
[null,null,null,null,null,null,"suziria.ua"]
[null,null,null,null,null,null,"0 800 21 82 99"]
[null,null,null,null,null,null,"feedback@suziria.ua"]
[]
["Зображення","Код","Артикул","Номенклатура","Наявність","Категорія","Ціна опт.","Ціна РРЦ","Замовлення, шт.","Сума, грн."]
[null,null,null,null,null,null,null,null,null,{"$f":"SUM(J8:J13)","v":0}]
[null,1111199605,"G-205069","БЕЗ ТЕРМ. Сіно для гризунів 1 кг","Менше 10","Корм для гризунів",70.739999999999995,0,0,{"$f":"G8*I8","v":0}]
[null,1111192644,"G-205151","ТЕРМ 02.26 НЕ ТОВ ВИД  Сіно GimBi для гризунів з тімофіївкою 500г","Менше 10","Корм для гризунів",113.61,0,0,0]
[null,1111188898,"G-205069","ТЕРМ. 01.26, ПОРВ. Сено для грызунов 1кг GimBi","Менше 10","Корм для гризунів",74.28,0,0,0]
[null,1111188852,"G-205069","ТЕРМ. 02.26, ПОРВ. Сено для грызунов 1кг GimBi","Більше 10","Корм для гризунів",74.28,0,0,0]
[null,1111201610,"G-205069","ТЕРМ. 12.25, НЕ ТОВ. ВИГЛ. Сіно для гризунів 1 кг","Менше 10","Корм для гризунів",70.739999999999995,0,0,0]
[null,1111188878,"G-205069","ТЕРМ. 12.25, ПОРВ. Сено для грызунов 1кг GimBi","Більше 10","Корм для гризунів",70.739999999999995,0,0,0]

{"sheet":"GimCat","index":27,"n_rows":12,"n_cols":10,"rows_kept":12,"cut":false,"hidden":false,"merged":[]}
[]
[null,null,null,null,null,null,"suziria.ua"]
[null,null,null,null,null,null,"0 800 21 82 99"]
[null,null,null,null,null,null,"feedback@suziria.ua"]
[]
["Зображення","Код","Артикул","Номенклатура","Наявність","Категорія","Ціна опт.","Ціна РРЦ","Замовлення, шт.","Сума, грн."]
[null,null,null,null,null,null,null,null,null,{"$f":"SUM(J8:J12)","v":0}]
[null,1111200537,"G-401423/421629","Вітаміни GimCat Every Day мультивітамінна паста для котів 50г","Більше 10","Вітаміни для котів",105.6,0,0,{"$f":"G8*I8","v":0}]
[null,1111191369,"G-80701","НЕ ТРИМ. ПІР_Я Іграшка GimCat паличка з пір_ям/спіральками 62см","Менше 10","Іграшки для котів",96,0,0,{"$f":"G9*I9","v":0}]
[null,1111196065,"G-409139/419060","ТЕРМ 06.25 Вітам. GimCat Katzentabs таб. д/кот. алгобіотин 710шт/425г","Більше 100","Вітаміни для котів",369.12,0,0,{"$f":"G10*I10","v":0}]
[null,1111200539,"G-421636/401881","ТЕРМ. 08.25 Вітаміни GimCat Every Day мультивітам/паста д/котів 200г","Менше 10","Вітаміни для котів",257.39999999999998,0,0,{"$f":"G11*I11","v":0}]
[null,1111198050,"G-427041","ТЕРМ.11.25ПОШК.ПАК Вітаміни GimCat Expert Lineд/кот пас нир/сеч/шл50г","Менше 10","Вітаміни для котів",149.52000000000001,0,0,{"$f":"G12*I12","v":0}]

{"sheet":"GimDog","index":28,"n_rows":26,"n_cols":10,"rows_kept":26,"cut":false,"hidden":false,"merged":[]}
[]
[null,null,null,null,null,null,"suziria.ua"]
[null,null,null,null,null,null,"0 800 21 82 99"]
[null,null,null,null,null,null,"feedback@suziria.ua"]
[]
["Зображення","Код","Артикул","Номенклатура","Наявність","Категорія","Ціна опт.","Ціна РРЦ","Замовлення, шт.","Сума, грн."]
[null,null,null,null,null,null,null,null,null,{"$f":"SUM(J8:J26)","v":0}]
[null,1111191976,"80203505114*****","Нашийник GimDog для соб O-RING рожевий 2,0х35-51 см арт 80203505114","Менше 10",null,330.54,430,0,{"$f":"G8*I8","v":0}]
[null,1111193733,80302505111,"Нашийник GimDog для собак червоний сітка 2,5x35-51 см","Більше 10","Амуніція для собак",468.12,609,0,0]
[null,1111191981,80303206611,"Нашийник GimDog для собак червоний сітка 3,2х42-66 см арт 80303206611","Менше 10",null,573.17999999999995,745,0,0]
[null,1111163514,80312012016,"Повідець GimDog для собак Alfresco жовтий неопрен/фліс 120см/20мм","Менше 10","Амуніція для собак",706.62,919,0,0]
[null,1111191985,80361315013,"Повідок GimDog CLICK and LOCK чорний 13 ммх150 см арт 80361315013","Більше 10",null,1113.9000000000001,1448,0,0]
[null,1111191980,80241512014,"Повідок GimDog для собак рожевий 1,5х120 см арт 80241512014","Більше 10",null,431.82,561,0,0]
[null,1111191978,80241512012,"Повідок GimDog для собак синій 1,5х120 см арт 80241512012","Більше 10",null,431.82,561,0,0]
[null,1111191982,80312012011,"Повідок GimDog для собак сітка 2,0х120 см арт 80312012011","Більше 10",null,815.82,1061,0,0]
[null,1111193734,80312512011,"Повідок GimDog для собак червоний сітка 2,0х120 см","Менше 10","Амуніція для собак",897.96,1167,0,0]
[null,1111191979,80241512013,"Повідок GimDog для собак чорний 1,5х120 см арт 80241512013","Більше 10",null,431.82,561,0,0]
[null,1111187801,"G-80784","ПОРВ Іграшка GimDog Dent Plus для собак мотузка/кільце гума 15см","Менше 10","Іграшки для собак",109.26,0,0,0]
[null,1111163539,"080321505516*****","Шлея Alfresco Y неопрен 1.5*42 45-55см жовта","Менше 10","Амуніція для собак",620.22,931,0,0]
[null,1111163541,"080322007016*****","Шлея Alfresco Y неопрен 2.0*55 58-70см жовта","Менше 10","Амуніція для собак",715.1,1073,0,0]
[null,1111163543,"080322509016*****","Шлея Alfresco Y неопрен 2.5*70 72-90см жовта","Менше 10","Амуніція для собак",857.29,1286,0,0]
[null,1111163545,"080323210019*****","Шлея Alfresco Y неопрен 3.2*75 80-100см помаранчева","Менше 10","Амуніція для собак",906.18,1360,0,0]
[null,1111163540,80321505519,"Шлея GimDog для собак Alfresco Y помаранчева неопрен 45-55см/15мм","Менше 10","Амуніція для собак",827.46,1076,0,0]
[null,1111163542,80322007019,"Шлея GimDog для собак Alfresco Y помаранчева неопрен 58-70см/20мм","Менше 10","Амуніція для собак",953.22,1239,0,0]
[null,1111163551,80333704016,"Шлея GimDog для собак Alfresco жовта неопрен розмір S 37-40см","Більше 10","Амуніція для собак",757.92,986,0,0]
[null,1111171260,80261505513,"Шлея GimDog для собак Harlem H чорна нейлон 40-55см/15мм","Більше 10","Амуніція для собак",546.12,710,0,0]

{"sheet":"Half&Half","index":29,"n_rows":15,"n_cols":10,"rows_kept":15,"cut":false,"hidden":false,"merged":[]}
[]
[null,null,null,null,null,null,"suziria.ua"]
[null,null,null,null,null,null,"0 800 21 82 99"]
[null,null,null,null,null,null,"feedback@suziria.ua"]
[]
["Зображення","Код","Артикул","Номенклатура","Наявність","Категорія","Ціна опт.","Ціна РРЦ","Замовлення, шт.","Сума, грн."]
[null,null,null,null,null,null,null,null,null,{"$f":"SUM(J8:J15)","v":0}]
[null,1111194400,20956,"ТЕРМ. 05.25 HalfHalf д/дорослих котів із яловичиною 300г","Менше 10","Корм сухий для котів",29.58,0,0,{"$f":"G8*I8","v":0}]
[null,1111194716,20949,"ТЕРМ. 05.25 HalfHalf д/котів із чутливим травленям з індичкою 300г","Більше 10","Корм сухий для котів",32.520000000000003,0,0,0]
[null,1111194275,20802,"ТЕРМ. 05.25 Корм сухий HalfHalf д/стерилізованих котів яловичина 2кг","Більше 10","Корм сухий для котів",161.82,0,0,0]
[null,1111194088,20932,"ТЕРМ. 05.25 Корм сухий HalfHalf д/стерилізованих/котів яловичина 300г","Більше 100","Корм сухий для котів",29.58,0,0,0]
[null,1111194087,20925,"ТЕРМ. 05.25 Корм сухий HalfHalf для кошенят з яловичиною 300г","Більше 100","Корм сухий для котів",25.56,0,0,0]
[null,1111194304,20932,"ТЕРМ. 05.25, ПОРВ. HalfHalf д/стерил котів із яловичиною 300 г","Менше 10","Корм сухий для котів",29.58,0,0,0]
[null,1111194396,"HH_045350","ТЕРМ.05.25.АКЦІЯ HalfHalf д/котів індич 300 г+Ласощі з індич 5г","Більше 100","Корм сухий для котів",32.520000000000003,0,0,0]
[null,1111194401,"HH_045343","ТЕРМ.05.25АКЦІЯ HalfHalf д/котів із ялович 300г+Ласощі д/котів з кач5г","Більше 10","Корм сухий для котів",29.58,0,0,0]

{"sheet":"Kiwi Walker","index":30,"n_rows":8,"n_cols":10,"rows_kept":8,"cut":false,"hidden":false,"merged":[]}
[]
[null,null,null,null,null,null,"suziria.ua"]
[null,null,null,null,null,null,"0 800 21 82 99"]
[null,null,null,null,null,null,"feedback@suziria.ua"]
[]
["Зображення","Код","Артикул","Номенклатура","Наявність","Категорія","Ціна опт.","Ціна РРЦ","Замовлення, шт.","Сума, грн."]
[null,null,null,null,null,null,null,null,null,{"$f":"SUM(J8:J8)","v":0}]
[null,1111187453,"LTX-002","НЕТОВ. В. Іграшка Kiwi Walker для собак Птах Ківі зелений 15,5 см","Менше 10","Іграшки для собак",214.12,0,0,{"$f":"G8*I8","v":0}]

{"sheet":"Living World","index":31,"n_rows":9,"n_cols":10,"rows_kept":9,"cut":false,"hidden":false,"merged":[]}
[]
[null,null,null,null,null,null,"suziria.ua"]
[null,null,null,null,null,null,"0 800 21 82 99"]
[null,null,null,null,null,null,"feedback@suziria.ua"]
[]
["Зображення","Код","Артикул","Номенклатура","Наявність","Категорія","Ціна опт.","Ціна РРЦ","Замовлення, шт.","Сума, грн."]
[null,null,null,null,null,null,null,null,null,{"$f":"SUM(J8:J9)","v":0}]
[null,1111122856,"80905*****","Жердинка LivingWorld Pedi-Perch для птахів цемент 16 см","Менше 10","Обладнання для птахів",279.77999999999997,423,0,{"$f":"G8*I8","v":0}]
[null,1111122857,"80910*****","Жердинка LivingWorld Pedi-Perch для птахів цемент 20,5 см","Менше 10","Обладнання для птахів",342.36,510,0,{"$f":"G9*I9","v":0}]

{"sheet":"Moser","index":32,"n_rows":9,"n_cols":10,"rows_kept":9,"cut":false,"hidden":false,"merged":[]}
[]
[null,null,null,null,null,null,"suziria.ua"]
[null,null,null,null,null,null,"0 800 21 82 99"]
[null,null,null,null,null,null,"feedback@suziria.ua"]
[]
["Зображення","Код","Артикул","Номенклатура","Наявність","Категорія","Ціна опт.","Ціна РРЦ","Замовлення, шт.","Сума, грн."]
[null,null,null,null,null,null,null,null,null,{"$f":"SUM(J8:J9)","v":0}]
[null,1111145791,"1245-7060СПЕЦЦЕНА*****","Motor compl. 230V","Менше 10","Інструменти для грумінгу",1145.8800000000001,1375,0,{"$f":"G8*I8","v":0}]
[null,1111150149,"1250-7050СПЕЦЦЕНА *****","Блок живлення д/машинки MOSER MAX 50 (1250-0050 (052))","Менше 10","Машинки та аксесуари",996.73,1196,0,{"$f":"G9*I9","v":0}]

{"sheet":"My Family","index":33,"n_rows":15,"n_cols":10,"rows_kept":15,"cut":false,"hidden":false,"merged":[]}
[]
[null,null,null,null,null,null,"suziria.ua"]
[null,null,null,null,null,null,"0 800 21 82 99"]
[null,null,null,null,null,null,"feedback@suziria.ua"]
[]
["Зображення","Код","Артикул","Номенклатура","Наявність","Категорія","Ціна опт.","Ціна РРЦ","Замовлення, шт.","Сума, грн."]
[null,null,null,null,null,null,null,null,null,{"$f":"SUM(J8:J15)","v":0}]
[null,1111137141,"MFK00*****СПЕЦЦЕНА","MyFamily брелок","Більше 10","Амуніція для собак",19.690000000000001,25,0,{"$f":"G8*I8","v":0}]
[null,1111152248,"MFXL07_ordСПЕЦЦЕНА","Кісточка XL блакитна","Менше 10","Амуніція для собак",91.74,226,0,0]
[null,1111145532,"MFXL02_ordСПЕЦЦЕНА","Кісточка XL, червона","Менше 10","Амуніція для собак",70.86,212,0,0]
[null,1111137162,"MFB38_ordСПЕЦЦЕНА","Кісточка велика, зелена","Менше 10","Амуніція для собак",63.3,156,0,0]
[null,1111137174,"MFB07_ord","Кісточка велика, золото","Менше 10","Амуніція для собак",309.36,418,0,0]
[null,1111156480,"Z010_ord","Медальйон для собак Коала WILD","Менше 10","Амуніція для собак",325.62,440,0,0]
[null,1111156492,"Z022_ord","Медальйон для собак Риба-клоун WILD","Менше 10","Амуніція для собак",325.62,440,0,0]
[null,1111156486,"Z016_ord","Медальйон для собак Тукан WILD","Менше 10","Амуніція для собак",379.68,512,0,0]

{"sheet":"Nechay ZOO","index":34,"n_rows":9,"n_cols":10,"rows_kept":9,"cut":false,"hidden":false,"merged":[]}
[]
[null,null,null,null,null,null,"suziria.ua"]
[null,null,null,null,null,null,"0 800 21 82 99"]
[null,null,null,null,null,null,"feedback@suziria.ua"]
[]
["Зображення","Код","Артикул","Номенклатура","Наявність","Категорія","Ціна опт.","Ціна РРЦ","Замовлення, шт.","Сума, грн."]
[null,null,null,null,null,null,null,null,null,{"$f":"SUM(J8:J9)","v":0}]
[null,1111191908,"Nechay009360","ПОРВ. Ґрунт Nechay Zoo для акваріума чорно-білий дрібний 2-5 мм 10 кг","Немає в наявності","Грунти для акваріума",111.3,0,0,{"$f":"G8*I8","v":0}]
[null,1111197713,"Nechay029375*****","ПОРВ. Грунт аквар. 10 кг. черн/роз. мелкий (2-5 мм)","Немає в наявності","Грунти для акваріума",87.18,0,0,{"$f":"G9*I9","v":0}]

{"sheet":"Pet Fashion","index":35,"n_rows":29,"n_cols":10,"rows_kept":29,"cut":false,"hidden":false,"merged":[]}
[]
[null,null,null,null,null,null,"suziria.ua"]
[null,null,null,null,null,null,"0 800 21 82 99"]
[null,null,null,null,null,null,"feedback@suziria.ua"]
[]
["Зображення","Код","Артикул","Номенклатура","Наявність","Категорія","Ціна опт.","Ціна РРЦ","Замовлення, шт.","Сума, грн."]
[null,null,null,null,null,null,null,null,null,{"$f":"SUM(J8:J29)","v":0}]
[null,1111182527,"PR243742*****","Vest Grass S for dogs","Більше 10",null,0,0,0,{"$f":"G8*I8","v":0}]
[null,1111182529,"PR243740*****","Vest Grass XS for dogs","Більше 10",null,0,0,0,0]
[null,1111182528,"PR243741*****","Vest Grass XS2 for dogs","Більше 10",null,0,0,0,0]
[null,1111182526,"PR243743*****","Vest Grass М for dogs","Більше 10",null,0,0,0,0]
[null,1111206324,"PR243780*****","БЕЗ 1 КНОП. БЕЗ УП  Костюм дівчинка Twiddy ХS2 для собак","Менше 10","Одяг для собак",434.52,0,0,0]
[null,1111180550,"PR243521","Жилет Big Boss бежевий 3XL","Менше 10",null,869,1173,0,0]
[null,1111180549,"PR243522","Жилет Big Boss бежевий 4XL","Менше 10",null,871,1176,0,0]
[null,1111180548,"PR243523","Жилет Big Boss бежевий 5XL","Менше 10",null,873,1179,0,0]
[null,1111164321,"PR242191","Жилет Pet Fashion Yellow vest 2.0 для собак 3XL-4XL","Більше 100","Одяг для собак",0,0,0,0]
[null,1111181946,"PR243598*****","Кардиган Garcia  М","Менше 10",null,668,902,0,0]
[null,1111181948,"PR243596*****","Кардиган Garcia ХS2","Менше 10",null,533,719,0,0]
[null,1111182522,"PR243785*****","Костюм Locky S для собак","Менше 10","Одяг для собак",865.98,1239,0,0]
[null,1111182524,"PR243787*****","Костюм Locky ХS для собак","Менше 10","Одяг для собак",760.02,1086,0,0]
[null,1111182523,"PR243788*****","Костюм Locky ХS2 для собак","Менше 10","Одяг для собак",817.02,1169,0,0]
[null,1111162544,"PR241969","Матрац Pet Fashion Medi Sleep Memory ортопедичний д/собак L 92х65х4 см","Менше 10","Спальні місця для собак",1847.33,2493.9,0,0]
[null,1111162543,"PR241970","Матрац Pet Fashion Medi Sleep Memory ортопедичний д/собак M 66х46х4 см","Більше 10","Спальні місця для собак",1054.51,1423.59,0,0]
[null,1111162542,"PR241971*****","Матрац Pet Fashion Medi Sleep Memory ортопедичний д/собак S 48х32х4 см","Менше 10","Спальні місця для собак",591.25,798.18,0,0]
[null,1111195178,"PR440290*****","Панама Pet Fashion Ava для собак М арт PR440290","Менше 10","Одяг для собак",293.33999999999997,419,0,0]
[null,1111195176,"PR440313*****","Панама Pet Fashion Ava для собак ХL арт PR440313","Менше 10","Одяг для собак",342.3,489,0,0]
[null,1111195170,"PR244037*****","Сорочка Pet Fashion Соломія для собак дівчинка бежева XS2 арт PR440375","Більше 10","Одяг для собак",384.3,549,0,0]
[null,1111195168,"PR244039*****","Сорочка Pet Fashion Соломія для собак дівчинка бежева М арт PR440399","Більше 10","Одяг для собак",454.32,649,0,0]
[null,1111195164,"PR244043*****","Сорочка Pet Fashion Соломія для собак дівчинка біла М арт PR440436","Менше 10","Одяг для собак",454.32,649,0,0]

{"sheet":"Profine","index":36,"n_rows":8,"n_cols":10,"rows_kept":8,"cut":false,"hidden":false,"merged":[]}
[]
[null,null,null,null,null,null,"suziria.ua"]
[null,null,null,null,null,null,"0 800 21 82 99"]
[null,null,null,null,null,null,"feedback@suziria.ua"]
[]
["Зображення","Код","Артикул","Номенклатура","Наявність","Категорія","Ціна опт.","Ціна РРЦ","Замовлення, шт.","Сума, грн."]
[null,null,null,null,null,null,null,null,null,{"$f":"SUM(J8:J8)","v":0}]
[null,1111194160,"170565/7695","ТЕРМ. 05.25 Profine Cat Original Adult коти усіх порід курка/рис 300г","Менше 10","Корм сухий для котів",52.44,0,0,{"$f":"G8*I8","v":0}]

{"sheet":"ProVET","index":37,"n_rows":11,"n_cols":10,"rows_kept":11,"cut":false,"hidden":false,"merged":[]}
[]
[null,null,null,null,null,null,"suziria.ua"]
[null,null,null,null,null,null,"0 800 21 82 99"]
[null,null,null,null,null,null,"feedback@suziria.ua"]
[]
["Зображення","Код","Артикул","Номенклатура","Наявність","Категорія","Ціна опт.","Ціна РРЦ","Замовлення, шт.","Сума, грн."]
[null,null,null,null,null,null,null,null,null,{"$f":"SUM(J8:J11)","v":0}]
[null,1111175189,"PR243101","Нашийник Provet PROFILINE д/собак д/великих порід інсектоакарицид 70см","Більше 10","Антипаразитарні препарати для собак",134.52000000000001,188,0,{"$f":"G8*I8","v":0}]
[null,1111195536,"PR243159","ТЕРМ 05.25 Вітамін Provet PROFILINE д/котів ГАГ ком суг/зв_язки 180таб","Менше 10","Вітаміни для котів",112.68,0,0,{"$f":"G9*I9","v":0}]
[null,1111197375,"PR243166","ТЕРМ 6.25 Вітаміни Provet PROFILINE д/собак протиалерг 100таб","Менше 10","Вітаміни для собак",96.9,0,0,{"$f":"G10*I10","v":0}]
[null,1111197036,"PR243167","ТЕРМ. 05.25 Вітаміни Provet PROFILINE Урінарі сечовивід/сист 180таб","Менше 10","Вітаміни для котів",105.3,0,0,{"$f":"G11*I11","v":0}]

{"sheet":"ProVET аква","index":38,"n_rows":12,"n_cols":10,"rows_kept":12,"cut":false,"hidden":false,"merged":[]}
[]
[null,null,null,null,null,null,"suziria.ua"]
[null,null,null,null,null,null,"0 800 21 82 99"]
[null,null,null,null,null,null,"feedback@suziria.ua"]
[]
["Зображення","Код","Артикул","Номенклатура","Наявність","Категорія","Ціна опт.","Ціна РРЦ","Замовлення, шт.","Сума, грн."]
[null,null,null,null,null,null,null,null,null,{"$f":"SUM(J8:J12)","v":0}]
[null,1111187727,"PR241959","БИТ. Піддон Природа під акваріум овальний 60×30 см","Менше 10","Підставки та піддони",102,0,0,{"$f":"G8*I8","v":0}]
[null,1111189263,"PR740620","ПОДР., БРУДН. Піддон Природа під акв. овальний 120x40х2,7 см","Менше 10","Підставки та піддони",424.32,0,0,{"$f":"G9*I9","v":0}]
[null,1111196563,"PR740632","ПОШК. КУТ Піддон Природа під акваріум кутовий 57x57х2,2 см","Менше 10","Підставки та піддони",266.04000000000002,0,0,{"$f":"G10*I10","v":0}]
[null,1111200606,"PR740615","ТРІСН. КУТ Піддон під акваріум Природа прямий 100x40х2,9см","Менше 10","Підставки та піддони",368.94,0,0,{"$f":"G11*I11","v":0}]
[null,1111189289,"PR740535","ТРІСН.1 КУТ Піддон Природа під акваріум прямий 80x35х2,8 см","Менше 10","Підставки та піддони",181.5,0,0,{"$f":"G12*I12","v":0}]

{"sheet":"SaniPet","index":39,"n_rows":8,"n_cols":10,"rows_kept":8,"cut":false,"hidden":false,"merged":[]}
[]
[null,null,null,null,null,null,"suziria.ua"]
[null,null,null,null,null,null,"0 800 21 82 99"]
[null,null,null,null,null,null,"feedback@suziria.ua"]
[]
["Зображення","Код","Артикул","Номенклатура","Наявність","Категорія","Ціна опт.","Ціна РРЦ","Замовлення, шт.","Сума, грн."]
[null,null,null,null,null,null,null,null,null,{"$f":"SUM(J8:J8)","v":0}]
[null,1111199696,"PR240564","ТЕРМ 12.27 БИТ КОВП КСпрей Provet SANIPET д/кот д/зах. від дряп.250мл","Менше 10","Корекція поведінки для котів",65.88,0,0,{"$f":"G8*I8","v":0}]

{"sheet":"Savory","index":40,"n_rows":11,"n_cols":10,"rows_kept":11,"cut":false,"hidden":false,"merged":[]}
[]
[null,null,null,null,null,null,"suziria.ua"]
[null,null,null,null,null,null,"0 800 21 82 99"]
[null,null,null,null,null,null,"feedback@suziria.ua"]
[]
["Зображення","Код","Артикул","Номенклатура","Наявність","Категорія","Ціна опт.","Ціна РРЦ","Замовлення, шт.","Сума, грн."]
[null,null,null,null,null,null,null,null,null,{"$f":"SUM(J8:J11)","v":0}]
[null,1111192005,31454,"ТЕРМ. 05.25 Savory Snacks Gourmand Salmon хрум/ласощі д/кот лосось 60г","Більше 100","Ласощі для котів",36.96,0,0,{"$f":"G8*I8","v":0}]
[null,1111193717,31416,"ТЕРМ. 05.25 М_які ласощі Savory здорров_я/стериліз/котів ягня/чорниця","Більше 100","Ласощі для котів",40.92,0,0,{"$f":"G9*I9","v":0}]
[null,1111192983,30532,"ТЕРМ. 05.27, БЕЗ ЕТИК. Savory Dog Puppy Chicken консерви курка 100г","Немає в наявності","Корм вологий для собак",20.58,0,0,{"$f":"G10*I10","v":0}]
[null,1111203154,21151,"ТЕРМ. 07.26, НЕ ТОВ. ВИД Джерки Savory Fillet Turkey інд/качка, 100 г","Менше 10","Ласощі для собак",83.88,0,0,{"$f":"G11*I11","v":0}]

{"sheet":"SGbox","index":41,"n_rows":8,"n_cols":10,"rows_kept":8,"cut":false,"hidden":false,"merged":[]}
[]
[null,null,null,null,null,null,"suziria.ua"]
[null,null,null,null,null,null,"0 800 21 82 99"]
[null,null,null,null,null,null,"feedback@suziria.ua"]
[]
["Зображення","Код","Артикул","Номенклатура","Наявність","Категорія","Ціна опт.","Ціна РРЦ","Замовлення, шт.","Сума, грн."]
[null,null,null,null,null,null,null,null,null,{"$f":"SUM(J8:J8)","v":0}]
[null,1111187094,5096,"ПОГН. Контейнер-переноска SGbox кот/соб до 6кг чорна 35х49х32,5см","Менше 10","Сумки, переноски та посуд для подорожей з собаками",230.22,0,0,{"$f":"G8*I8","v":0}]

{"sheet":"Special One","index":42,"n_rows":9,"n_cols":10,"rows_kept":9,"cut":false,"hidden":false,"merged":[]}
[]
[null,null,null,null,null,null,"suziria.ua"]
[null,null,null,null,null,null,"0 800 21 82 99"]
[null,null,null,null,null,null,"feedback@suziria.ua"]
[]
["Зображення","Код","Артикул","Номенклатура","Наявність","Категорія","Ціна опт.","Ціна РРЦ","Замовлення, шт.","Сума, грн."]
[null,null,null,null,null,null,null,null,null,{"$f":"SUM(J8:J9)","v":0}]
[null,1111195453,"PR242122","ТЕРМ. 05.25 Повнораціонний корм Special One для екзотичніх птахів 500г","Більше 100","Корм для птахів",47.28,0,0,{"$f":"G8*I8","v":0}]
[null,1111187156,"PR242516","ТЕРМ. 06.25 ПОРВ. Ласощі Special One Пончики д/птиц барб/вол/кокос 60г","Більше 10","Ласощі для птахів",29,0,0,{"$f":"G9*I9","v":0}]

{"sheet":"Tetra","index":43,"n_rows":8,"n_cols":10,"rows_kept":8,"cut":false,"hidden":false,"merged":[]}
[]
[null,null,null,null,null,null,"suziria.ua"]
[null,null,null,null,null,null,"0 800 21 82 99"]
[null,null,null,null,null,null,"feedback@suziria.ua"]
[]
["Зображення","Код","Артикул","Номенклатура","Наявність","Категорія","Ціна опт.","Ціна РРЦ","Замовлення, шт.","Сума, грн."]
[null,null,null,null,null,null,null,null,null,{"$f":"SUM(J8:J8)","v":0}]
[null,1111191852,762329,"ТРІСН. ВЕРХ Сифон Tetra GC 40 для акваріума для чищення грунту 50-200л","Менше 10","Аксесуари для акваріума",291.36,0,0,{"$f":"G8*I8","v":0}]

{"sheet":"Trixie","index":44,"n_rows":161,"n_cols":10,"rows_kept":161,"cut":false,"hidden":false,"merged":[]}
[]
[null,null,null,null,null,null,"suziria.ua"]
[null,null,null,null,null,null,"0 800 21 82 99"]
[null,null,null,null,null,null,"feedback@suziria.ua"]
[]
["Зображення","Код","Артикул","Номенклатура","Наявність","Категорія","Ціна опт.","Ціна РРЦ","Замовлення, шт.","Сума, грн."]
[null,null,null,null,null,null,null,null,null,{"$f":"SUM(J8:J161)","v":0}]
[null,1111136689,"31513*****СПЕЦЦЕНА",null,"Менше 10","Ласощі для собак",1120.43,0,0,{"$f":"G8*I8","v":0}]
[null,1111190596,24790,"1 МИСКА Миски Trixie д/котів Eat on Feet метал/підст 2x300мл","Менше 10","Миски для котів",209.22,0,0,0]
[null,1111194732,"91997_уп*****","TЕРМ 05.25 rixie Halloween Selection ласощі для собак з куркою 84шт","Більше 10","Ласощі для собак",1256.8800000000001,0,0,0]
[null,1111184748,"13177_ord","Автомобільне крісло Trixie для собак 45х28х40 см чорно-сіре арт13177","Менше 10","Сумки, переноски та посуд для подорожей з собаками",2848.07,3702,0,0]
[null,1111119291,"1322_ord","Автомобільне крісло Trixie для собак 45х38х37 см чорне арт1322","Менше 10","Сумки, переноски та посуд для подорожей з собаками",2043.91,2657,0,0]
[null,1111187812,4130,"БЕЗ БАТАРЕЙ. Іграшка Trixie Catch the Light д/котів Указка лазерна 8см","Менше 10","Іграшки для котів",64.52,0,0,0]
[null,1111189322,35093,"БЕЗ ЗВУКА Іграшка Trixie для собак Гусак з пискавкою латекс","Менше 10","Іграшки для собак",35.700000000000003,0,0,0]
[null,1111191051,35492,"БЕЗ ЗВУКА Іграшка Trixie для собак Качка з пискавкою латекс 30см","Менше 10","Іграшки для собак",149.1,0,0,0]
[null,1111189323,35092,"БЕЗ ЗВУКА Іграшка Trixie для собак Порося з пискавкою латекс","Менше 10","Іграшки для собак",35.700000000000003,0,0,0]
[null,1111187651,5498,"БЕЗ КРІП. Миска металева для птахів 0,6 л з гвинтовим кріпленням","Менше 10","Обладнання для птахів",64.52,0,0,0]
[null,1111191072,36842,"БЕЗ ПОДУШКИ Будиночок Trixie для собак та котів Jimmy 40х35х35см","Менше 10","Спальні місця для собак",633.87,0,0,0]
[null,1111187063,37031,"БЕЗ ПОДУШКИ Лежак  Jimmy  45?35 см сірий з лапками","Менше 10","Спальні місця для собак",361.44,0,0,0]
[null,1111187061,37032,"БЕЗ ПОДУШКИ Лежак  Jimmy  55?45 см сірий з лапками","Менше 10","Спальні місця для собак",452.23,0,0,0]
[null,1111193094,37686,"БЕЗ ПОДУШКИ Лежак Trixie Lingo з лапками/кісточками бежевий 60х55см","Менше 10","Спальні місця для собак",452.23,0,0,0]
[null,1111186919,24851,"БЕЗ РЕЗИНКИ Миска Trixie для собак гумов/основ металева 450мл d-19см","Менше 10","Миски та годівниці для собак",50.76,0,0,0]
[null,1111191953,45733,"БИТ Іграшка Trixie д/кот. Паличка з метелик та пірям кот. м_ята 45см","Менше 10","Іграшки для котів",44.47,0,0,0]
[null,1111187821,45804,"БИТ ПАЛОЧ Іграшка Trixie д/котів Паличка мишка/пір'я котяча м'ята 50см","Менше 10","Іграшки для котів",51.36,0,0,0]
[null,1111190305,4092,"БИТ. Іграшка Trixie для котів Миша заводна 7см","Менше 10","Іграшки для котів",43.85,0,0,0]
[null,1111187735,62551,"БИТ. Кутовий туалет для гризунів 36х21х30 см","Менше 10","Туалети для гризунів",51.36,0,0,0]
[null,1111189953,45801,"БИТ. ПАЛИЧ Ігр. Trixie д/котів Паличка з мишкою та пірям кот.мята 50см","Менше 10","Іграшки для котів",51.36,0,0,0]
[null,1111187126,5904,"БИТ. Переноска  PICO  д/грызунов 30*23*21см,","Менше 10","Обладнання для гризунів",201.06,0,0,0]
[null,1111187724,5903,"БИТ. Переноска  Pico  для гризунів 23х17,5х16 см","Менше 10","Обладнання для гризунів",103.98,0,0,0]
[null,1111187628,5401,"БИТ.КУТ Басейн для птахів 13,5?15?13,5 см","Менше 10","Обладнання для птахів",58.88,0,0,0]
[null,1111188460,24498,"БРАК ЕМАЛІ Миска Trixie Cat для котів керамічна 200мл d-13см","Менше 10","Миски для котів",73.92,0,0,0]
[null,1111188470,24492,"БРАК ЕМАЛІ Миска Trixie для котів з рибкою керамічна 200мл d-13см","Менше 10","Миски для котів",51.36,0,0,0]
[null,1111188468,24807,"БРАК ЕМАЛІ Миска Trixie для котів Котик керамічна 150мл d-14см","Менше 10","Миски для котів",119.04,0,0,0]
[null,1111189174,24535,"БРАК ПОКР.Миски Trixie для собак Eat on Feet подвійні","Менше 10","Миски та годівниці для собак",224.28,0,0,0]
[null,1111187347,24793,"БРАК ПОКРИТТЯ Миска Trixie д/котів Thanks for Service керам 300мл/11см","Менше 10","Миски для котів",73.92,0,0,0]
[null,1111186895,24499,"БРАК ПОКРИТТЯ Миска Trixie д/котів біла чорн/котик керам 250мл d-13см","Більше 10","Миски для котів",58.92,0,0,0]
[null,1111186908,24799,"БРАК ПОКРИТТЯ Миска Trixie д/котів з лапками срібна кераміч 11см 300мл","Менше 10","Миски для котів",103.98,0,0,0]
[null,1111190086,24650,"БРАК ПОКРИТТЯ Миска Trixie для котів Mimi керамічна 300 мл/12 см","Менше 10","Миски для котів",73.92,0,0,0]
[null,1111186612,24492,"БРАК ПОКРИТТЯ Миска Trixie для котів з рибкою керамічна 200мл d-13см","Менше 10","Миски для котів",51.36,0,0,0]
[null,1111186797,24807,"БРАК ПОКРИТТЯ Миска Trixie для котів Котик керамічна 150мл d-14см","Менше 10","Миски для котів",119.04,0,0,{"$f":"G40*I40","v":0}]
[null,1111189384,25023,"БРАК ПОКРИТТЯ Миска Trixie для собак керамічна біла 400мл 13см","Менше 10","Миски та годівниці для собак",73.92,0,0,0]
[null,1111186739,25020,"БРАК ПОКРИТТЯ Миска Trixie для собак керамічна чорна 400мл 13см","Менше 10","Миски та годівниці для собак",73.92,0,0,0]
[null,1111186889,24520,"БРАК ПОКРИТТЯ Миска д/собак медленного кормления, керамика, 0.45л/14см","Менше 10","Миски та годівниці для собак",194.22,0,0,0]
[null,1111186666,24790,"БРАК ПОКРИТТЯ Миски Trixie кот Eat on Feet мет/підст 2x300мл/12см","Менше 10","Миски та годівниці для собак",209.22,0,0,0]
[null,1111186907,24791,"БРАК ПОКРИТТЯ Миски Trixie кот EatFeet керам метал/підст 2x300мл/12см","Менше 10","Миски та годівниці для собак",239.28,0,0,0]
[null,1111187710,24820,"БРАК ПОКРИТТЯ Підставка дерев +миски керам/чорн собак 2*0,2л/28*5*15см","Менше 10","Миски та годівниці для собак",420.96,0,0,0]
[null,1111187708,24791,"БРАК ПОКРИТТЯ, НЕТОВ. ВИГЛ. Підставка  Eat on Feet +миски 2*0,3л/12см","Менше 10","Миски та годівниці для собак",239.28,0,0,0]
[null,1111188478,25021,"Брак.емал Миска Trixie для собак керамічна чорна 900мл 16см","Менше 10","Миски та годівниці для собак",103.98,0,0,0]
[null,1111188939,45739,"ВІДІРВАНІ Іграшка Trixie для котів Вудочка з трьома м_ячиками 35см","Менше 10","Іграшки для котів",44.52,0,0,0]
[null,1111188830,24920,"відс.винт.стійк Миска Trixie д/соб подвійна мет2x750мл/17см h-27см","Менше 10","Миски та годівниці для собак",336.36,0,0,0]
[null,1111188643,40394,"відс.рамк Туалет Trixie Brisko для кот з борт пласт прозор 38x11x50см","Менше 10","Туалети для котів",167.28,0,0,0]
[null,1111188831,24922,"відс.центр.стійка Миска Trixie д/собак подвійна мет2x2,8 л/24см h-50см","Менше 10","Миски та годівниці для собак",590.03,0,0,0]
[null,1111189864,2462,"Відсут. караб.Поїлка Trixie для собак для подорожей пластикова 250 мл","Менше 10","Сумки, переноски та посуд для подорожей з собаками",51.36,0,0,0]
[null,1111188650,40154,"відсут.рамк.застіб Туалет Trixie Berto кот борт/сіт/заст сір39х22x59см","Менше 10","Туалети для котів",396.17,0,0,0]
[null,1111165898,55610,"Годівниця Trixie для птахів для вікна з присосками 225мл 15х15х6см","Менше 10","Обладнання для птахів",238.01,294,0,0]
[null,1111121667,2402,"Гребінець Trixie для котів від бліх пластиковий двухсторонній 9см","Менше 10","Догляд та гігієна для собак",36,47,0,0]
[null,1111191319,39811,"ДЕФОРМОВ.  Переноска Trixie Capri 1-6кг сіра XS 32x31x48см","Менше 10","Сумки, переноски та посуд для подорожей з котами",298.02,0,0,0]
[null,1111191318,39821,"ДЕФОРМОВ. Переноска Trixie Capri 2 до 8кг сіра XS-S 37x34x55см","Менше 10","Сумки, переноски та посуд для подорожей з котами",486.31,0,0,0]
[null,1111188987,"3982-40","Застібка Trixie для переносок Capri 3981-83 3985 3986 5шт Арт3982-40","Менше 10","Сумки, переноски та посуд для подорожей з котами",0,0,0,0]
[null,1111177746,"39741-60*****","Застібка Trixie для переносок Skudo для арт39741/39735/39736 пластик","Менше 10",null,50.16,65,0,0]
[null,1111191442,43181,"ЗЛАМ. КУТИК Дряпка Trixie д/котів настінна сизаль/дерево беж 11x56см","Менше 10","Дряпки для котів",133.44,0,0,0]
[null,1111190593,"4516_1шт","ЗЛАМАНА Іграшка Trixie для котів Мишка з пір_ям/м_ятою 50см","Менше 10","Іграшки для котів",22.55,0,0,0]
[null,1111190005,4135,"ЗЛАМАНЕ КРІПЛ. Іграшка Trixie Crazy Circle кот ігр/трек/мишка 24х29см","Менше 10","Іграшки для котів",115.26,0,0,0]
[null,1111191470,"92451_Christmas","Іграшка Trixie для котів Мишка тканина 2 шт 7 см арт 92451","Більше 10","Іграшки для котів",108.6,141,0,0]
[null,1111191469,"92450_Christmas","Іграшка Trixie для котів Різдв_яна цукерка тканина 2шт 11см арт 92450","Менше 10","Іграшки для котів",108.6,141,0,0]
[null,1111191463,"92605_Christmas","Іграшка Trixie для собак Різдв_яна кісточка плюш 24 см арт 92605","Менше 10","Іграшки для собак",136.32,177,0,0]
[null,1111177550,"92592_Christmas","Іграшка Trixie для собак Різдв_яний олень плюш канат 32 см арт 92592","Менше 10","Іграшки для собак",308.52,401,0,0]
[null,1111148121,"92497_Christmas 6шт","Іграшка Trixie для собак Різдвяна Сніжка зі звуком плюш 10см","Більше 10","Іграшки для собак",485.28,631,0,0]
[null,1111192428,24790,"ІРЖА Миски Trixie Eat on Feet кераміка метал/підставка 2x300мл/12см","Менше 10","Миски для котів",209.22,0,0,0]
[null,1111191289,24791,"ІРЖА Миски Trixie д/котів Eat on Feet метал/підставка 2x300мл/12см","Менше 10","Миски для котів",239.28,0,0,0]
[null,1111176275,"24851-10","Кільце Trixie змінний для собачої миски 24851 гума","Менше 10",null,0,0,0,0]
[null,1111180978,"31186 пошт.","Ласощі Denta Fun Chicken Pop д/собз курячою печінкою 13см/50г 1шт","Більше 100","Ласощі для собак",42.64,0,0,{"$f":"G72*I72","v":0}]
[null,1111181142,"317071_150шт","Ласощі PREMIO д/соб бублик ягня/курка 4см 17г 150шт/уп","Менше 10",null,3006.49,3908,0,0]
[null,1111199563,"31900*****","Ласощі Trixie Creamy Snacks для собак з куркою 5 шт х 14 г PL","Більше 10","Ласощі для котів",70.150000000000006,91,0,0]
[null,1111192883,"315432_10шт","Ласощі Trixie для собак Льодяник курка/сир 10см 20г","Більше 10","Ласощі для собак",0,0,0,0]
[null,1111194650,"2704 _5шт","Ласощі Trixie для собак Пиріжок з бичачої печінки 45 г","Більше 10","Ласощі для собак",0,0,0,0]
[null,1111192882,"31389_5шт","Ласощі Trixie для собак Рулет жувальний бичача піца 15 см 55 г","Більше 10","Ласощі для собак",298.74,338,0,0]
[null,1111193099,"92660_5шт*****","Ласощі Trixie для собак Ялинка з качиним м_ясом 12 см 28 г","Більше 10","Ласощі для собак",0,0,0,0]
[null,1111191533,"315433_10шт","Ласощі Trixie Міні крендель з куркою 6х4см_10шт","Менше 10","Ласощі для собак",0,0,0,0]
[null,1111170778,"313261 пошт.*****","Ласощі д/соб. Жув. рол Denta Fun для чищення зубів з куркою 28см 1шт","Більше 10","Ласощі для собак",63.27,0,0,0]
[null,1111188593,24798,"МАЛ. СКОЛ Миска Trixie для котів керамічна 0,15л діам-13см біла","Менше 10","Миски для котів",119.04,0,0,0]
[null,1111189931,45786,"НЕ ПИЩИТЬ Ігр. Trixie д/котів Кріт з котячою мятою та звуком плюш 5см","Менше 10","Іграшки для котів",65.819999999999993,0,0,0]
[null,1111187321,45785,"НЕ ПИЩИТЬ Іграшка Trixie д/котів Мишка пискавка/котяч.м'ята плюш 8см","Менше 10","Іграшки для котів",62.04,0,0,0]
[null,1111187832,3539,"НЕ ПИЩИТЬ Іграшка Trixie для собак Курка з пискавкою латекс 43см","Менше 10","Іграшки для собак",134.04,0,0,0]
[null,1111187584,"4199_1шт","НЕ ПИЩИТЬ Мишка-пищавка з чіпом 6 см","Менше 10","Іграшки для котів",77.67,0,0,0]
[null,1111187704,24609,"НЕ ПРАЦ КЛАПАН Поїлка з мискою 0,55 біла/блакитна пластикова","Менше 10","Контейнери для зберігання їжі собак",90.82,0,0,0]
[null,1111187705,24609,"НЕ ПРАЦ КЛАПАН, БЕЗ УП Поїлка з мискою 0,55 біла/блакитна пластикова","Менше 10","Контейнери для зберігання їжі собак",90.82,0,0,0]
[null,1111193265,13447,"НЕ ПРАЦ. 1 ДІОД Брелок-ліхт.Trixie д/соб. водовідшт. силікон 8х2,4см","Менше 10","Амуніція для собак",77.67,0,0,0]
[null,1111187585,4083,"НЕ ПРАЦЮЄ  Байбак 8,5 см в упаковці","Менше 10","Іграшки для котів",51.36,0,0,0]
[null,1111187583,4092,"НЕ ПРАЦЮЄ Іграшка Trixie для котів Миша заводна 7см","Менше 10","Іграшки для котів",43.85,0,0,0]
[null,1111187330,"4089_1шт","НЕ ПРАЦЮЄ Мышь меховая вибрирующая 7-10см, 1шт,","Менше 10","Іграшки для котів",44.52,0,0,0]
[null,1111192413,13447,"НЕ СВІТИТЬ Брелок-ліхтарик Trixie водовідштовхувальний силікон 8х2,4см","Менше 10","Амуніція для собак",77.67,0,0,0]
[null,1111190362,24544,"НЕ ТОВ ВИД Килим. під мис.Trixie д/кот. Comic Cat сірий пластик44х28см","Менше 10","Килимки під миски для котів",50.74,0,0,0]
[null,1111187577,5161,"НЕ ТРИМ. КРІП  Гойдалка для птахів канат 66см?18мм","Менше 10","Обладнання для птахів",88.94,0,0,0]
[null,1111187588,41686,"НЕ ТРИМ.ЗАСТ Нашийник для кошенят зі світловідбиваючою смугою","Менше 10","Амуніція для котів",26.94,0,0,0]
[null,1111187725,4416,"НЕКОМПЛЕКТ  Решітка захисна для вікна 62х16/8 см","Менше 10","Інструменти для догляду за будинком з котами",103.98,0,0,0]
[null,1111188595,2461,"НЕМАЄ КОРАБІНА Поїлка Trixie для собак для подорожей пластикова 500мл","Менше 10","Сумки, переноски та посуд для подорожей з собаками",64.56,0,0,0]
[null,1111187452,35492,"НЕТОВ. В. Утка латекс ориг. звук 30см","Менше 10","Іграшки для собак",149.1,0,0,0]
[null,1111187657,"3443_1шт","НЕТОВ. ВИГЛ. Іграшка Trixie для собак М_яч Неон ассорті поролон 6см","Менше 10","Іграшки для собак",31.32,0,0,0]
[null,1111190444,35491,"НЕТОВ. ВИГЛ. Іграшка Trixie для собак Порося з пискавкою латекс 21см","Менше 10","Іграшки для собак",119.04,0,0,0]
[null,1111187733,19406,"НЕТОВ. ВИГЛ. Пояс Trixie д/собак підтримуюч/неопренов/чорн M 55–65см","Менше 10","Амуніція для собак",130.32,0,0,0]
[null,1111187006,24967,"НЕТОВ.В. БЕЗ РЕЗИНКИ Двойная миска д/собак, пластик, 2х0.2л/10см","Менше 10","Миски та годівниці для собак",60.66,0,0,0]
[null,1111165785,"207518*****","Перестіжка  Fusion  нейлон, L–XL: 2.00 м/25 мм, графіт/синій","Менше 10","Амуніція для собак",523.63,647,0,0]
[null,1111150625,"200313*****","Повідець Trixie д/собак Premium індіго неопрен/підкладка L-XL 1м/25мм","Менше 10","Амуніція для собак",410.17,506,0,{"$f":"G104*I104","v":0}]
[null,1111150606,"200114*****","Повідець Trixie д/собак Premium карам неопрен/підклад XS-S 120см/15мм","Менше 10","Амуніція для собак",288.85000000000002,358,0,0]
[null,1111150631,"200319*****","Повідець Trixie д/собак Premium оливков неопрен/підкладка L-XL 1м/25мм","Менше 10","Амуніція для собак",410.17,506,0,0]
[null,1111150621,"200219*****","Повідець Trixie д/собак Premium оливков неопрен/підкладка M-L 1м/20мм","Менше 10","Амуніція для собак",313.11,387,0,0]
[null,1111141356,"14131*****","Повідець Trixie для собак Classic чорний нейлон L-XL 120х180см/25мм","Менше 10","Амуніція для собак",164.07,202,0,0]
[null,1111150640,"200417*****","Повідець-перестібка Trixie д/собак Premium нейлон зелений XS-S 2м/15мм","Менше 10","Амуніція для собак",288.85000000000002,358,0,0]
[null,1111150648,"200514*****","Повідець-перестібка Trixie д/собак Premium нейлон карамель M-L 2м/20мм","Менше 10","Амуніція для собак",361.64,447,0,0]
[null,1111188731,39813,"ПОГАН.ТРИМ.ЗАСТІБК. Переноска Trixie соб/кот Capri 1-6кг XS 32x31x48см","Менше 10","Сумки, переноски та посуд для подорожей з собаками",298.02,0,0,0]
[null,1111187571,2306,"ПОГНУТІ ЗУБЦ Пуходер. для соб із кульк. гумов. ручка двостор. 10?17 см","Менше 10","Догляд та гігієна для собак",64.52,0,0,0]
[null,1111187567,2305,"ПОГНУТІ ЗУБЦІ  Пуход. д/соб. із кульк. двостор.дерев яна руч. 10*18 см","Менше 10","Догляд та гігієна для собак",64.52,0,0,0]
[null,1111187407,2300,"ПОГНУТІ ЗУБЦІ Пуходерка д/собак із кульками дерев/ручка 10*18 см","Менше 10","Догляд та гігієна для собак",57.66,0,0,0]
[null,1111187402,2301,"ПОГНУТІ ЗУБЦІ Пуходерка для собак із кульками гумова ручка 10*17см","Більше 10","Догляд та гігієна для собак",51.36,0,0,0]
[null,1111187624,5401,"ПОДРЯПИНИ Басейн Trixie Bath House д/птахів/підвісн пластик 14х14х15см","Менше 10","Обладнання для птахів",58.92,0,0,0]
[null,1111187623,63004,"ПОДРЯПИНИ Ванна для гризунів 22 * 12 * 12см дерев яна з піском","Менше 10","Обладнання для гризунів",217.97,0,0,0]
[null,1111189550,40154,"ПодряпТуалет Trixie Berto кот борти/сітка/застібки пл сірий 39х22x59см","Менше 10","Туалети для котів",396.18,0,0,0]
[null,1111162053,"925102_Christmas","Попона Trixie для собак Різдвяна червона поліестер S d=52*35см","Менше 10","Одяг для собак",365.1,475,0,0]
[null,1111187418,3539,"ПОРВ Курка латексна 51см","Менше 10","Іграшки для собак",134.04,0,0,0]
[null,1111186910,24832,"ПОРВ. ЕТ. Подставка под миски низкая+2 миски 0,75л/15см","Менше 10","Миски та годівниці для собак",119.04,0,0,0]
[null,1111191960,35492,"ПОРВ. Іграшка Trixie для собак Качка з пискавкою латекс 30см","Менше 10","Іграшки для собак",149.1,0,0,0]
[null,1111190404,19406,"ПОРВ. Пояс Trixie для собак підтримуючий неопреновий чорний M: 55–65 с","Менше 10","Амуніція для собак",130.32,0,0,0]
[null,1111187070,2889,"ПОШКОДЖ. Сумка-переноска з кісточками  Adrina  42х27х26 см","Менше 10","Сумки, переноски та посуд для подорожей з собаками",452.23,0,0,0]
[null,1111187794,"60573_1шт Trixie","ПРОКР. КОВП. Поїлка Trixie д/гриз. автом. гвинт/кріплення пласт. 500мл","Менше 10","Обладнання для гризунів",64.52,0,0,0]
[null,1111187795,"6054_1шт","ПРОКР.КОВПАЧ.  Поїлка Trixie д/гризунів автомат. пластикова 450мл","Менше 10","Обладнання для гризунів",36.33,0,0,0]
[null,1111191725,60808,"СКОЛ Миска Trixie HoneyHopper  керамічна 250 мл 11 см Арт60808","Менше 10","Обладнання для гризунів",74,0,0,0]
[null,1111193149,25120,"СКОЛ Миска Trixie д/кот Zentangle керам чорно-біла 12см 0,3л","Менше 10","Миски для котів",73.92,0,0,0]
[null,1111186900,24494,"СКОЛ Миска Trixie д/кот форма котячої мордочки керам 250мл/12см","Менше 10","Миски для котів",73.91,0,0,0]
[null,1111187843,24499,"СКОЛ Миска Trixie д/котів біла чорн/котик керам 250мл d-13см","Менше 10","Миски для котів",58.92,0,0,0]
[null,1111186898,24531,"СКОЛ Миска Trixie д/котів з лапками коричн/керам 12см 300мл","Менше 10","Миски та годівниці для собак",73.91,0,0,0]
[null,1111187850,24799,"СКОЛ Миска Trixie д/котів з лапками срібна кераміч 11см 300мл","Менше 10","Миски для котів",103.98,0,0,0]
[null,1111186602,24778,"СКОЛ Миска Trixie д/собак Jimmy чорна лапка керам 750мл 16см","Менше 10","Миски та годівниці для собак",179.16,0,0,0]
[null,1111187361,4009,"СКОЛ Миска Trixie для котів з котиком керамічна 11см 300мл","Менше 10","Миски для котів",65.819999999999993,0,0,0]
[null,1111186614,24492,"СКОЛ Миска Trixie для котів з рибкою керамічна 200мл d-13см","Менше 10","Миски для котів",51.36,0,0,0]
[null,1111186607,"4008_1шт","СКОЛ Миска Trixie для котів керамічна 200мл d-11,5см","Менше 10","Миски для котів",65.819999999999993,0,0,{"$f":"G136*I136","v":0}]
[null,1111192416,24795,"СКОЛ Миска Trixie для котів короткомордих порід керамічна 15см 300мл","Менше 10","Миски для котів",88.94,0,0,0]
[null,1111187846,24770,"СКОЛ Миска Trixie для котів короткомордих порід синя/біла 15см 300мл","Менше 10","Миски для котів",88.94,0,0,0]
[null,1111187842,24807,"СКОЛ Миска Trixie для котів Котик керамічна 150мл d-14см","Менше 10","Миски для котів",119.04,0,0,0]
[null,1111187853,24802,"СКОЛ Миска Trixie для котів пласка та широка керамічна 23см 600мл","Менше 10","Миски для котів",179.14,0,0,0]
[null,1111191847,25025,"СКОЛ Миска Trixie для собак керамічна біла 1,6л 20см","Менше 10","Миски та годівниці для собак",179.14,0,0,0]
[null,1111186930,25023,"СКОЛ Миска Trixie для собак керамічна біла 400мл 13см","Менше 10","Миски та годівниці для собак",73.92,0,0,0]
[null,1111187856,24651,"СКОЛ Миска Trixie керамічна пласка з принтом 0,2 л 15 см біла Арт24651","Менше 10","Миски та годівниці для собак",88.98,0,0,0]
[null,1111191335,24495,"СКОЛ Миска Trixie овальна кераміч 15х10см 200мл","Менше 10","Миски для котів",73.92,0,0,0]
[null,1111186611,25051,"СКОЛ Миска д/собак Pets Home, 0.8л/16см,керамика крем/голубая","Менше 10","Миски та годівниці для собак",103.98,0,0,0]
[null,1111186887,24784,"СКОЛ Миска керам. д/перса серая 0,3л/15см","Менше 10","Миски для котів",88.94,0,0,0]
[null,1111186652,"25083 Trixie","СКОЛ Миска керам. д/соб. серебро/белая 0,3л/12см","Менше 10","Миски та годівниці для собак",95.94,0,0,0]
[null,1111186896,4007,"СКОЛ Миска керамічна для котів 0,2л/11,5см","Менше 10","Миски для котів",73.91,0,0,0]
[null,1111192069,24791,"СКОЛ Миски Trixie кот Eat on Feet керам метал/підст 2x300мл/12см","Менше 10","Миски для котів",239.27,0,0,0]
[null,1111191601,"39814*****","Скол пласт.Переноска Trixie Capri 1 до 6кг зелена XS 32x31x48см","Менше 10","Сумки, переноски та посуд для подорожей з котами",274.86,0,0,0]
[null,1111186667,24790,"СКОЛ Подставка Eat on Feet с керам. мисками д/котов 0,3л/12см","Менше 10","Миски та годівниці для собак",209.22,0,0,0]
[null,1111186922,24640,"СКОЛ Подставка Eat on Feet с керам. мисками для собак 0,25л/13см","Менше 10","Миски та годівниці для собак",224.28,0,0,0]
[null,1111192643,27742,"ТЕРМ 03.26 ПОРВ Trixie Ріг буйвола лас.д/соб жувал. M серед. 109г","Більше 10","Ласощі для собак",82.68,0,0,0]
[null,1111204601,"31389_5шт","ТЕРМ 10.25 Ласощі Trixie д/соб. Рулет жувальний бичача піца 15 см 55 г","Менше 10","Ласощі для собак",149.4,0,0,0]
[null,1111191889,"315431_5шт","ТЕРМ 11.25 БИТ Лас.Trixie PREMIO Lollipop bulk д/соб 8 см 10 г 5 шт/уп","Менше 10","Ласощі для собак",35.04,0,0,0]
[null,1111187043,27742,"ТЕРМ. 02.26 ПОРВ. Ласощі Trixie для собак Ріг буйвола жувальний M 109г","Більше 10","Ласощі для собак",81.61,0,0,0]
[null,1111194003,31260,"ТЕРМ. 02.27, ЗЛАМ. Ласощі Trixie Chewing cheese, XS: 13.5 см, 30 г","Менше 10","Ласощі для собак",100.86,0,0,0]
[null,1111193871,"2801_500г","ТЕРМ. 05.25 Trixie Sprats dried fish for dogs Шпроти в_ялена риба 500г","Більше 10","Ласощі для собак",370.02,0,0,0]
[null,1111187703,2461,"ТРІСН. ВУШКО Поїлка Trixie для собак для подорожей пластикова 500мл","Менше 10","Сумки, переноски та посуд для подорожей з собаками",64.52,0,0,0]
[null,1111150870,204816,"Шлея-вісімка Trixie д/собак Premium Н-подіб графіт XXS-XS 20-32см/10мм","Більше 10","Амуніція для собак",181.64,224,0,0]
[null,1111150834,"204313*****","Шлея-петля Trixie для собак Premium нейлон індіго XS-S 30-40см/10мм","Менше 10","Амуніція для собак",181.4,224,0,0]

{"sheet":"Tropical","index":45,"n_rows":8,"n_cols":10,"rows_kept":8,"cut":false,"hidden":false,"merged":[]}
[]
[null,null,null,null,null,null,"suziria.ua"]
[null,null,null,null,null,null,"0 800 21 82 99"]
[null,null,null,null,null,null,"feedback@suziria.ua"]
[]
["Зображення","Код","Артикул","Номенклатура","Наявність","Категорія","Ціна опт.","Ціна РРЦ","Замовлення, шт.","Сума, грн."]
[null,null,null,null,null,null,null,null,null,{"$f":"SUM(J8:J8)","v":0}]
[null,1111113347,"33031***",null,"Менше 10","Засоби для догляду за акваріумом",147.06,198,0,{"$f":"G8*I8","v":0}]

{"sheet":"True Fresh","index":46,"n_rows":9,"n_cols":10,"rows_kept":9,"cut":false,"hidden":false,"merged":[]}
[]
[null,null,null,null,null,null,"suziria.ua"]
[null,null,null,null,null,null,"0 800 21 82 99"]
[null,null,null,null,null,null,"feedback@suziria.ua"]
[]
["Зображення","Код","Артикул","Номенклатура","Наявність","Категорія","Ціна опт.","Ціна РРЦ","Замовлення, шт.","Сума, грн."]
[null,null,null,null,null,null,null,null,null,{"$f":"SUM(J8:J9)","v":0}]
[null,1111204171,171545,"ТЕРМ. 08.25 Carnilove True Fresh Fish for Adult dogs соб/усі риб 1,4кг","Більше 10","Корм сухий для собак",343.26,0,0,{"$f":"G8*I8","v":0}]
[null,1111203239,172137,"ТЕРМ. 09.25 Carnilove True FreshFish Adult SmallBreed соб/мал риба 4кг","Менше 10","Корм сухий для собак",806.16,0,0,{"$f":"G9*I9","v":0}]

{"sheet":"Vitakraft","index":47,"n_rows":11,"n_cols":10,"rows_kept":11,"cut":false,"hidden":false,"merged":[]}
[]
[null,null,null,null,null,null,"suziria.ua"]
[null,null,null,null,null,null,"0 800 21 82 99"]
[null,null,null,null,null,null,"feedback@suziria.ua"]
[]
["Зображення","Код","Артикул","Номенклатура","Наявність","Категорія","Ціна опт.","Ціна РРЦ","Замовлення, шт.","Сума, грн."]
[null,null,null,null,null,null,null,null,null,{"$f":"SUM(J8:J11)","v":0}]
[null,1111193872,21641,"ТЕРМ 05.25Кор. Vitakraft African для середніх африканських папуг 750 г","Менше 10","Корм для птахів",157.08000000000001,0,0,{"$f":"G8*I8","v":0}]
[null,1111202818,"10645-29219","ТЕРМ 09.25 Корм Vitakraft Premium Menu Vital д/декор. гриз./крол. 1кг","Більше 10","Корм для гризунів",146.82,0,0,{"$f":"G9*I9","v":0}]
[null,1111200571,28823,"ТЕРМ. 08.25 Ласощі Vitakraft Yums подушечки д/котів лосось/Омега-3 40г","Більше 10","Ласощі для котів",57.54,0,0,{"$f":"G10*I10","v":0}]
[null,1111191225,25076,"ТЕРМ. 11.25, ПОРВ. Корм Vitakraft Pellets для шиншил1 кг","Більше 10","Корм для гризунів",65.28,0,0,{"$f":"G11*I11","v":0}]

{"sheet":"Білі лапки","index":48,"n_rows":8,"n_cols":10,"rows_kept":8,"cut":false,"hidden":false,"merged":[]}
[]
[null,null,null,null,null,null,"suziria.ua"]
[null,null,null,null,null,null,"0 800 21 82 99"]
[null,null,null,null,null,null,"feedback@suziria.ua"]
[]
["Зображення","Код","Артикул","Номенклатура","Наявність","Категорія","Ціна опт.","Ціна РРЦ","Замовлення, шт.","Сума, грн."]
[null,null,null,null,null,null,null,null,null,{"$f":"SUM(J8:J8)","v":0}]
[null,1111168431,"T000001*****","Наповнювач  Білі лапки  мінеральний, 3-6 мм, T000001","Більше 100","Наповнювачі для котячих туалетів",99.84,135,0,{"$f":"G8*I8","v":0}]

{"sheet":"Природа","index":49,"n_rows":81,"n_cols":10,"rows_kept":81,"cut":false,"hidden":false,"merged":[]}
[]
[null,null,null,null,null,null,"suziria.ua"]
[null,null,null,null,null,null,"0 800 21 82 99"]
[null,null,null,null,null,null,"feedback@suziria.ua"]
[]
["Зображення","Код","Артикул","Номенклатура","Наявність","Категорія","Ціна опт.","Ціна РРЦ","Замовлення, шт.","Сума, грн."]
[null,null,null,null,null,null,null,null,null,{"$f":"SUM(J8:J81)","v":0}]
[null,1111188110,"PR740830","БЕЗ БОК СТІН, Куля Природа для гризунів  діаметром 19см","Менше 10","Обладнання для гризунів",63.45,0,0,{"$f":"G8*I8","v":0}]
[null,1111187632,"PR740830","БЕЗ КРИШ Куля Природа для гризунів прогулянкова діаметром 19см","Менше 10","Обладнання для гризунів",60.44,0,0,0]
[null,1111191317,"PR740444","БЕЗ СІТКИ Туалет Природа №1 з сіткою для котів 34,5х26х5см","Менше 10","Туалети для котів",32.340000000000003,0,0,0]
[null,1111192853,"PR241976","БИТ КУТ  Сумка-переноска Природа Basic 3 для котів та собак 42х32х24см","Менше 10","Сумки, переноски та посуд для подорожей з собаками",444.84,0,0,0]
[null,1111187840,"PR241232","БИТ.  Декорація Природа Піраміда Майя для акваріума 11,5х11х8см","Менше 10","Декорації для акваріума",115,0,0,0]
[null,1111187636,"PR740806","БИТ. Будиночок Природа для птахів середній 13x15x16см","Менше 10","Обладнання для птахів",80.14,0,0,0]
[null,1111187639,"PR241106","БИТ. Декорація Природа Вулкан для акваріума 11x6x8см","Менше 10","Декорації для акваріума",117.75,0,0,0]
[null,1111193370,"PR001198","БРАК ЗБОРУ Будиночок Природа Мрія для кролика 30x22x18 см","Менше 10","Обладнання для гризунів",216.42,0,0,0]
[null,1111191611,"PR740435","Відс.рамка,Туалет Природа Маркіз з рамкою для котів 42,5х31,5х13см","Менше 10","Туалети для котів",57.06,0,0,0]
[null,5155,"PR240124*****","Вітаміни Природа Медові для хвилястих папуг мультивітамін насіння 20г","Немає в наявності","Вітаміни та мінерали для птахів",9.18,14,0,0]
[null,1111182749,"PR243791","Дряпка Гігант стовпчик сизаль МІКС","Менше 10","Дряпки для котів",584.1,876,0,0]
[null,1111179154,"PR243474","Дряпка Шале сіро-бежева","Менше 10","Дряпки для котів",1317.54,1711,0,0]
[null,1111189986,"PR740325*****","ЗЛАМ. БАРАБАН Дряпка Природа Д22 д/котів з барабаном беж 36x36x107см","Менше 10","Дряпки для котів",786.12,0,0,0]
[null,1111187630,"PR740817","ЗЛАМ. НІЖКА  Колесо Природа для хом_яків 14см","Менше 10","Обладнання для гризунів",14.83,0,0,0]
[null,1111138561,"PR240098","Ласощі Природа Колосок Коктейль д/серед/папуг мультифрукт/гор/цитр 90г","Більше 100","Ласощі для птахів",37.44,59,0,0]
[null,1111180865,"PR243562*****","Натуральні сушені ласощі д/собак Жила станова яловича сушена 1000г","Менше 10","Ласощі для собак",521.64,678,0,0]
[null,1111180869,"PR243558*****","Натуральні сушені ласощі д/собак Лапи курячі сушені 1000г","Менше 10","Ласощі для собак",377.4,490,0,0]
[null,1111180877,"PR243550*****","Натуральні сушені ласощі д/собак Мікс яловичий сушений 1000г","Більше 10","Ласощі для собак",488.16,634,0,0]
[null,1111180859,"PR243568*****","Натуральні сушені ласощі д/собак Нирки яловичі сушені 1000г","Менше 10","Ласощі для собак",640.86,833,0,0]
[null,1111180857,"PR243570*****","Натуральні сушені ласощі д/собак Печінка яловича сушена 1000г","Більше 10","Ласощі для собак",483.24,629,0,0]
[null,1111180849,"PR243578*****","Натуральні сушені ласощі д/собак Рубець яловичий сушений 500г","Менше 10","Ласощі для собак",275.88,358,0,0]
[null,1111180851,"PR243576*****","Натуральні сушені ласощі д/собак Рубець яловичий сушений слайсами 500г","Більше 10","Ласощі для собак",296.94,408,0,0]
[null,1111180847,"PR243580*****","Натуральні сушені ласощі д/собак Трахея яловича сушена рублена 500г","Менше 10","Ласощі для собак",266.82,348,0,0]
[null,1111180875,"PR243552*****","Натуральні сушені ласощі д/собак Шлунок качиний сушений слайсами 1000г","Менше 10","Ласощі для собак",649.5,843,0,0]
[null,1111187633,"PR740830","НЕ ПРАЦЮЄ  Куля Природа для гризунів прогулянкова діаметром 19см","Менше 10","Обладнання для гризунів",60.44,0,0,0]
[null,1111188403,"PR001193","НЕЯКІСНА ЗБІРКА Будиночок Природа Мрія для морскої свинки 25x15x13см","Менше 10","Обладнання для гризунів",130.32,0,0,0]
[null,1111191495,"PR240278","ПОРВ. Куля-міні Природа для гризунів бігова на підставці діаметром 13","Менше 10","Обладнання для гризунів",78.540000000000006,0,0,0]
[null,1111187033,"PR241685","ПОРВ. Пісок Природа для гризунів та шиншил 1кг","Більше 10","Догляд та гігієна для гризунів",16.62,0,0,0]
[null,1111188427,"PR241687","ПОРВ. Пісок Природа для декоративних птахів 1000 г","Менше 10","Предмети гігієни для птахів",14.76,0,0,0]
[null,1111187064,"PR243276","ПОРВ. Сумка-переноска Природа Carri для собак 43х32х25см","Менше 10","Сумки, переноски та посуд для подорожей з собаками",227.75,0,0,0]
[null,1111188401,"PR740788/31К","СКОЛ Декорація Природа Дві колоди з амфорою для акваріума 23х23 см","Менше 10","Декорації для акваріума",274.56,0,0,0]
[null,1111193340,"PR740826","СКОЛ ЕМАЛІ Годівничка-поїлка Природа для гризунів 10x6см","Менше 10","Обладнання для гризунів",79.02,0,0,0]
[null,1111193037,"PR740159","ТЕРМ 04.26 БИТ Ласощі Природа Десерт мікс Асорт гриз шар/труб/тарт 70г","Більше 10","Ласощі для гризунів",14.46,0,0,{"$f":"G40*I40","v":0}]
[null,1111193204,"PR740060","ТЕРМ 07.27 БИТ Мінерал Природа Фієста Максі д/птахів мультифрукт 124г","Менше 10","Вітаміни та мінерали для птахів",15.09,0,0,0]
[null,1111190455,"PR740094","ТЕРМ 07.27 ПОРВ Корм Природа Супермікс для яскраво-забарвлених риб 10г","Менше 10","Корм сухий для акваріумних риб",4.9000000000000004,0,0,0]
[null,1111187254,"PR740159","ТЕРМ 09.25, БИТІ Ласощі Природа Десерт  Асорті д/гриз  70г","Менше 10","Ласощі для гризунів",14.46,0,0,0]
[null,1111187161,"PR740013","ТЕРМ 09.26 БИТ  Мінерал Природа для  папуг зелене яблуко 18г","Менше 10","Вітаміни та мінерали для птахів",4.34,0,0,0]
[null,1111193441,"PR740117","ТЕРМ 10.26 ПОРВ  Корм Природа Аквабазіс для акваріумних риб 10г","Менше 10","Корм сухий для акваріумних риб",5.13,0,0,0]
[null,1111187147,"PR740061","ТЕРМ. 01.27 БИТ. Мінерал Природа Фієста Максі для гризунів бурячок 18г","Менше 10","Вітаміни та мінерали для гризунів",16.059999999999999,0,0,0]
[null,1111187125,"PR740063","ТЕРМ. 01.27 БИТ. Мінерал Природа Фієста Максі для гризунів мюслі 18г","Менше 10","Вітаміни та мінерали для гризунів",14.38,0,0,0]
[null,1111187155,"PR740060","ТЕРМ. 01.27 БИТ. Мінерал Природа Фієста Максі для птахів мультиф 124г","Менше 10","Вітаміни та мінерали для птахів",14.38,0,0,0]
[null,1111187133,"PR740063","ТЕРМ. 02.26 БИТ. Мінерал Природа Фієста Максі для гризунів мюслі 18г","Менше 10","Вітаміни та мінерали для гризунів",14.38,0,0,0]
[null,1111191714,"PR740159","ТЕРМ. 02.26, БИТ. Ласощі Природа ДесертМіксАсорт гриз шар/труб/тарт 70","Менше 10","Ласощі для гризунів",14.46,0,0,0]
[null,1111187127,"PR740063","ТЕРМ. 02.27 БИТ. Мінерал Природа Фієста Максі для гризунів мюслі 18г","Менше 10","Вітаміни та мінерали для гризунів",14.38,0,0,0]
[null,1111187142,"PR740061","ТЕРМ. 03.26 БИТ. Мінерал Природа Фієста Максі для гризунів бурячок 18г","Менше 10","Вітаміни та мінерали для гризунів",16.059999999999999,0,0,0]
[null,1111187129,"PR740063","ТЕРМ. 03.26 БИТ. Мінерал Природа Фієста Максі для гризунів мюслі 18г","Менше 10","Вітаміни та мінерали для гризунів",14.38,0,0,0]
[null,1111187150,"PR740060","ТЕРМ. 03.26 БИТ. Мінерал Природа Фієста Максі для птахів мультиф 124г","Менше 10","Вітаміни та мінерали для птахів",14.38,0,0,0]
[null,1111187144,"PR740061","ТЕРМ. 03.27 БИТ. Мінерал Природа Фієста Максі для гризунів бурячок 18г","Менше 10","Вітаміни та мінерали для гризунів",16.059999999999999,0,0,0]
[null,1111187148,"PR740060","ТЕРМ. 03.27 БИТ.Мінерал Природа Фієста Максі для птахів мультиф 124г","Менше 10","Вітаміни та мінерали для птахів",15.12,0,0,0]
[null,1111187145,"PR740061","ТЕРМ. 04.27 БИТ. Мінерал Природа Фієста Максі для гризунів бурячок 18г","Менше 10","Вітаміни та мінерали для гризунів",16.059999999999999,0,0,0]
[null,1111187131,"PR740063","ТЕРМ. 06.26 БИТ. Мінерал Природа Фієста Максі для гризунів мюслі 18г","Менше 10","Вітаміни та мінерали для гризунів",14.38,0,0,0]
[null,1111187997,"PR740063","ТЕРМ. 06.27, БИТ. Мінерал Природа Фієста Максі гризун/мюслі 124г","Менше 10","Вітаміни та мінерали для гризунів",15.12,0,0,0]
[null,1111187166,"PR740758","ТЕРМ. 07.25, НЕТОВ. ВИГЛ. Ласощі Природа д/папуг чумиза натуральна 25г","Менше 10","Ласощі для птахів",27.67,0,0,0]
[null,1111187134,"PR740063","ТЕРМ. 07.26 БИТ. Мінерал Природа Фієста Максі для гризунів мюслі 18г","Менше 10","Вітаміни та мінерали для гризунів",14.38,0,0,0]
[null,1111187143,"PR740061","ТЕРМ. 07.27 БИТ.Мінерал Природа Фієста Максі для гризунів бурячок 18г","Менше 10","Вітаміни та мінерали для гризунів",16.86,0,0,0]
[null,1111187106,"PR740062","ТЕРМ. 08.26 БИТ. Мінерал Природа Фієста Максі  каротин та трави 124г","Менше 10","Вітаміни та мінерали для гризунів",16.059999999999999,0,0,0]
[null,1111187141,"PR740061","ТЕРМ. 08.26 БИТ. Мінерал Природа Фієста Максі для гризунів бурячок 18г","Менше 10","Вітаміни та мінерали для гризунів",16.059999999999999,0,0,0]
[null,1111187153,"PR740060","ТЕРМ. 08.26 БИТ. Мінерал Природа Фієста Максі для птахів мультиф 124г","Менше 10","Вітаміни та мінерали для птахів",14.38,0,0,0]
[null,1111187140,"PR740061","ТЕРМ. 09.26 БИТ. Мінерал Природа Фієста Максі для гризунів бурячок 18г","Менше 10","Вітаміни та мінерали для гризунів",16.059999999999999,0,0,0]
[null,1111187124,"PR740063","ТЕРМ. 09.26 БИТ. Мінерал Природа Фієста Максі для гризунів мюслі 18г","Менше 10","Вітаміни та мінерали для гризунів",14.38,0,0,0]
[null,1111187152,"PR740060","ТЕРМ. 09.26 БИТ. Мінерал Природа Фієста Максі для птахів мультиф 124г","Менше 10","Вітаміни та мінерали для птахів",15.12,0,0,0]
[null,1111187103,"PR740062","ТЕРМ. 09.26 БИТ. Мінерал Природа Фієста Максі каротин та трави 124г","Менше 10","Вітаміни та мінерали для гризунів",16.059999999999999,0,0,0]
[null,1111187128,"PR740063","ТЕРМ. 10.25 БИТ. Мінерал Природа Фієста Максі для гризунів мюслі 18г","Менше 10","Вітаміни та мінерали для гризунів",14.38,0,0,0]
[null,1111189173,"PR740159","ТЕРМ. 10.25, БИТ Ласощі Природа Десерт мікс Асорті д/гриз.кул/труб/","Менше 10","Ласощі для гризунів",14.46,0,0,0]
[null,1111187105,"PR740062","ТЕРМ. 10.26 БИТ. Мінерал Природа Фієста Максі  каротин та трави 124г","Менше 10","Вітаміни та мінерали для гризунів",16.059999999999999,0,0,{"$f":"G72*I72","v":0}]
[null,1111187151,"PR740060","ТЕРМ. 10.26 БИТ. Мінерал Природа Фієста Максі для птахів мультиф 124г","Менше 10","Вітаміни та мінерали для птахів",15.12,0,0,0]
[null,1111187139,"PR740061","ТЕРМ. 10.26 БИТ.Мінерал Природа Фієста Максі для гризунів бурячок 18г","Менше 10","Вітаміни та мінерали для гризунів",16.059999999999999,0,0,0]
[null,1111187104,"PR740062","ТЕРМ. 11.25 БИТ. Мінерал Природа Фієста Максі  каротин та трави 124г","Менше 10","Вітаміни та мінерали для гризунів",16.059999999999999,0,0,0]
[null,1111187137,"PR740061","ТЕРМ. 11.25 БИТ. Мінерал Природа Фієста Максі для гризунів бурячок 18г","Менше 10","Вітаміни та мінерали для гризунів",16.059999999999999,0,0,0]
[null,1111187138,"PR740061","ТЕРМ. 12.26 БИТ. Мінерал Природа Фієста Максі для гризунів бурячок 18г","Менше 10","Вітаміни та мінерали для гризунів",16.059999999999999,0,0,0]
[null,1111187154,"PR740060","ТЕРМ. 12.26 БИТ. Мінерал Природа Фієста Максі для птахів мультиф 124г","Менше 10","Вітаміни та мінерали для птахів",14.38,0,0,0]
[null,1111187102,"PR740062","ТЕРМ. 12.27 БИТ.Мінерал Природа Фієста Максі каротинта трави 124г","Більше 10","Вітаміни та мінерали для гризунів",16.059999999999999,0,0,0]
[null,1111174669,"PR242772*****","Толстовка ROLLIE XS2","Менше 10","Одяг для собак",497.29,671.34,0,0]
[null,1111182750,"PR243705","Туалет з сіточкою Том сірий","Більше 100","Туалети для котів",60,80,0,0]

{"sheet":"Профілайн","index":50,"n_rows":17,"n_cols":10,"rows_kept":17,"cut":false,"hidden":false,"merged":[]}
[]
[null,null,null,null,null,null,"suziria.ua"]
[null,null,null,null,null,null,"0 800 21 82 99"]
[null,null,null,null,null,null,"feedback@suziria.ua"]
[]
["Зображення","Код","Артикул","Номенклатура","Наявність","Категорія","Ціна опт.","Ціна РРЦ","Замовлення, шт.","Сума, грн."]
[null,null,null,null,null,null,null,null,null,{"$f":"SUM(J8:J17)","v":0}]
[null,1111196646,"PR242205","БИТ. Шампунь Provet ПРОФІЛАЙН для котів глибоке очищення з алое 300мл","Менше 10","Догляд та гігієна для котів",48.54,0,0,{"$f":"G8*I8","v":0}]
[null,1111192302,"PR242204","ТЕРМ 03.27 БИТ Шамп.Provet Профіл.д/соб. з білою та світ. шерстю 300мл","Менше 10","Догляд та гігієна для собак",48.54,0,0,0]
[null,1111196979,"PR242201","ТЕРМ 03.27 БИТ Шампунь Provet ПРОФІЛАЙН д/тхорів/гриз.300мл","Менше 10","Догляд та гігієна для тхорів",55.56,0,0,0]
[null,1111196974,"PR242199","ТЕРМ 03.27 БИТ Шампунь Provet ПРОФІЛАЙН для кошенят з ромашкою 300мл","Менше 10","Догляд та гігієна для котів",55.26,0,0,0]
[null,1111202733,"PR242206","ТЕРМ 07.27 БИТ ДОЗ Шампунь PROVET Профілайн д/соб.гіпоалергенний 300мл","Менше 10","Догляд та гігієна для собак",48.54,0,0,0]
[null,1111201386,"PR242205","ТЕРМ 07.27 БИТ Шам.PROVET Профілайн д/кот. глиб. очищення з алое 300мл","Менше 10","Догляд та гігієна для котів",48.54,0,0,0]
[null,1111204277,"PR242205","ТЕРМ 09.27 БИТ ДОЗ Шамп.PROVET Профілайн глибоке очищення з алое 300мл","Менше 10","Догляд та гігієна для котів",48.54,0,0,0]
[null,1111192508,"PR242205","ТЕРМ. 03.27 БИТ.ДОЗАТ. Шампунь Provet ПРОФІЛАЙН кот глиб/очищ алое 300","Менше 10","Догляд та гігієна для котів",48.54,0,0,0]
[null,1111196986,"PR242208","ТЕРМ.03.27 БИТ ШампProvet ПРОФІЛАЙН для собак антибактер. 300мл","Менше 10","Догляд та гігієна для собак",48.54,0,0,0]
[null,1111196088,"PR242204","ТЕРМ.03.27ПОШК.ПАК Шампунь Provet ПРОФІЛАЙН д/соб з біл/світ шер300мл","Менше 10","Догляд та гігієна для собак",48.54,0,0,0]

{"sheet":"Стоп","index":51,"n_rows":8,"n_cols":10,"rows_kept":8,"cut":false,"hidden":false,"merged":[]}
[]
[null,null,null,null,null,null,"suziria.ua"]
[null,null,null,null,null,null,"0 800 21 82 99"]
[null,null,null,null,null,null,"feedback@suziria.ua"]
[]
["Зображення","Код","Артикул","Номенклатура","Наявність","Категорія","Ціна опт.","Ціна РРЦ","Замовлення, шт.","Сума, грн."]
[null,null,null,null,null,null,null,null,null,{"$f":"SUM(J8:J8)","v":0}]
[null,1111193878,"PR241914_1уп.(2табл.)","ТЕРМ 05.25 Таб. Provet МОКСІСТОП МІДІ д/соб. 4/10кг антиг. 2штх120мг","Більше 100","Антипаразитарні препарати для собак",59.76,0,0,{"$f":"G8*I8","v":0}]

{"sheet":"Загальне замовлення","index":52,"n_rows":554,"n_cols":10,"rows_kept":554,"cut":false,"hidden":false,"merged":[]}
[]
[null,null,null,null,null,null,"suziria.ua"]
[null,null,null,null,null,null,"0 800 21 82 99"]
[null,null,null,null,null,null,"feedback@suziria.ua"]
[]
["Зображення","Код","Артикул","Номенклатура","Наявність","Категорія","Ціна опт.","Ціна РРЦ","Замовлення, шт.","Сума, грн."]
[null,null,null,null,null,null,null,null,null,{"$f":"SUM(J8:J554)","v":1726.63}]
[null,1111161986,"680432/ 983121 USA*****","Засіб 8in1 Nature_s Miracle для собак освіжаючий спрей 236 мл","Менше 10","Догляд та гігієна для собак",312.97000000000003,456,{"$f":"'8in1'!I$8","v":1},{"$f":"'8in1'!J$8","v":312.97000000000003}]
[null,1111136564,"680493USA","Засіб д/прання 8in1 для усунення плям та запахів NM Laundry BOOst In-W","Більше 10","Засоби для догляду за будинком з собаками",545.4,845,{"$f":"'8in1'!I$9","v":0},{"$f":"'8in1'!J$9","v":0}]
[null,1111206130,"680432/ 983121 USA*****","ТЕРМ 06.26 НЕ ТОВ ВИД Засіб 8in1 Nature_s Miracle освіж.спрей 236мл","Менше 10","Догляд та гігієна для собак",156.54,0,{"$f":"'8in1'!I$10","v":0},{"$f":"'8in1'!J$10","v":0}]
[null,1111203646,"680284 /5778  USA****","ТЕРМ. 07.25 8in1 NM JFC No Scratch Deter Spray від дряпання 236мл","Менше 10","Корекція поведінки для котів",194.22,0,{"$f":"'8in1'!I$11","v":0},{"$f":"'8in1'!J$11","v":0}]
[null,1111196248,"680286 /5780 USA","ТЕРМ.06.25 8in1 NM JFC Calming Spray д/кот заспок спр236мл","Більше 100","Корекція поведінки для котів",211.8,0,{"$f":"'8in1'!I$12","v":0},{"$f":"'8in1'!J$12","v":0}]
[null,1111171470,"AM-83261","Vom Feinsten Adult with Chicken Salmon filet Spinach кіт курк/лос 100г","Більше 10","Корм вологий для котів",45.96,65,{"$f":"Animonda!I$8","v":0},{"$f":"Animonda!J$8","v":0}]
[null,1111195997,"AM-83306","ТЕРМ. 04.26, ПОМ_ЯТ. Vom Feinsten Adult with Chicken Seafood кот 100г","Більше 10","Корм вологий для котів",21.66,0,{"$f":"Animonda!I$9","v":0},{"$f":"Animonda!J$9","v":0}]
[null,1111190207,"AM-83261","ТЕРМ. 11.25 ПОМЯТ Vom Feinsten Adult Chicken Salmon filet Spinach 100г","Більше 10","Корм вологий для котів",21.66,0,{"$f":"Animonda!I$10","v":0},{"$f":"Animonda!J$10","v":0}]
[null,1111165579,"234/446218*****","Декорація AquaDella для акваріума Корал-Гілка плоска 19х6х21 см","Менше 10","Декорації для акваріума",472.44,937,{"$f":"AquaDella!I$8","v":0},{"$f":"AquaDella!J$8","v":0}]
[null,1111166111,"251/110041*****","Декорація AquaDella для акваріума натур корч Мангове Дерево 600-800мм","Менше 10","Декорації для акваріума",1418.07,2707,{"$f":"AquaDella!I$9","v":0},{"$f":"AquaDella!J$9","v":0}]
[null,1111165587,"251/110034*****","Декорація AquaDella для акваріума натуральний корч Манго 300-500 мм","Менше 10","Декорації для акваріума",1088.6500000000001,2441,{"$f":"AquaDella!I$10","v":0},{"$f":"AquaDella!J$10","v":0}]
[null,1111144307,"114579****","Модуль Aquael освітлювальний Retrofit LED Actinic 16Вт 85-90см","Менше 10","Освітлення для акваріумів",2416.19,3503,{"$f":"Aquael!I$8","v":0},{"$f":"Aquael!J$8","v":0}]
[null,1111190417,"102369 /3070","НЕ ТРИМ. КОРПУС Фільтр Aquael д/аквар. Fan-2 Plus 450л/год на 100-150л","Менше 10","Фільтри для акваріумів",552.84,0,{"$f":"Aquael!I$9","v":0},{"$f":"Aquael!J$9","v":0}]
[null,1111192800,"107621 /3067","НЕКОМПЛ. Фільтр Aquael д/акваріума FAN-mikro Plus 250л/год на 30л","Менше 10","Фільтри для акваріумів",339.21,0,{"$f":"Aquael!I$10","v":0},{"$f":"Aquael!J$10","v":0}]
[null,1111204485,"102369 /3070","ПІСЛЯ РЕМОНТУ Фільтр Aquael внутрішній Fan-2 Plus 450л/год на 100-150л","Менше 10","Фільтри для акваріумів",552.84,0,{"$f":"Aquael!I$11","v":0},{"$f":"Aquael!J$11","v":0}]
[null,1111192365,"131304/246274","ПОРВ. Ґрунт Aquael для акваріума гравій доломітовий 2-4мм 10кг","Менше 10","Грунти для акваріума",229.92,0,{"$f":"Aquael!I$12","v":0},{"$f":"Aquael!J$12","v":0}]
[null,1111178550,"129896_ord","Фільтр-скімер Aquael поверхневий SAS FILTER 500","Менше 10","Обладнання для акваріума",1084.6199999999999,1663,{"$f":"Aquael!I$13","v":1},{"$f":"Aquael!J$13","v":1084.6199999999999}]
[null,1111192791,"Х009/14851","ВИРОБН. БРАК СКЛА Акваріум круглий 22х26см 9 л","Менше 10","Акваріуми та акваріумні комплекти",414.84,0,{"$f":"'Aquarium Ukr'!I$8","v":0},{"$f":"'Aquarium Ukr'!J$8","v":0}]
[null,1111169190,"BS5108*****","Наповнювач Benty Sandy для котячого туалету бентоніт 0,60-2,38 мм 5л","Більше 10","Наповнювачі для котячих туалетів",303.66000000000003,395,{"$f":"'Benty Sandy'!I$8","v":1},{"$f":"'Benty Sandy'!J$8","v":303.66000000000003}]
[null,1111189255,"G-75.65","ВАГА 4.7 КГ,Наповн.Biokats д/кот/туал. Bianc Fresh бент.0,25/5,0мм 5кг","Менше 10","Наповнювачі для котячих туалетів",214.86,0,{"$f":"Biokats!I$8","v":0},{"$f":"Biokats!J$8","v":0}]
[null,1111186993,"G-75.65","ПОРВ. Наповнювач Biokats д/кот Bianco Fresh бентонітов 0,25/5,0мм 5кг","Менше 10","Наповнювачі для котячих туалетів",214.86,0,{"$f":"Biokats!I$9","v":0},{"$f":"Biokats!J$9","v":0}]
[null,1111194894,"G-75.64","ПОРВ. Наповнювач Biokats кот/туал Bianco Fresh бент 0,25/5,0мм 10кг","Менше 10","Наповнювачі для котячих туалетів",378.42,0,{"$f":"Biokats!I$10","v":0},{"$f":"Biokats!J$10","v":0}]
[null,1111188514,172651,"БЕЗ ТЕРМ. Brit Care Hypoallergenic Small Breed соб/мал ягня 7кг","Немає в наявності","Корм сухий для собак",968.28,0,{"$f":"'Brit Care'!I$8","v":0},{"$f":"'Brit Care'!J$8","v":0}]
[null,1111202581,"111264/1388","ТЕРМ 07.25  Brit Care Cat Snack Shiny Hair лас. шкіра/шерсть лос. 50г","Менше 10","Ласощі для котів",40.5,0,{"$f":"'Brit Care'!I$9","v":0},{"$f":"'Brit Care'!J$9","v":0}]
[null,1111198728,"171285/0723","ТЕРМ. 05.25.Brit Care Cat Sterilized д/стерліз/котів  курка 7кг","Немає в наявності","Корм сухий для котів",1144.2,0,{"$f":"'Brit Care'!I$10","v":0},{"$f":"'Brit Care'!J$10","v":0}]
[null,1111198134,"100914/100219/4449","ТЕРМ. 07.25  Brit Care Mini філе соус дор/соб/мал лосось/оселедець 85г","Більше 10","Корм вологий для собак",25.38,0,{"$f":"'Brit Care'!I$11","v":0},{"$f":"'Brit Care'!J$11","v":0}]
[null,1111199834,"171311/0921","ТЕРМ. 07.25 Brit Care Cat Large Power Vitality кот/вел качк/курка 400г","Більше 10","Корм сухий для котів",90.84,0,{"$f":"'Brit Care'!I$12","v":0},{"$f":"'Brit Care'!J$12","v":0}]
[null,1111200257,"171299/0839","ТЕРМ. 07.25 Корм сухий Brit Care Cat Grain Free Adult Activity Support","Менше 10","Корм сухий для котів",90.84,0,{"$f":"'Brit Care'!I$13","v":0},{"$f":"'Brit Care'!J$13","v":0}]
[null,1111199599,"111263/1371","ТЕРМ. 07.25 Функціональні ласощі Brit Care Cat Snack Dental для котів ","Менше 10","Ласощі для котів",42.12,0,{"$f":"'Brit Care'!I$14","v":0},{"$f":"'Brit Care'!J$14","v":0}]
[null,1111202086,"100528/0501","ТЕРМ. 08.25 Brit Care Cat Pouch філе в соусі індичка/лосось 85г","Менше 10","Корм вологий для котів",21.66,0,{"$f":"'Brit Care'!I$15","v":0},{"$f":"'Brit Care'!J$15","v":0}]
[null,1111200453,"100915/100220/4456","ТЕРМ. 08.25 Brit Care Mini філе в соусі доросл/собак/малих дичина 85г","Більше 10","Корм вологий для собак",25.38,0,{"$f":"'Brit Care'!I$16","v":1},{"$f":"'Brit Care'!J$16","v":25.38}]
[null,1111201855,"101115/2844","ТЕРМ. 08.25 Care Brit лососева олія вітаміни/соб покр/шерст/шкіра 250г","Менше 10","Вітаміни для собак",312.36,0,{"$f":"'Brit Care'!I$17","v":0},{"$f":"'Brit Care'!J$17","v":0}]
[null,1111186997,200260018,"ПОРВ. Наповнювач Brit Fresh д/котяч/туалету Excellent бентоніт 5кг","Менше 10","Наповнювачі для котячих туалетів",133.62,0,{"$f":"'Brit Fresh'!I$8","v":0},{"$f":"'Brit Fresh'!J$8","v":0}]
[null,1111194192,"170990/0748","ТЕРМ. 05.25 Brit Fresh Chicken/Potato дор/соб/всіх курк/картопл 2,5кг","Менше 10","Корм сухий для собак",326.39999999999998,0,{"$f":"'Brit Fresh'!I$9","v":0},{"$f":"'Brit Fresh'!J$9","v":0}]
[null,1111200264,"111250/524*****","ТЕРМ 07.25 Brit Premium Cat Chicken Fillets Gravy pouch курка/соус 85г","Менше 10","Корм вологий для котів",15.12,0,{"$f":"'Brit Premium'!I$8","v":0},{"$f":"'Brit Premium'!J$8","v":0}]
[null,1111194826,171843,"ТЕРМ. 05.25 Brit Premium Cat by Nature Adult Chicken дор/кот курк 300г","Більше 10","Корм сухий для котів",49.02,0,{"$f":"'Brit Premium'!I$9","v":0},{"$f":"'Brit Premium'!J$9","v":0}]
[null,1111194838,171845,"ТЕРМ. 05.25 Brit Premium Cat by Nature Indoor дор/домаш/кот курка 300г","Менше 10","Корм сухий для котів",45.9,0,{"$f":"'Brit Premium'!I$10","v":0},{"$f":"'Brit Premium'!J$10","v":0}]
[null,1111196789,171843,"ТЕРМ. 06.25 Brit Premium Cat by Nature Adult Chicken дор/кот курк 300г","Менше 10","Корм сухий для котів",49.02,0,{"$f":"'Brit Premium'!I$11","v":0},{"$f":"'Brit Premium'!J$11","v":0}]
[null,1111196201,171844,"ТЕРМ. 06.25 Brit Premium Cat by Nature Adult Salmon лосось 300г","Менше 10","Корм сухий для котів",50.58,0,{"$f":"'Brit Premium'!I$12","v":0},{"$f":"'Brit Premium'!J$12","v":0}]
[null,1111196200,171845,"ТЕРМ. 06.25 Brit Premium Cat by Nature Indoor дор/домаш/кот курка 300г","Більше 10","Корм сухий для котів",45.9,0,{"$f":"'Brit Premium'!I$13","v":0},{"$f":"'Brit Premium'!J$13","v":0}]
[null,1111196790,171849,"ТЕРМ. 06.25 Корм сухий Brit Premium by Nature Cat Sensitive для котів ","Менше 10","Корм сухий для котів",50.58,0,{"$f":"'Brit Premium'!I$14","v":0},{"$f":"'Brit Premium'!J$14","v":0}]
[null,1111198796,171849,"ТЕРМ. 07.25 Brit Premium by Nature Cat Sensitive чут/трав ягн 300г","Менше 10","Корм сухий для котів",50.58,0,{"$f":"'Brit Premium'!I$15","v":0},{"$f":"'Brit Premium'!J$15","v":0}]
[null,1111199921,"111241/470*****","ТЕРМ. 07.25 Brit Premium Cat Beef Fillets Jelly pouch ялович/желе 85г","Менше 10","Корм вологий для котів",15.12,0,{"$f":"'Brit Premium'!I$16","v":0},{"$f":"'Brit Premium'!J$16","v":0}]
[null,1111200268,"170809/6284","ТЕРМ. 07.25 Brit Premium Dog Adult S соб/дрібн вага 1-10кг курка 1кг","Більше 10","Корм сухий для собак",125.04,0,{"$f":"'Brit Premium'!I$17","v":0},{"$f":"'Brit Premium'!J$17","v":0}]
[null,1111200101,"111252/548*****","ТЕРМ. 07.25 Корм вологий Brit Premium Cat Tuna Fillets Gravy pouch для","Більше 10","Корм вологий для котів",15.12,0,{"$f":"'Brit Premium'!I$18","v":0},{"$f":"'Brit Premium'!J$18","v":0}]
[null,1111200768,"111241/470*****","ТЕРМ. 08.25 Brit Premium Cat Beef Fillets Jelly pouch ялович/желе 85г","Більше 10","Корм вологий для котів",15.12,0,{"$f":"'Brit Premium'!I$19","v":0},{"$f":"'Brit Premium'!J$19","v":0}]
[null,1111201287,171843,"ТЕРМ. 08.25 Brit Premium Cat by Nature Adult Chicken дор/кот курк 300г","Більше 10","Корм сухий для котів",49.02,0,{"$f":"'Brit Premium'!I$20","v":0},{"$f":"'Brit Premium'!J$20","v":0}]
[null,1111202389,"111243/494*****","ТЕРМ. 08.25 Brit Premium Cat Trout Fillets Jelly pouch форель/желе 85г","Більше 10","Корм вологий для котів",15.12,0,{"$f":"'Brit Premium'!I$21","v":0},{"$f":"'Brit Premium'!J$21","v":0}]
[null,1111202943,"170815/6345","ТЕРМ. 08.25 Brit Premium Dog Adult M собак/середніх 10-25кг курка 1кг","Менше 10","Корм сухий для собак",95.22,0,{"$f":"'Brit Premium'!I$22","v":0},{"$f":"'Brit Premium'!J$22","v":0}]
[null,1111194047,"170958/528332","ТЕРМ. 05.25 Brit GF VetDiet Cat Renal захворюван/нирок яйце/горох 400г","Менше 10","Корм сухий для котів",105.36,0,{"$f":"'Brit VetDiets'!I$8","v":0},{"$f":"'Brit VetDiets'!J$8","v":0}]
[null,1111194207,"170970/528530","ТЕРМ. 05.25 Brit VetDiet Cat Diabetes цукров/діабет курка/горох 400г","Менше 10","Корм сухий для котів",97.92,0,{"$f":"'Brit VetDiets'!I$9","v":0},{"$f":"'Brit VetDiets'!J$9","v":0}]
[null,1111183003,"PR243821*****","Accessory Bat S-М for dogs","Більше 10",null,160.86000000000001,0,{"$f":"'Buddy Boo'!I$8","v":0},{"$f":"'Buddy Boo'!J$8","v":0}]
[null,1111183004,"PR243826*****","Accessory Bat XS-XS2  for dogs","Більше 10",null,155.63999999999999,0,{"$f":"'Buddy Boo'!I$9","v":0},{"$f":"'Buddy Boo'!J$9","v":0}]
[null,1111183005,"PR243829*****","Accessory Devil M-L red for dogs","Більше 10",null,184.62,0,{"$f":"'Buddy Boo'!I$10","v":0},{"$f":"'Buddy Boo'!J$10","v":0}]
[null,1111183006,"PR243832*****","Accessory Devil red XS-S for dogs","Більше 10",null,170.94,0,{"$f":"'Buddy Boo'!I$11","v":0},{"$f":"'Buddy Boo'!J$11","v":0}]
[null,1111182995,"PR243822*****","Accessory Spider S-M for dogs","Більше 10",null,162.18,0,{"$f":"'Buddy Boo'!I$12","v":0},{"$f":"'Buddy Boo'!J$12","v":0}]
[null,1111182996,"PR243820*****","Accessory Spider XS-XS2 for dogs","Більше 10",null,150.54,0,{"$f":"'Buddy Boo'!I$13","v":0},{"$f":"'Buddy Boo'!J$13","v":0}]
[null,1111182539,"PR243729*****","Bandana Jack M-L for dogs","Більше 10",null,0,0,{"$f":"'Buddy Boo'!I$14","v":0},{"$f":"'Buddy Boo'!J$14","v":0}]
[null,1111182540,"PR243728*****","Bandana Jack XS-S for dogs","Більше 10",null,0,0,{"$f":"'Buddy Boo'!I$15","v":0},{"$f":"'Buddy Boo'!J$15","v":0}]
[null,1111182207,"PR243668*****","Cardigan Garcia  S","Більше 10",null,0,0,{"$f":"'Buddy Boo'!I$16","v":0},{"$f":"'Buddy Boo'!J$16","v":0}]
[null,1111182206,"PR243669*****","Cardigan Garcia  М","Більше 10",null,0,0,{"$f":"'Buddy Boo'!I$17","v":0},{"$f":"'Buddy Boo'!J$17","v":0}]
[null,1111182209,"PR243666*****","Cardigan Garcia ХS","Більше 10",null,0,0,{"$f":"'Buddy Boo'!I$18","v":0},{"$f":"'Buddy Boo'!J$18","v":0}]
[null,1111182208,"PR243667*****","Cardigan Garcia ХS2","Більше 10",null,0,0,{"$f":"'Buddy Boo'!I$19","v":0},{"$f":"'Buddy Boo'!J$19","v":0}]
[null,1111182550,"PR243718*****","Hat Teddy S for dogs","Менше 10",null,217.68,393,{"$f":"'Buddy Boo'!I$20","v":0},{"$f":"'Buddy Boo'!J$20","v":0}]
[null,1111182549,"PR243719*****","Hat Teddy XS for dogs","Менше 10",null,245.82,443,{"$f":"'Buddy Boo'!I$21","v":0},{"$f":"'Buddy Boo'!J$21","v":0}]
[null,1111182551,"PR243717*****","Hat Teddy М for dogs","Менше 10",null,259.08,467,{"$f":"'Buddy Boo'!I$22","v":0},{"$f":"'Buddy Boo'!J$22","v":0}]
[null,1111182547,"PR243721*****","Hat Valley S for dogs","Менше 10",null,162.30000000000001,293,{"$f":"'Buddy Boo'!I$23","v":0},{"$f":"'Buddy Boo'!J$23","v":0}]
[null,1111182546,"PR243722*****","Hat Valley М for dogs","Менше 10",null,169.68,306,{"$f":"'Buddy Boo'!I$24","v":0},{"$f":"'Buddy Boo'!J$24","v":0}]
[null,1111182548,"PR243720*****","Hat Valley ХS for dogs","Менше 10",null,151.91999999999999,274,{"$f":"'Buddy Boo'!I$25","v":0},{"$f":"'Buddy Boo'!J$25","v":0}]
[null,1111182240,"PR243635*****","Hoodie  Snoody gray S","Більше 10",null,379.56,0,{"$f":"'Buddy Boo'!I$26","v":0},{"$f":"'Buddy Boo'!J$26","v":0}]
[null,1111182241,"PR243634*****","Hoodie  Snoody gray SМ","Більше 10",null,0,0,{"$f":"'Buddy Boo'!I$27","v":0},{"$f":"'Buddy Boo'!J$27","v":0}]
[null,1111182238,"PR243637*****","Hoodie  Snoody gray М","Менше 10",null,0,0,{"$f":"'Buddy Boo'!I$28","v":0},{"$f":"'Buddy Boo'!J$28","v":0}]
[null,1111182239,"PR243636*****","Hoodie  Snoody gray М2","Більше 10",null,0,0,{"$f":"'Buddy Boo'!I$29","v":0},{"$f":"'Buddy Boo'!J$29","v":0}]
[null,1111182236,"PR243639*****","Hoodie  Snoody red S","Менше 10",null,380.46,0,{"$f":"'Buddy Boo'!I$30","v":0},{"$f":"'Buddy Boo'!J$30","v":0}]
[null,1111182237,"PR243638*****","Hoodie  Snoody red SМ","Більше 10",null,0,0,{"$f":"'Buddy Boo'!I$31","v":0},{"$f":"'Buddy Boo'!J$31","v":0}]
[null,1111182234,"PR243641*****","Hoodie  Snoody red М","Менше 10",null,0,0,{"$f":"'Buddy Boo'!I$32","v":0},{"$f":"'Buddy Boo'!J$32","v":0}]
[null,1111182235,"PR243640*****","Hoodie  Snoody red М2","Більше 10",null,0,0,{"$f":"'Buddy Boo'!I$33","v":0},{"$f":"'Buddy Boo'!J$33","v":0}]
[null,1111182187,"PR243688*****","Hoodie girl Home   М","Більше 10",null,0,0,{"$f":"'Buddy Boo'!I$34","v":0},{"$f":"'Buddy Boo'!J$34","v":0}]
[null,1111182189,"PR243686*****","Hoodie girl Home  ХS2","Більше 10",null,0,0,{"$f":"'Buddy Boo'!I$35","v":0},{"$f":"'Buddy Boo'!J$35","v":0}]
[null,1111182193,"PR243682*****","Hoodie Woody  ХS2","Більше 10",null,0,0,{"$f":"'Buddy Boo'!I$36","v":0},{"$f":"'Buddy Boo'!J$36","v":0}]
[null,1111182230,"PR243645*****","Overall  Rain gray L","Більше 10",null,0,0,{"$f":"'Buddy Boo'!I$37","v":0},{"$f":"'Buddy Boo'!J$37","v":0}]
[null,1111182231,"PR243644*****","Overall  Rain gray M","Більше 10",null,465,0,{"$f":"'Buddy Boo'!I$38","v":0},{"$f":"'Buddy Boo'!J$38","v":0}]
[null,1111182232,"PR243643*****","Overall  Rain gray S","Більше 10",null,0,0,{"$f":"'Buddy Boo'!I$39","v":0},{"$f":"'Buddy Boo'!J$39","v":0}]
[null,1111182233,"PR243642*****","Overall  Rain gray XS","Більше 10",null,0,0,{"$f":"'Buddy Boo'!I$40","v":0},{"$f":"'Buddy Boo'!J$40","v":0}]
[null,1111182229,"PR243646*****","Overall  Rain gray ХL","Більше 10",null,0,0,{"$f":"'Buddy Boo'!I$41","v":0},{"$f":"'Buddy Boo'!J$41","v":0}]
[null,1111182225,"PR243650*****","Overall  Rain red L","Більше 10",null,0,0,{"$f":"'Buddy Boo'!I$42","v":0},{"$f":"'Buddy Boo'!J$42","v":0}]
[null,1111182226,"PR243649*****","Overall  Rain red M","Більше 10",null,486.3,0,{"$f":"'Buddy Boo'!I$43","v":0},{"$f":"'Buddy Boo'!J$43","v":0}]
[null,1111182227,"PR243648*****","Overall  Rain red S","Більше 10",null,0,0,{"$f":"'Buddy Boo'!I$44","v":0},{"$f":"'Buddy Boo'!J$44","v":0}]
[null,1111182228,"PR243647*****","Overall  Rain red XS","Більше 10",null,0,0,{"$f":"'Buddy Boo'!I$45","v":0},{"$f":"'Buddy Boo'!J$45","v":0}]
[null,1111182224,"PR243651*****","Overall  Rain red ХL","Більше 10",null,0,0,{"$f":"'Buddy Boo'!I$46","v":0},{"$f":"'Buddy Boo'!J$46","v":0}]
[null,1111182220,"PR243655*****","Overall Cold gray L","Менше 10",null,0,0,{"$f":"'Buddy Boo'!I$47","v":0},{"$f":"'Buddy Boo'!J$47","v":0}]
[null,1111182219,"PR243656*****","Overall Cold gray ХL","Більше 10",null,0,0,{"$f":"'Buddy Boo'!I$48","v":0},{"$f":"'Buddy Boo'!J$48","v":0}]
[null,1111182215,"PR243660*****","Overall Cold red L","Більше 10",null,0,0,{"$f":"'Buddy Boo'!I$49","v":0},{"$f":"'Buddy Boo'!J$49","v":0}]
[null,1111182216,"PR243659*****","Overall Cold red M","Більше 10",null,0,0,{"$f":"'Buddy Boo'!I$50","v":0},{"$f":"'Buddy Boo'!J$50","v":0}]
[null,1111182217,"PR243658*****","Overall Cold red S","Більше 10",null,0,0,{"$f":"'Buddy Boo'!I$51","v":0},{"$f":"'Buddy Boo'!J$51","v":0}]
[null,1111182218,"PR243657*****","Overall Cold red XS","Більше 10",null,0,0,{"$f":"'Buddy Boo'!I$52","v":0},{"$f":"'Buddy Boo'!J$52","v":0}]
[null,1111182214,"PR243661*****","Overall Cold red ХL","Більше 10",null,0,0,{"$f":"'Buddy Boo'!I$53","v":0},{"$f":"'Buddy Boo'!J$53","v":0}]
[null,1111182531,"PR243738*****","Overall girl Cherry L for dogs","Більше 10",null,0,0,{"$f":"'Buddy Boo'!I$54","v":0},{"$f":"'Buddy Boo'!J$54","v":0}]
[null,1111182534,"PR243735*****","Overall girl Cherry S for dogs","Менше 10",null,698.28,1260,{"$f":"'Buddy Boo'!I$55","v":0},{"$f":"'Buddy Boo'!J$55","v":0}]
[null,1111182530,"PR243739*****","Overall girl Cherry XL for dogs","Більше 10",null,0,0,{"$f":"'Buddy Boo'!I$56","v":0},{"$f":"'Buddy Boo'!J$56","v":0}]
[null,1111182532,"PR243737*****","Overall girl Cherry М for dogs","Менше 10",null,841.38,1518,{"$f":"'Buddy Boo'!I$57","v":0},{"$f":"'Buddy Boo'!J$57","v":0}]
[null,1111182541,"PR243727*****","Overall Сharlie L for dogs","Більше 10",null,0,0,{"$f":"'Buddy Boo'!I$58","v":0},{"$f":"'Buddy Boo'!J$58","v":0}]
[null,1111182543,"PR243725*****","Overall Сharlie S for dogs","Більше 10",null,0,0,{"$f":"'Buddy Boo'!I$59","v":0},{"$f":"'Buddy Boo'!J$59","v":0}]
[null,1111182542,"PR243726*****","Overall Сharlie М for dogs","Більше 10",null,0,0,{"$f":"'Buddy Boo'!I$60","v":0},{"$f":"'Buddy Boo'!J$60","v":0}]
[null,1111182545,"PR243723*****","Overall Сharlie ХS for dogs","Більше 10",null,0,0,{"$f":"'Buddy Boo'!I$61","v":0},{"$f":"'Buddy Boo'!J$61","v":0}]
[null,1111182544,"PR243724*****","Overall Сharlie ХS2 for dogs","Більше 10",null,0,0,{"$f":"'Buddy Boo'!I$62","v":0},{"$f":"'Buddy Boo'!J$62","v":0}]
[null,1111182176,"PR243699*****","Raincoat girl Tina  М","Більше 10",null,0,0,{"$f":"'Buddy Boo'!I$63","v":0},{"$f":"'Buddy Boo'!J$63","v":0}]
[null,1111182175,"PR243700*****","Raincoat girl Tina L","Більше 10",null,0,0,{"$f":"'Buddy Boo'!I$64","v":0},{"$f":"'Buddy Boo'!J$64","v":0}]
[null,1111182178,"PR243697*****","Raincoat girl Tina S","Більше 10",null,0,0,{"$f":"'Buddy Boo'!I$65","v":0},{"$f":"'Buddy Boo'!J$65","v":0}]
[null,1111182177,"PR243698*****","Raincoat girl Tina S2","Більше 10",null,0,0,{"$f":"'Buddy Boo'!I$66","v":0},{"$f":"'Buddy Boo'!J$66","v":0}]
[null,1111182174,"PR243701*****","Raincoat girl Tina XL","Більше 10",null,0,0,{"$f":"'Buddy Boo'!I$67","v":0},{"$f":"'Buddy Boo'!J$67","v":0}]
[null,1111182179,"PR243696*****","Raincoat girl Tina ХS","Більше 10",null,0,0,{"$f":"'Buddy Boo'!I$68","v":0},{"$f":"'Buddy Boo'!J$68","v":0}]
[null,1111182181,"PR243694*****","Raincoat Mustang L","Більше 10",null,0,0,{"$f":"'Buddy Boo'!I$69","v":0},{"$f":"'Buddy Boo'!J$69","v":0}]
[null,1111182185,"PR243690*****","Raincoat Mustang S","Більше 10",null,0,0,{"$f":"'Buddy Boo'!I$70","v":0},{"$f":"'Buddy Boo'!J$70","v":0}]
[null,1111182184,"PR243691*****","Raincoat Mustang S2","Більше 10",null,0,0,{"$f":"'Buddy Boo'!I$71","v":0},{"$f":"'Buddy Boo'!J$71","v":0}]
[null,1111182180,"PR243695*****","Raincoat Mustang XL","Більше 10",null,0,0,{"$f":"'Buddy Boo'!I$72","v":0},{"$f":"'Buddy Boo'!J$72","v":0}]
[null,1111182183,"PR243692*****","Raincoat Mustang М","Більше 10",null,0,0,{"$f":"'Buddy Boo'!I$73","v":0},{"$f":"'Buddy Boo'!J$73","v":0}]
[null,1111182182,"PR243693*****","Raincoat Mustang М2","Більше 10",null,0,0,{"$f":"'Buddy Boo'!I$74","v":0},{"$f":"'Buddy Boo'!J$74","v":0}]
[null,1111182186,"PR243689*****","Raincoat Mustang ХS","Більше 10",null,0,0,{"$f":"'Buddy Boo'!I$75","v":0},{"$f":"'Buddy Boo'!J$75","v":0}]
[null,1111182537,"PR243732*****","Sheepskin coat Black S for dogs","Менше 10",null,401.76,725,{"$f":"'Buddy Boo'!I$76","v":0},{"$f":"'Buddy Boo'!J$76","v":0}]
[null,1111182454,"PR243730*****","Sheepskin coat Black ХS for dogs","Менше 10",null,376.56,679,{"$f":"'Buddy Boo'!I$77","v":0},{"$f":"'Buddy Boo'!J$77","v":0}]
[null,1111182538,"PR243731*****","Sheepskin coat Black ХS2 for dogs","Менше 10",null,390.24,704,{"$f":"'Buddy Boo'!I$78","v":0},{"$f":"'Buddy Boo'!J$78","v":0}]
[null,1111184569,"PR243853*****","Suit  girl Alisa M","Більше 10",null,0,0,{"$f":"'Buddy Boo'!I$79","v":0},{"$f":"'Buddy Boo'!J$79","v":0}]
[null,1111184570,"PR243852*****","Suit  girl Alisa S","Більше 10",null,0,0,{"$f":"'Buddy Boo'!I$80","v":0},{"$f":"'Buddy Boo'!J$80","v":0}]
[null,1111184572,"PR243850*****","Suit  girl Alisa XS","Більше 10",null,0,0,{"$f":"'Buddy Boo'!I$81","v":0},{"$f":"'Buddy Boo'!J$81","v":0}]
[null,1111184571,"PR243851*****","Suit  girl Alisa XS2","Більше 10",null,0,0,{"$f":"'Buddy Boo'!I$82","v":0},{"$f":"'Buddy Boo'!J$82","v":0}]
[null,1111182205,"PR243670*****","Sweater  Fur ХS","Більше 10",null,0,0,{"$f":"'Buddy Boo'!I$83","v":0},{"$f":"'Buddy Boo'!J$83","v":0}]
[null,1111182195,"PR243680*****","Sweater  Happy XL","Більше 10",null,0,0,{"$f":"'Buddy Boo'!I$84","v":0},{"$f":"'Buddy Boo'!J$84","v":0}]
[null,1111182212,"PR243663*****","Sweater for cat Tim  S","Більше 10",null,224.34,0,{"$f":"'Buddy Boo'!I$85","v":0},{"$f":"'Buddy Boo'!J$85","v":0}]
[null,1111182211,"PR243664*****","Sweater for cat Tim  М","Більше 10",null,0,0,{"$f":"'Buddy Boo'!I$86","v":0},{"$f":"'Buddy Boo'!J$86","v":0}]
[null,1111182210,"PR243665*****","Sweater for cat Tim L","Більше 10",null,0,0,{"$f":"'Buddy Boo'!I$87","v":0},{"$f":"'Buddy Boo'!J$87","v":0}]
[null,1111182213,"PR243662*****","Sweater for cat Tim ХS","Більше 10",null,0,0,{"$f":"'Buddy Boo'!I$88","v":0},{"$f":"'Buddy Boo'!J$88","v":0}]
[null,1111182203,"PR243672*****","Sweater Fur  S","Більше 10",null,0,0,{"$f":"'Buddy Boo'!I$89","v":0},{"$f":"'Buddy Boo'!J$89","v":0}]
[null,1111182202,"PR243673*****","Sweater Fur  М","Більше 10",null,0,0,{"$f":"'Buddy Boo'!I$90","v":0},{"$f":"'Buddy Boo'!J$90","v":0}]
[null,1111182201,"PR243674*****","Sweater Fur L","Більше 10",null,0,0,{"$f":"'Buddy Boo'!I$91","v":0},{"$f":"'Buddy Boo'!J$91","v":0}]
[null,1111182204,"PR243671*****","Sweater Fur ХS2","Більше 10",null,0,0,{"$f":"'Buddy Boo'!I$92","v":0},{"$f":"'Buddy Boo'!J$92","v":0}]
[null,1111182196,"PR243679*****","Sweater Happy L","Більше 10",null,0,0,{"$f":"'Buddy Boo'!I$93","v":0},{"$f":"'Buddy Boo'!J$93","v":0}]
[null,1111182197,"PR243678*****","Sweater Happy M","Більше 10",null,0,0,{"$f":"'Buddy Boo'!I$94","v":0},{"$f":"'Buddy Boo'!J$94","v":0}]
[null,1111182199,"PR243676*****","Sweater Happy XS2","Більше 10",null,0,0,{"$f":"'Buddy Boo'!I$95","v":0},{"$f":"'Buddy Boo'!J$95","v":0}]
[null,1111182243,"PR243632*****","Vest E.Vest red L","Більше 10",null,0,0,{"$f":"'Buddy Boo'!I$96","v":0},{"$f":"'Buddy Boo'!J$96","v":0}]
[null,1111182245,"PR243630*****","Vest E.Vest red M","Більше 10",null,0,0,{"$f":"'Buddy Boo'!I$97","v":0},{"$f":"'Buddy Boo'!J$97","v":0}]
[null,1111182244,"PR243631*****","Vest E.Vest red M2","Більше 10",null,0,0,{"$f":"'Buddy Boo'!I$98","v":0},{"$f":"'Buddy Boo'!J$98","v":0}]
[null,1111182247,"PR243628*****","Vest E.Vest red S","Більше 10",null,410.94,0,{"$f":"'Buddy Boo'!I$99","v":0},{"$f":"'Buddy Boo'!J$99","v":0}]
[null,1111182246,"PR243629*****","Vest E.Vest red SМ","Більше 10",null,0,0,{"$f":"'Buddy Boo'!I$100","v":0},{"$f":"'Buddy Boo'!J$100","v":0}]
[null,1111182248,"PR243627*****","Vest E.Vest red XS","Більше 10",null,0,0,{"$f":"'Buddy Boo'!I$101","v":0},{"$f":"'Buddy Boo'!J$101","v":0}]
[null,1111182242,"PR243633*****","Vest E.Vest red ХL","Більше 10",null,0,0,{"$f":"'Buddy Boo'!I$102","v":0},{"$f":"'Buddy Boo'!J$102","v":0}]
[null,1111182250,"PR243625*****","Vest E.Vest sea wave L","Більше 10",null,0,0,{"$f":"'Buddy Boo'!I$103","v":0},{"$f":"'Buddy Boo'!J$103","v":0}]
[null,1111182252,"PR243623*****","Vest E.Vest sea wave M","Більше 10",null,0,0,{"$f":"'Buddy Boo'!I$104","v":0},{"$f":"'Buddy Boo'!J$104","v":0}]
[null,1111182251,"PR243624*****","Vest E.Vest sea wave M2","Більше 10",null,0,0,{"$f":"'Buddy Boo'!I$105","v":0},{"$f":"'Buddy Boo'!J$105","v":0}]
[null,1111182254,"PR243621*****","Vest E.Vest sea wave S","Більше 10",null,378.78,0,{"$f":"'Buddy Boo'!I$106","v":0},{"$f":"'Buddy Boo'!J$106","v":0}]
[null,1111182253,"PR243622*****","Vest E.Vest sea wave SМ","Більше 10",null,0,0,{"$f":"'Buddy Boo'!I$107","v":0},{"$f":"'Buddy Boo'!J$107","v":0}]
[null,1111182255,"PR243620*****","Vest E.Vest sea wave XS","Більше 10",null,0,0,{"$f":"'Buddy Boo'!I$108","v":0},{"$f":"'Buddy Boo'!J$108","v":0}]
[null,1111182249,"PR243626*****","Vest E.Vest sea wave ХL","Більше 10",null,0,0,{"$f":"'Buddy Boo'!I$109","v":0},{"$f":"'Buddy Boo'!J$109","v":0}]
[null,1111182257,"PR243618*****","Vest Y.Vest 2.0 3XL-4XL","Більше 10",null,387.48,0,{"$f":"'Buddy Boo'!I$110","v":0},{"$f":"'Buddy Boo'!J$110","v":0}]
[null,1111182256,"PR243619*****","Vest Y.Vest 2.0 5XL-6XL","Більше 10",null,424.8,0,{"$f":"'Buddy Boo'!I$111","v":0},{"$f":"'Buddy Boo'!J$111","v":0}]
[null,1111182259,"PR243616*****","Vest Y.Vest 2.0 M2-ML","Більше 10",null,349.08,0,{"$f":"'Buddy Boo'!I$112","v":0},{"$f":"'Buddy Boo'!J$112","v":0}]
[null,1111182260,"PR243615*****","Vest Y.Vest 2.0 S-SM","Більше 10",null,324.24,0,{"$f":"'Buddy Boo'!I$113","v":0},{"$f":"'Buddy Boo'!J$113","v":0}]
[null,1111182258,"PR243617*****","Vest Y.Vest 2.0 XL-2XL","Більше 10",null,357.96,0,{"$f":"'Buddy Boo'!I$114","v":0},{"$f":"'Buddy Boo'!J$114","v":0}]
[null,1111199946,"150819/8907","08.25,ПОШК.Carnilove Adult Salmon д/собак усіх порід з лососем 12 кг","Немає в наявності","Корм сухий для собак",1771.08,0,{"$f":"Carnilove!I$8","v":0},{"$f":"Carnilove!J$8","v":0}]
[null,1111193225,"170871/7533","ТЕРМ. 03.26 ПОРВ. CarniloveFreshCarp and TroutAdult dogs корп/фор1,5кг","Менше 10","Корм сухий для собак",310.2,0,{"$f":"Carnilove!I$9","v":0},{"$f":"Carnilove!J$9","v":0}]
[null,1111186990,"JRS300062/0625","ПОРВ. Наповнювач Cat_s Best для домашніх тварин Universal дерев7л/4кг","Менше 10","Наповнювачі для котячих туалетів",161.63999999999999,0,{"$f":"'Cats Best'!I$8","v":0},{"$f":"'Cats Best'!J$8","v":0}]
[null,1111191231,"JRS319116/1163","ПОРВ. Наповнювач Cat_s Best кот/туалет Original дерев 10 та 2л/5,2кг","Немає в наявності","Наповнювачі для котячих туалетів",347.64,0,{"$f":"'Cats Best'!I$9","v":0},{"$f":"'Cats Best'!J$9","v":0}]
[null,1111186694,"JRS300088/0885","ПОРВ. Наповнювач Cat’s Best кот/туалет Smart Pellets деревн 10л/5кг","Менше 10","Наповнювачі для котячих туалетів",413.04,0,{"$f":"'Cats Best'!I$10","v":0},{"$f":"'Cats Best'!J$10","v":0}]
[null,1111186992,"JRS321742/7429","ПОРВ. Наповнювач Cat’s Best котяч.туалет Smart Pellets деревн 20л/10кг","Менше 10","Наповнювачі для котячих туалетів",745.62,0,{"$f":"'Cats Best'!I$11","v":0},{"$f":"'Cats Best'!J$11","v":0}]
[null,1111192246,"JRS300070/0700","ПОРВ. Наповнювач Chipsi для гризунів Класік гігієнічний тирса 60 л/3,2","Менше 10","Наповнювачі для гризунів",129.30000000000001,0,{"$f":"Chipsi!I$8","v":0},{"$f":"Chipsi!J$8","v":0}]
[null,1111187158,"10л/0427","ПОРВ. Наповнювач Chipsi для дрібних тварин Mais кукурудзяний 10л","Менше 10","Наповнювачі для гризунів",222.72,0,{"$f":"Chipsi!I$9","v":0},{"$f":"Chipsi!J$9","v":0}]
[null,1111158680,"850604/А923*****","Гребінець Chris Christensen для тварин овальний розмір медіум 16","Менше 10","Інструменти для грумінгу",1750.14,2275,{"$f":"'Chris Christensen'!I$8","v":0},{"$f":"'Chris Christensen'!J$8","v":0}]
[null,1111147756,"A620***** СПЕЦЦЕНА","Гребінець іонізуючий (щетина мідь/нейлон) 21,59 см","Менше 10","Інструменти для грумінгу",1371.3,1783,{"$f":"'Chris Christensen'!I$9","v":0},{"$f":"'Chris Christensen'!J$9","v":0}]
[null,1111201648,841056,"Кондиціонер Chris Christensen Ice On Ice д/собак та котів 473мл","Менше 10",null,2016.96,0,{"$f":"'Chris Christensen'!I$10","v":0},{"$f":"'Chris Christensen'!J$10","v":0}]
[null,1111201637,844246,"Кондиціонер Chris Christensen Precious Drop д/собак та котів 473мл","Менше 10",null,1221.96,0,{"$f":"'Chris Christensen'!I$11","v":0},{"$f":"'Chris Christensen'!J$11","v":0}]
[null,1111126648,"844801/054 /03-202*****","Спрей Chris Christensen Show Off для очищення 473мл","Менше 10","Косметика для тварин",1131.18,1471,{"$f":"'Chris Christensen'!I$12","v":0},{"$f":"'Chris Christensen'!J$12","v":0}]
[null,1111193746,841457,"ТЕРМ. 05.25 Шампунь для котів Topcat Volumising Shampoo 473ml","Менше 10",null,347.1,0,{"$f":"'Chris Christensen'!I$13","v":0},{"$f":"'Chris Christensen'!J$13","v":0}]
[null,1111192436,"841032/057 /03-227","ТЕРМ. 05.26, ОСАД, ДЕФОРМ. Шампунь Chris Christensen Day to Day 473мл","Менше 10","Косметика для тварин",321.48,0,{"$f":"'Chris Christensen'!I$14","v":0},{"$f":"'Chris Christensen'!J$14","v":0}]
[null,1111192437,"841032/057 /03-227","ТЕРМ. 08.26, ОСАД, ДЕФОРМ. Шампунь Chris Christensen Day to Day 473мл","Більше 10","Косметика для тварин",321.48,0,{"$f":"'Chris Christensen'!I$15","v":0},{"$f":"'Chris Christensen'!J$15","v":0}]
[null,1111206455,844819,"ТЕРМ. 11.25 Спрей Chris Christensen Super Hold д/собак та котів 295мл","Менше 10",null,451.86,0,{"$f":"'Chris Christensen'!I$16","v":0},{"$f":"'Chris Christensen'!J$16","v":0}]
[null,1111192435,"841032/057 /03-227","ТЕРМ. 12.25, ОСАД, ДЕФОРМ. Шампунь Chris Christensen Day to Day 473мл","Більше 10","Косметика для тварин",321.48,0,{"$f":"'Chris Christensen'!I$17","v":0},{"$f":"'Chris Christensen'!J$17","v":0}]
[null,1111126633,"841032/057 /03-227","Шампунь Chris Christensen Day to Day д/собак/котів догляд/шерсть 473мл","Менше 10","Косметика для тварин",642.95000000000005,1299,{"$f":"'Chris Christensen'!I$18","v":0},{"$f":"'Chris Christensen'!J$18","v":0}]
[null,1111202270,849050,"Шампунь Chris Christensen Happy Eyes Tearless д/собак та котів 473мл","Менше 10",null,747.9,0,{"$f":"'Chris Christensen'!I$19","v":0},{"$f":"'Chris Christensen'!J$19","v":0}]
[null,1111201638,841442,"Шампунь Chris Christensen Smartwash50 Hydrating д/собак та котів 3,8л","Менше 10",null,2198.4,0,{"$f":"'Chris Christensen'!I$20","v":0},{"$f":"'Chris Christensen'!J$20","v":0}]
[null,1111191957,841564,"Шампунь Chris Christensen SmartWash50 Hypo-Allergenic Shampoo 473ml","Менше 10",null,1356.24,1763,{"$f":"'Chris Christensen'!I$21","v":0},{"$f":"'Chris Christensen'!J$21","v":0}]
[null,1111132718,"841036/070/ Скл.071","Шампунь Chris Christensen Spectrum Ten д/собак/котів д/шовк/шерс 473мл","Менше 10","Косметика для тварин",1300.1400000000001,1690,{"$f":"'Chris Christensen'!I$22","v":0},{"$f":"'Chris Christensen'!J$22","v":0}]
[null,1111126634,841030,"Шампунь Clean Start суперочищуючий 473 мл","Менше 10","Косметика для тварин",642.95000000000005,1299,{"$f":"'Chris Christensen'!I$23","v":0},{"$f":"'Chris Christensen'!J$23","v":0}]
[null,1111184463,841557,"Шампунь д/соб Chris Christensen Whitening and Brightening  473ml","Менше 10","Косметика для тварин",1335.84,1737,{"$f":"'Chris Christensen'!I$24","v":0},{"$f":"'Chris Christensen'!J$24","v":0}]
[null,1111184464,844877,"Шампунь для собак Chris Christensen Ice On Ice 473ml","Менше 10","Косметика для тварин",1300.1400000000001,1690,{"$f":"'Chris Christensen'!I$25","v":0},{"$f":"'Chris Christensen'!J$25","v":0}]
[null,1111184462,841496,"Шампунь для собак Chris Christensen Smartwash50 De-Shed  473ml","Менше 10","Косметика для тварин",1335.84,1737,{"$f":"'Chris Christensen'!I$26","v":0},{"$f":"'Chris Christensen'!J$26","v":0}]
[null,1111153614,"121634*****","Іграшка Create and Play кулька з отвором зелена (35шт./уп.)","Менше 10","Іграшки для собак",573.24,1727,{"$f":"Comfy!I$8","v":0},{"$f":"Comfy!J$8","v":0}]
[null,1111153615,"121635*****","Іграшка Create and Play кулька з отвором оранж. (35шт./уп.)","Менше 10","Іграшки для собак",573.24,1727,{"$f":"Comfy!I$9","v":0},{"$f":"Comfy!J$9","v":0}]
[null,1111153613,"121633*****","Іграшка Create and Play кулька з отвором рожева (35шт./уп.)","Менше 10","Іграшки для собак",573.24,1727,{"$f":"Comfy!I$10","v":0},{"$f":"Comfy!J$10","v":0}]
[null,1111153619,"121639*****","Іграшка Create and Play мотузка COMFY (30шт./упак.)","Менше 10","Іграшки для собак",854.94,1154,{"$f":"Comfy!I$11","v":0},{"$f":"Comfy!J$11","v":0}]
[null,1111151873,"121697*****","Іграшка Create and Play набір гачків метал COMFY","Менше 10","Іграшки для собак",288.3,865,{"$f":"Comfy!I$12","v":0},{"$f":"Comfy!J$12","v":0}]
[null,1111153617,"121637*****","Іграшка Create and Play товсте кільце оранжеве (30шт/упак.)","Менше 10","Іграшки для собак",155.82,0,{"$f":"Comfy!I$13","v":0},{"$f":"Comfy!J$13","v":0}]
[null,1111127498,1712,"Спрей д/розчісуван. CR Magic Touch #1 тонкої/шовковист.","Менше 10","Косметика для тварин",1088.04,1632,{"$f":"'Crown Royale'!I$8","v":0},{"$f":"'Crown Royale'!J$8","v":0}]
[null,1111127500,1720,"Спрей д/розчісуван. CR Magic Touch #3 густої/жорсткої шерсті 473 мл","Менше 10","Косметика для тварин",1095.5999999999999,1424,{"$f":"'Crown Royale'!I$9","v":0},{"$f":"'Crown Royale'!J$9","v":0}]
[null,1111130511,"CR02410","Спрей для розчісування CR Ultimate Detangling 237 мл","Менше 10","Косметика для тварин",1719.96,2236,{"$f":"'Crown Royale'!I$10","v":0},{"$f":"'Crown Royale'!J$10","v":0}]
[null,1111168658,"VR05*****","Лежак  для собак антиалергенний Simit Series плюшевий жовтий 52*9см","Менше 10","Спальні місця для собак",665.79,900,{"$f":"Dubex!I$8","v":0},{"$f":"Dubex!J$8","v":0}]
[null,1111168656,"VR02*****","Лежак для собак антиалергенний Simit Series плюш темно-малинов. 52х9см","Менше 10","Спальні місця для собак",665.79,900,{"$f":"Dubex!I$9","v":0},{"$f":"Dubex!J$9","v":0}]
[null,1111168657,"VR04*****","Лежак для собак антиалергенний Simit Series плюшевий блакитний 52*9см","Менше 10","Спальні місця для собак",665.79,900,{"$f":"Dubex!I$10","v":0},{"$f":"Dubex!J$10","v":0}]
[null,1111168659,"VR04_2*****","Матрас для собак водовідштов. ортопедичний темно-персиковий  80*62*8см","Менше 10","Спальні місця для собак",852.9,1151,{"$f":"Dubex!I$11","v":0},{"$f":"Dubex!J$11","v":0}]
[null,1111200027,"1000321/173053*****","ТЕРМ. 07.25 Edel Cat консерви для котів з лососем та фореллю 400г","Більше 100","Корм вологий для котів",40.98,0,{"$f":"Edel!I$8","v":0},{"$f":"Edel!J$8","v":0}]
[null,1111199425,"1000332/177020*****","ТЕРМ.07.25,Edel Cat консерви для собак з індичкою і печінкою 400 г","Більше 10","Корм вологий для собак",40.98,0,{"$f":"Edel!I$9","v":0},{"$f":"Edel!J$9","v":0}]
[null,1111193782,"20321*****","ТЕРМ. 05.25 Вологий корм Essence для дорослих собак з куркою 200г","Більше 10","Корм вологий для собак",16.02,0,{"$f":"Essence!I$8","v":0},{"$f":"Essence!J$8","v":0}]
[null,1111198276,"PT2775","ПОШК ПАК Субстрат ExoTerra/тер тв Coco Husk 7л","Менше 10","Наповнювачі та субстрати для тераріума",67.86,0,{"$f":"ExoTerra!I$8","v":0},{"$f":"ExoTerra!J$8","v":0}]
[null,1111187573,"11831 BLACK Flexi","НЕ ТРИМ. КНОП.рулетка Flexi д/соб New Classic стрічка чорна S 5м/ 15кг","Менше 10","Амуніція для собак",290.62,0,{"$f":"Flexi!I$8","v":0},{"$f":"Flexi!J$8","v":0}]
[null,1111187099,10720011,"НЕКОМПЛЕКТ Клітка Fop Lara Big Fun для птахів 40х27х51см","Менше 10","Обладнання для птахів",1107.99,0,{"$f":"Fop!I$8","v":0},{"$f":"Fop!J$8","v":0}]
[null,1111204105,10710011,"ПОДРЯПИНИ, ПОШК. УП. Клітка Fop Anita Big Fun д/птахів 53х32х67см","Менше 10","Обладнання для птахів",1749.06,0,{"$f":"Fop!I$9","v":0},{"$f":"Fop!J$9","v":0}]
[null,1111187098,10720011,"ТРІЩИНА Клітка Fop Lara Big Fun для птахів 40х27х51см","Менше 10","Обладнання для птахів",1107.99,0,{"$f":"Fop!I$10","v":0},{"$f":"Fop!J$10","v":0}]
[null,1111199605,"G-205069","БЕЗ ТЕРМ. Сіно для гризунів 1 кг","Менше 10","Корм для гризунів",70.739999999999995,0,{"$f":"GimBi!I$8","v":0},{"$f":"GimBi!J$8","v":0}]
[null,1111192644,"G-205151","ТЕРМ 02.26 НЕ ТОВ ВИД  Сіно GimBi для гризунів з тімофіївкою 500г","Менше 10","Корм для гризунів",113.61,0,{"$f":"GimBi!I$9","v":0},{"$f":"GimBi!J$9","v":0}]
[null,1111188898,"G-205069","ТЕРМ. 01.26, ПОРВ. Сено для грызунов 1кг GimBi","Менше 10","Корм для гризунів",74.28,0,{"$f":"GimBi!I$10","v":0},{"$f":"GimBi!J$10","v":0}]
[null,1111188852,"G-205069","ТЕРМ. 02.26, ПОРВ. Сено для грызунов 1кг GimBi","Більше 10","Корм для гризунів",74.28,0,{"$f":"GimBi!I$11","v":0},{"$f":"GimBi!J$11","v":0}]
[null,1111201610,"G-205069","ТЕРМ. 12.25, НЕ ТОВ. ВИГЛ. Сіно для гризунів 1 кг","Менше 10","Корм для гризунів",70.739999999999995,0,{"$f":"GimBi!I$12","v":0},{"$f":"GimBi!J$12","v":0}]
[null,1111188878,"G-205069","ТЕРМ. 12.25, ПОРВ. Сено для грызунов 1кг GimBi","Більше 10","Корм для гризунів",70.739999999999995,0,{"$f":"GimBi!I$13","v":0},{"$f":"GimBi!J$13","v":0}]
[null,1111200537,"G-401423/421629","Вітаміни GimCat Every Day мультивітамінна паста для котів 50г","Більше 10","Вітаміни для котів",105.6,0,{"$f":"GimCat!I$8","v":0},{"$f":"GimCat!J$8","v":0}]
[null,1111191369,"G-80701","НЕ ТРИМ. ПІР_Я Іграшка GimCat паличка з пір_ям/спіральками 62см","Менше 10","Іграшки для котів",96,0,{"$f":"GimCat!I$9","v":0},{"$f":"GimCat!J$9","v":0}]
[null,1111196065,"G-409139/419060","ТЕРМ 06.25 Вітам. GimCat Katzentabs таб. д/кот. алгобіотин 710шт/425г","Більше 100","Вітаміни для котів",369.12,0,{"$f":"GimCat!I$10","v":0},{"$f":"GimCat!J$10","v":0}]
[null,1111200539,"G-421636/401881","ТЕРМ. 08.25 Вітаміни GimCat Every Day мультивітам/паста д/котів 200г","Менше 10","Вітаміни для котів",257.39999999999998,0,{"$f":"GimCat!I$11","v":0},{"$f":"GimCat!J$11","v":0}]
[null,1111198050,"G-427041","ТЕРМ.11.25ПОШК.ПАК Вітаміни GimCat Expert Lineд/кот пас нир/сеч/шл50г","Менше 10","Вітаміни для котів",149.52000000000001,0,{"$f":"GimCat!I$12","v":0},{"$f":"GimCat!J$12","v":0}]
[null,1111191976,"80203505114*****","Нашийник GimDog для соб O-RING рожевий 2,0х35-51 см арт 80203505114","Менше 10",null,330.54,430,{"$f":"GimDog!I$8","v":0},{"$f":"GimDog!J$8","v":0}]
[null,1111193733,80302505111,"Нашийник GimDog для собак червоний сітка 2,5x35-51 см","Більше 10","Амуніція для собак",468.12,609,{"$f":"GimDog!I$9","v":0},{"$f":"GimDog!J$9","v":0}]
[null,1111191981,80303206611,"Нашийник GimDog для собак червоний сітка 3,2х42-66 см арт 80303206611","Менше 10",null,573.17999999999995,745,{"$f":"GimDog!I$10","v":0},{"$f":"GimDog!J$10","v":0}]
[null,1111163514,80312012016,"Повідець GimDog для собак Alfresco жовтий неопрен/фліс 120см/20мм","Менше 10","Амуніція для собак",706.62,919,{"$f":"GimDog!I$11","v":0},{"$f":"GimDog!J$11","v":0}]
[null,1111191985,80361315013,"Повідок GimDog CLICK and LOCK чорний 13 ммх150 см арт 80361315013","Більше 10",null,1113.9000000000001,1448,{"$f":"GimDog!I$12","v":0},{"$f":"GimDog!J$12","v":0}]
[null,1111191980,80241512014,"Повідок GimDog для собак рожевий 1,5х120 см арт 80241512014","Більше 10",null,431.82,561,{"$f":"GimDog!I$13","v":0},{"$f":"GimDog!J$13","v":0}]
[null,1111191978,80241512012,"Повідок GimDog для собак синій 1,5х120 см арт 80241512012","Більше 10",null,431.82,561,{"$f":"GimDog!I$14","v":0},{"$f":"GimDog!J$14","v":0}]
[null,1111191982,80312012011,"Повідок GimDog для собак сітка 2,0х120 см арт 80312012011","Більше 10",null,815.82,1061,{"$f":"GimDog!I$15","v":0},{"$f":"GimDog!J$15","v":0}]
[null,1111193734,80312512011,"Повідок GimDog для собак червоний сітка 2,0х120 см","Менше 10","Амуніція для собак",897.96,1167,{"$f":"GimDog!I$16","v":0},{"$f":"GimDog!J$16","v":0}]
[null,1111191979,80241512013,"Повідок GimDog для собак чорний 1,5х120 см арт 80241512013","Більше 10",null,431.82,561,{"$f":"GimDog!I$17","v":0},{"$f":"GimDog!J$17","v":0}]
[null,1111187801,"G-80784","ПОРВ Іграшка GimDog Dent Plus для собак мотузка/кільце гума 15см","Менше 10","Іграшки для собак",109.26,0,{"$f":"GimDog!I$18","v":0},{"$f":"GimDog!J$18","v":0}]
[null,1111163539,"080321505516*****","Шлея Alfresco Y неопрен 1.5*42 45-55см жовта","Менше 10","Амуніція для собак",620.22,931,{"$f":"GimDog!I$19","v":0},{"$f":"GimDog!J$19","v":0}]
[null,1111163541,"080322007016*****","Шлея Alfresco Y неопрен 2.0*55 58-70см жовта","Менше 10","Амуніція для собак",715.1,1073,{"$f":"GimDog!I$20","v":0},{"$f":"GimDog!J$20","v":0}]
[null,1111163543,"080322509016*****","Шлея Alfresco Y неопрен 2.5*70 72-90см жовта","Менше 10","Амуніція для собак",857.29,1286,{"$f":"GimDog!I$21","v":0},{"$f":"GimDog!J$21","v":0}]
[null,1111163545,"080323210019*****","Шлея Alfresco Y неопрен 3.2*75 80-100см помаранчева","Менше 10","Амуніція для собак",906.18,1360,{"$f":"GimDog!I$22","v":0},{"$f":"GimDog!J$22","v":0}]
[null,1111163540,80321505519,"Шлея GimDog для собак Alfresco Y помаранчева неопрен 45-55см/15мм","Менше 10","Амуніція для собак",827.46,1076,{"$f":"GimDog!I$23","v":0},{"$f":"GimDog!J$23","v":0}]
[null,1111163542,80322007019,"Шлея GimDog для собак Alfresco Y помаранчева неопрен 58-70см/20мм","Менше 10","Амуніція для собак",953.22,1239,{"$f":"GimDog!I$24","v":0},{"$f":"GimDog!J$24","v":0}]
[null,1111163551,80333704016,"Шлея GimDog для собак Alfresco жовта неопрен розмір S 37-40см","Більше 10","Амуніція для собак",757.92,986,{"$f":"GimDog!I$25","v":0},{"$f":"GimDog!J$25","v":0}]
[null,1111171260,80261505513,"Шлея GimDog для собак Harlem H чорна нейлон 40-55см/15мм","Більше 10","Амуніція для собак",546.12,710,{"$f":"GimDog!I$26","v":0},{"$f":"GimDog!J$26","v":0}]
[null,1111194400,20956,"ТЕРМ. 05.25 HalfHalf д/дорослих котів із яловичиною 300г","Менше 10","Корм сухий для котів",29.58,0,{"$f":"'Half&Half'!I$8","v":0},{"$f":"'Half&Half'!J$8","v":0}]
[null,1111194716,20949,"ТЕРМ. 05.25 HalfHalf д/котів із чутливим травленям з індичкою 300г","Більше 10","Корм сухий для котів",32.520000000000003,0,{"$f":"'Half&Half'!I$9","v":0},{"$f":"'Half&Half'!J$9","v":0}]
[null,1111194275,20802,"ТЕРМ. 05.25 Корм сухий HalfHalf д/стерилізованих котів яловичина 2кг","Більше 10","Корм сухий для котів",161.82,0,{"$f":"'Half&Half'!I$10","v":0},{"$f":"'Half&Half'!J$10","v":0}]
[null,1111194088,20932,"ТЕРМ. 05.25 Корм сухий HalfHalf д/стерилізованих/котів яловичина 300г","Більше 100","Корм сухий для котів",29.58,0,{"$f":"'Half&Half'!I$11","v":0},{"$f":"'Half&Half'!J$11","v":0}]
[null,1111194087,20925,"ТЕРМ. 05.25 Корм сухий HalfHalf для кошенят з яловичиною 300г","Більше 100","Корм сухий для котів",25.56,0,{"$f":"'Half&Half'!I$12","v":0},{"$f":"'Half&Half'!J$12","v":0}]
[null,1111194304,20932,"ТЕРМ. 05.25, ПОРВ. HalfHalf д/стерил котів із яловичиною 300 г","Менше 10","Корм сухий для котів",29.58,0,{"$f":"'Half&Half'!I$13","v":0},{"$f":"'Half&Half'!J$13","v":0}]
[null,1111194396,"HH_045350","ТЕРМ.05.25.АКЦІЯ HalfHalf д/котів індич 300 г+Ласощі з індич 5г","Більше 100","Корм сухий для котів",32.520000000000003,0,{"$f":"'Half&Half'!I$14","v":0},{"$f":"'Half&Half'!J$14","v":0}]
[null,1111194401,"HH_045343","ТЕРМ.05.25АКЦІЯ HalfHalf д/котів із ялович 300г+Ласощі д/котів з кач5г","Більше 10","Корм сухий для котів",29.58,0,{"$f":"'Half&Half'!I$15","v":0},{"$f":"'Half&Half'!J$15","v":0}]
[null,1111187453,"LTX-002","НЕТОВ. В. Іграшка Kiwi Walker для собак Птах Ківі зелений 15,5 см","Менше 10","Іграшки для собак",214.12,0,{"$f":"'Kiwi Walker'!I$8","v":0},{"$f":"'Kiwi Walker'!J$8","v":0}]
[null,1111122856,"80905*****","Жердинка LivingWorld Pedi-Perch для птахів цемент 16 см","Менше 10","Обладнання для птахів",279.77999999999997,423,{"$f":"'Living World'!I$8","v":0},{"$f":"'Living World'!J$8","v":0}]
[null,1111122857,"80910*****","Жердинка LivingWorld Pedi-Perch для птахів цемент 20,5 см","Менше 10","Обладнання для птахів",342.36,510,{"$f":"'Living World'!I$9","v":0},{"$f":"'Living World'!J$9","v":0}]
[null,1111145791,"1245-7060СПЕЦЦЕНА*****","Motor compl. 230V","Менше 10","Інструменти для грумінгу",1145.8800000000001,1375,{"$f":"Moser!I$8","v":0},{"$f":"Moser!J$8","v":0}]
[null,1111150149,"1250-7050СПЕЦЦЕНА *****","Блок живлення д/машинки MOSER MAX 50 (1250-0050 (052))","Менше 10","Машинки та аксесуари",996.73,1196,{"$f":"Moser!I$9","v":0},{"$f":"Moser!J$9","v":0}]
[null,1111137141,"MFK00*****СПЕЦЦЕНА","MyFamily брелок","Більше 10","Амуніція для собак",19.690000000000001,25,{"$f":"'My Family'!I$8","v":0},{"$f":"'My Family'!J$8","v":0}]
[null,1111152248,"MFXL07_ordСПЕЦЦЕНА","Кісточка XL блакитна","Менше 10","Амуніція для собак",91.74,226,{"$f":"'My Family'!I$9","v":0},{"$f":"'My Family'!J$9","v":0}]
[null,1111145532,"MFXL02_ordСПЕЦЦЕНА","Кісточка XL, червона","Менше 10","Амуніція для собак",70.86,212,{"$f":"'My Family'!I$10","v":0},{"$f":"'My Family'!J$10","v":0}]
[null,1111137162,"MFB38_ordСПЕЦЦЕНА","Кісточка велика, зелена","Менше 10","Амуніція для собак",63.3,156,{"$f":"'My Family'!I$11","v":0},{"$f":"'My Family'!J$11","v":0}]
[null,1111137174,"MFB07_ord","Кісточка велика, золото","Менше 10","Амуніція для собак",309.36,418,{"$f":"'My Family'!I$12","v":0},{"$f":"'My Family'!J$12","v":0}]
[null,1111156480,"Z010_ord","Медальйон для собак Коала WILD","Менше 10","Амуніція для собак",325.62,440,{"$f":"'My Family'!I$13","v":0},{"$f":"'My Family'!J$13","v":0}]
[null,1111156492,"Z022_ord","Медальйон для собак Риба-клоун WILD","Менше 10","Амуніція для собак",325.62,440,{"$f":"'My Family'!I$14","v":0},{"$f":"'My Family'!J$14","v":0}]
[null,1111156486,"Z016_ord","Медальйон для собак Тукан WILD","Менше 10","Амуніція для собак",379.68,512,{"$f":"'My Family'!I$15","v":0},{"$f":"'My Family'!J$15","v":0}]
[null,1111191908,"Nechay009360","ПОРВ. Ґрунт Nechay Zoo для акваріума чорно-білий дрібний 2-5 мм 10 кг","Немає в наявності","Грунти для акваріума",111.3,0,{"$f":"'Nechay ZOO'!I$8","v":0},{"$f":"'Nechay ZOO'!J$8","v":0}]
[null,1111197713,"Nechay029375*****","ПОРВ. Грунт аквар. 10 кг. черн/роз. мелкий (2-5 мм)","Немає в наявності","Грунти для акваріума",87.18,0,{"$f":"'Nechay ZOO'!I$9","v":0},{"$f":"'Nechay ZOO'!J$9","v":0}]
[null,1111182527,"PR243742*****","Vest Grass S for dogs","Більше 10",null,0,0,{"$f":"'Pet Fashion'!I$8","v":0},{"$f":"'Pet Fashion'!J$8","v":0}]
[null,1111182529,"PR243740*****","Vest Grass XS for dogs","Більше 10",null,0,0,{"$f":"'Pet Fashion'!I$9","v":0},{"$f":"'Pet Fashion'!J$9","v":0}]
[null,1111182528,"PR243741*****","Vest Grass XS2 for dogs","Більше 10",null,0,0,{"$f":"'Pet Fashion'!I$10","v":0},{"$f":"'Pet Fashion'!J$10","v":0}]
[null,1111182526,"PR243743*****","Vest Grass М for dogs","Більше 10",null,0,0,{"$f":"'Pet Fashion'!I$11","v":0},{"$f":"'Pet Fashion'!J$11","v":0}]
[null,1111206324,"PR243780*****","БЕЗ 1 КНОП. БЕЗ УП  Костюм дівчинка Twiddy ХS2 для собак","Менше 10","Одяг для собак",434.52,0,{"$f":"'Pet Fashion'!I$12","v":0},{"$f":"'Pet Fashion'!J$12","v":0}]
[null,1111180550,"PR243521","Жилет Big Boss бежевий 3XL","Менше 10",null,869,1173,{"$f":"'Pet Fashion'!I$13","v":0},{"$f":"'Pet Fashion'!J$13","v":0}]
[null,1111180549,"PR243522","Жилет Big Boss бежевий 4XL","Менше 10",null,871,1176,{"$f":"'Pet Fashion'!I$14","v":0},{"$f":"'Pet Fashion'!J$14","v":0}]
[null,1111180548,"PR243523","Жилет Big Boss бежевий 5XL","Менше 10",null,873,1179,{"$f":"'Pet Fashion'!I$15","v":0},{"$f":"'Pet Fashion'!J$15","v":0}]
[null,1111164321,"PR242191","Жилет Pet Fashion Yellow vest 2.0 для собак 3XL-4XL","Більше 100","Одяг для собак",0,0,{"$f":"'Pet Fashion'!I$16","v":0},{"$f":"'Pet Fashion'!J$16","v":0}]
[null,1111181946,"PR243598*****","Кардиган Garcia  М","Менше 10",null,668,902,{"$f":"'Pet Fashion'!I$17","v":0},{"$f":"'Pet Fashion'!J$17","v":0}]
[null,1111181948,"PR243596*****","Кардиган Garcia ХS2","Менше 10",null,533,719,{"$f":"'Pet Fashion'!I$18","v":0},{"$f":"'Pet Fashion'!J$18","v":0}]
[null,1111182522,"PR243785*****","Костюм Locky S для собак","Менше 10","Одяг для собак",865.98,1239,{"$f":"'Pet Fashion'!I$19","v":0},{"$f":"'Pet Fashion'!J$19","v":0}]
[null,1111182524,"PR243787*****","Костюм Locky ХS для собак","Менше 10","Одяг для собак",760.02,1086,{"$f":"'Pet Fashion'!I$20","v":0},{"$f":"'Pet Fashion'!J$20","v":0}]
[null,1111182523,"PR243788*****","Костюм Locky ХS2 для собак","Менше 10","Одяг для собак",817.02,1169,{"$f":"'Pet Fashion'!I$21","v":0},{"$f":"'Pet Fashion'!J$21","v":0}]
[null,1111162544,"PR241969","Матрац Pet Fashion Medi Sleep Memory ортопедичний д/собак L 92х65х4 см","Менше 10","Спальні місця для собак",1847.33,2493.9,{"$f":"'Pet Fashion'!I$22","v":0},{"$f":"'Pet Fashion'!J$22","v":0}]
[null,1111162543,"PR241970","Матрац Pet Fashion Medi Sleep Memory ортопедичний д/собак M 66х46х4 см","Більше 10","Спальні місця для собак",1054.51,1423.59,{"$f":"'Pet Fashion'!I$23","v":0},{"$f":"'Pet Fashion'!J$23","v":0}]
[null,1111162542,"PR241971*****","Матрац Pet Fashion Medi Sleep Memory ортопедичний д/собак S 48х32х4 см","Менше 10","Спальні місця для собак",591.25,798.18,{"$f":"'Pet Fashion'!I$24","v":0},{"$f":"'Pet Fashion'!J$24","v":0}]
[null,1111195178,"PR440290*****","Панама Pet Fashion Ava для собак М арт PR440290","Менше 10","Одяг для собак",293.33999999999997,419,{"$f":"'Pet Fashion'!I$25","v":0},{"$f":"'Pet Fashion'!J$25","v":0}]
[null,1111195176,"PR440313*****","Панама Pet Fashion Ava для собак ХL арт PR440313","Менше 10","Одяг для собак",342.3,489,{"$f":"'Pet Fashion'!I$26","v":0},{"$f":"'Pet Fashion'!J$26","v":0}]
[null,1111195170,"PR244037*****","Сорочка Pet Fashion Соломія для собак дівчинка бежева XS2 арт PR440375","Більше 10","Одяг для собак",384.3,549,{"$f":"'Pet Fashion'!I$27","v":0},{"$f":"'Pet Fashion'!J$27","v":0}]
[null,1111195168,"PR244039*****","Сорочка Pet Fashion Соломія для собак дівчинка бежева М арт PR440399","Більше 10","Одяг для собак",454.32,649,{"$f":"'Pet Fashion'!I$28","v":0},{"$f":"'Pet Fashion'!J$28","v":0}]
[null,1111195164,"PR244043*****","Сорочка Pet Fashion Соломія для собак дівчинка біла М арт PR440436","Менше 10","Одяг для собак",454.32,649,{"$f":"'Pet Fashion'!I$29","v":0},{"$f":"'Pet Fashion'!J$29","v":0}]
[null,1111194160,"170565/7695","ТЕРМ. 05.25 Profine Cat Original Adult коти усіх порід курка/рис 300г","Менше 10","Корм сухий для котів",52.44,0,{"$f":"Profine!I$8","v":0},{"$f":"Profine!J$8","v":0}]
[null,1111175189,"PR243101","Нашийник Provet PROFILINE д/собак д/великих порід інсектоакарицид 70см","Більше 10","Антипаразитарні препарати для собак",134.52000000000001,188,{"$f":"ProVET!I$8","v":0},{"$f":"ProVET!J$8","v":0}]
[null,1111195536,"PR243159","ТЕРМ 05.25 Вітамін Provet PROFILINE д/котів ГАГ ком суг/зв_язки 180таб","Менше 10","Вітаміни для котів",112.68,0,{"$f":"ProVET!I$9","v":0},{"$f":"ProVET!J$9","v":0}]
[null,1111197375,"PR243166","ТЕРМ 6.25 Вітаміни Provet PROFILINE д/собак протиалерг 100таб","Менше 10","Вітаміни для собак",96.9,0,{"$f":"ProVET!I$10","v":0},{"$f":"ProVET!J$10","v":0}]
[null,1111197036,"PR243167","ТЕРМ. 05.25 Вітаміни Provet PROFILINE Урінарі сечовивід/сист 180таб","Менше 10","Вітаміни для котів",105.3,0,{"$f":"ProVET!I$11","v":0},{"$f":"ProVET!J$11","v":0}]
[null,1111187727,"PR241959","БИТ. Піддон Природа під акваріум овальний 60×30 см","Менше 10","Підставки та піддони",102,0,{"$f":"'ProVET аква'!I$8","v":0},{"$f":"'ProVET аква'!J$8","v":0}]
[null,1111189263,"PR740620","ПОДР., БРУДН. Піддон Природа під акв. овальний 120x40х2,7 см","Менше 10","Підставки та піддони",424.32,0,{"$f":"'ProVET аква'!I$9","v":0},{"$f":"'ProVET аква'!J$9","v":0}]
[null,1111196563,"PR740632","ПОШК. КУТ Піддон Природа під акваріум кутовий 57x57х2,2 см","Менше 10","Підставки та піддони",266.04000000000002,0,{"$f":"'ProVET аква'!I$10","v":0},{"$f":"'ProVET аква'!J$10","v":0}]
[null,1111200606,"PR740615","ТРІСН. КУТ Піддон під акваріум Природа прямий 100x40х2,9см","Менше 10","Підставки та піддони",368.94,0,{"$f":"'ProVET аква'!I$11","v":0},{"$f":"'ProVET аква'!J$11","v":0}]
[null,1111189289,"PR740535","ТРІСН.1 КУТ Піддон Природа під акваріум прямий 80x35х2,8 см","Менше 10","Підставки та піддони",181.5,0,{"$f":"'ProVET аква'!I$12","v":0},{"$f":"'ProVET аква'!J$12","v":0}]
[null,1111199696,"PR240564","ТЕРМ 12.27 БИТ КОВП КСпрей Provet SANIPET д/кот д/зах. від дряп.250мл","Менше 10","Корекція поведінки для котів",65.88,0,{"$f":"SaniPet!I$8","v":0},{"$f":"SaniPet!J$8","v":0}]
[null,1111192005,31454,"ТЕРМ. 05.25 Savory Snacks Gourmand Salmon хрум/ласощі д/кот лосось 60г","Більше 100","Ласощі для котів",36.96,0,{"$f":"Savory!I$8","v":0},{"$f":"Savory!J$8","v":0}]
[null,1111193717,31416,"ТЕРМ. 05.25 М_які ласощі Savory здорров_я/стериліз/котів ягня/чорниця","Більше 100","Ласощі для котів",40.92,0,{"$f":"Savory!I$9","v":0},{"$f":"Savory!J$9","v":0}]
[null,1111192983,30532,"ТЕРМ. 05.27, БЕЗ ЕТИК. Savory Dog Puppy Chicken консерви курка 100г","Немає в наявності","Корм вологий для собак",20.58,0,{"$f":"Savory!I$10","v":0},{"$f":"Savory!J$10","v":0}]
[null,1111203154,21151,"ТЕРМ. 07.26, НЕ ТОВ. ВИД Джерки Savory Fillet Turkey інд/качка, 100 г","Менше 10","Ласощі для собак",83.88,0,{"$f":"Savory!I$11","v":0},{"$f":"Savory!J$11","v":0}]
[null,1111187094,5096,"ПОГН. Контейнер-переноска SGbox кот/соб до 6кг чорна 35х49х32,5см","Менше 10","Сумки, переноски та посуд для подорожей з собаками",230.22,0,{"$f":"SGbox!I$8","v":0},{"$f":"SGbox!J$8","v":0}]
[null,1111195453,"PR242122","ТЕРМ. 05.25 Повнораціонний корм Special One для екзотичніх птахів 500г","Більше 100","Корм для птахів",47.28,0,{"$f":"'Special One'!I$8","v":0},{"$f":"'Special One'!J$8","v":0}]
[null,1111187156,"PR242516","ТЕРМ. 06.25 ПОРВ. Ласощі Special One Пончики д/птиц барб/вол/кокос 60г","Більше 10","Ласощі для птахів",29,0,{"$f":"'Special One'!I$9","v":0},{"$f":"'Special One'!J$9","v":0}]
[null,1111191852,762329,"ТРІСН. ВЕРХ Сифон Tetra GC 40 для акваріума для чищення грунту 50-200л","Менше 10","Аксесуари для акваріума",291.36,0,{"$f":"Tetra!I$8","v":0},{"$f":"Tetra!J$8","v":0}]
[null,1111136689,"31513*****СПЕЦЦЕНА","Trixie'!I8","Менше 10","Ласощі для собак",1120.43,0,{"$f":"Trixie!I$8","v":0},{"$f":"Trixie!J$8","v":0}]
[null,1111190596,24790,"1 МИСКА Миски Trixie д/котів Eat on Feet метал/підст 2x300мл","Менше 10","Миски для котів",209.22,0,{"$f":"Trixie!I$9","v":0},{"$f":"Trixie!J$9","v":0}]
[null,1111194732,"91997_уп*****","TЕРМ 05.25 rixie Halloween Selection ласощі для собак з куркою 84шт","Більше 10","Ласощі для собак",1256.8800000000001,0,{"$f":"Trixie!I$10","v":0},{"$f":"Trixie!J$10","v":0}]
[null,1111184748,"13177_ord","Автомобільне крісло Trixie для собак 45х28х40 см чорно-сіре арт13177","Менше 10","Сумки, переноски та посуд для подорожей з собаками",2848.07,3702,{"$f":"Trixie!I$11","v":0},{"$f":"Trixie!J$11","v":0}]
[null,1111119291,"1322_ord","Автомобільне крісло Trixie для собак 45х38х37 см чорне арт1322","Менше 10","Сумки, переноски та посуд для подорожей з собаками",2043.91,2657,{"$f":"Trixie!I$12","v":0},{"$f":"Trixie!J$12","v":0}]
[null,1111187812,4130,"БЕЗ БАТАРЕЙ. Іграшка Trixie Catch the Light д/котів Указка лазерна 8см","Менше 10","Іграшки для котів",64.52,0,{"$f":"Trixie!I$13","v":0},{"$f":"Trixie!J$13","v":0}]
[null,1111189322,35093,"БЕЗ ЗВУКА Іграшка Trixie для собак Гусак з пискавкою латекс","Менше 10","Іграшки для собак",35.700000000000003,0,{"$f":"Trixie!I$14","v":0},{"$f":"Trixie!J$14","v":0}]
[null,1111191051,35492,"БЕЗ ЗВУКА Іграшка Trixie для собак Качка з пискавкою латекс 30см","Менше 10","Іграшки для собак",149.1,0,{"$f":"Trixie!I$15","v":0},{"$f":"Trixie!J$15","v":0}]
[null,1111189323,35092,"БЕЗ ЗВУКА Іграшка Trixie для собак Порося з пискавкою латекс","Менше 10","Іграшки для собак",35.700000000000003,0,{"$f":"Trixie!I$16","v":0},{"$f":"Trixie!J$16","v":0}]
[null,1111187651,5498,"БЕЗ КРІП. Миска металева для птахів 0,6 л з гвинтовим кріпленням","Менше 10","Обладнання для птахів",64.52,0,{"$f":"Trixie!I$17","v":0},{"$f":"Trixie!J$17","v":0}]
[null,1111191072,36842,"БЕЗ ПОДУШКИ Будиночок Trixie для собак та котів Jimmy 40х35х35см","Менше 10","Спальні місця для собак",633.87,0,{"$f":"Trixie!I$18","v":0},{"$f":"Trixie!J$18","v":0}]
[null,1111187063,37031,"БЕЗ ПОДУШКИ Лежак  Jimmy  45?35 см сірий з лапками","Менше 10","Спальні місця для собак",361.44,0,{"$f":"Trixie!I$19","v":0},{"$f":"Trixie!J$19","v":0}]
[null,1111187061,37032,"БЕЗ ПОДУШКИ Лежак  Jimmy  55?45 см сірий з лапками","Менше 10","Спальні місця для собак",452.23,0,{"$f":"Trixie!I$20","v":0},{"$f":"Trixie!J$20","v":0}]
[null,1111193094,37686,"БЕЗ ПОДУШКИ Лежак Trixie Lingo з лапками/кісточками бежевий 60х55см","Менше 10","Спальні місця для собак",452.23,0,{"$f":"Trixie!I$21","v":0},{"$f":"Trixie!J$21","v":0}]
[null,1111186919,24851,"БЕЗ РЕЗИНКИ Миска Trixie для собак гумов/основ металева 450мл d-19см","Менше 10","Миски та годівниці для собак",50.76,0,{"$f":"Trixie!I$22","v":0},{"$f":"Trixie!J$22","v":0}]
[null,1111191953,45733,"БИТ Іграшка Trixie д/кот. Паличка з метелик та пірям кот. м_ята 45см","Менше 10","Іграшки для котів",44.47,0,{"$f":"Trixie!I$23","v":0},{"$f":"Trixie!J$23","v":0}]
[null,1111187821,45804,"БИТ ПАЛОЧ Іграшка Trixie д/котів Паличка мишка/пір'я котяча м'ята 50см","Менше 10","Іграшки для котів",51.36,0,{"$f":"Trixie!I$24","v":0},{"$f":"Trixie!J$24","v":0}]
[null,1111190305,4092,"БИТ. Іграшка Trixie для котів Миша заводна 7см","Менше 10","Іграшки для котів",43.85,0,{"$f":"Trixie!I$25","v":0},{"$f":"Trixie!J$25","v":0}]
[null,1111187735,62551,"БИТ. Кутовий туалет для гризунів 36х21х30 см","Менше 10","Туалети для гризунів",51.36,0,{"$f":"Trixie!I$26","v":0},{"$f":"Trixie!J$26","v":0}]
[null,1111189953,45801,"БИТ. ПАЛИЧ Ігр. Trixie д/котів Паличка з мишкою та пірям кот.мята 50см","Менше 10","Іграшки для котів",51.36,0,{"$f":"Trixie!I$27","v":0},{"$f":"Trixie!J$27","v":0}]
[null,1111187126,5904,"БИТ. Переноска  PICO  д/грызунов 30*23*21см,","Менше 10","Обладнання для гризунів",201.06,0,{"$f":"Trixie!I$28","v":0},{"$f":"Trixie!J$28","v":0}]
[null,1111187724,5903,"БИТ. Переноска  Pico  для гризунів 23х17,5х16 см","Менше 10","Обладнання для гризунів",103.98,0,{"$f":"Trixie!I$29","v":0},{"$f":"Trixie!J$29","v":0}]
[null,1111187628,5401,"БИТ.КУТ Басейн для птахів 13,5?15?13,5 см","Менше 10","Обладнання для птахів",58.88,0,{"$f":"Trixie!I$30","v":0},{"$f":"Trixie!J$30","v":0}]
[null,1111188460,24498,"БРАК ЕМАЛІ Миска Trixie Cat для котів керамічна 200мл d-13см","Менше 10","Миски для котів",73.92,0,{"$f":"Trixie!I$31","v":0},{"$f":"Trixie!J$31","v":0}]
[null,1111188470,24492,"БРАК ЕМАЛІ Миска Trixie для котів з рибкою керамічна 200мл d-13см","Менше 10","Миски для котів",51.36,0,{"$f":"Trixie!I$32","v":0},{"$f":"Trixie!J$32","v":0}]
[null,1111188468,24807,"БРАК ЕМАЛІ Миска Trixie для котів Котик керамічна 150мл d-14см","Менше 10","Миски для котів",119.04,0,{"$f":"Trixie!I$33","v":0},{"$f":"Trixie!J$33","v":0}]
[null,1111189174,24535,"БРАК ПОКР.Миски Trixie для собак Eat on Feet подвійні","Менше 10","Миски та годівниці для собак",224.28,0,{"$f":"Trixie!I$34","v":0},{"$f":"Trixie!J$34","v":0}]
[null,1111187347,24793,"БРАК ПОКРИТТЯ Миска Trixie д/котів Thanks for Service керам 300мл/11см","Менше 10","Миски для котів",73.92,0,{"$f":"Trixie!I$35","v":0},{"$f":"Trixie!J$35","v":0}]
[null,1111186895,24499,"БРАК ПОКРИТТЯ Миска Trixie д/котів біла чорн/котик керам 250мл d-13см","Більше 10","Миски для котів",58.92,0,{"$f":"Trixie!I$36","v":0},{"$f":"Trixie!J$36","v":0}]
[null,1111186908,24799,"БРАК ПОКРИТТЯ Миска Trixie д/котів з лапками срібна кераміч 11см 300мл","Менше 10","Миски для котів",103.98,0,{"$f":"Trixie!I$37","v":0},{"$f":"Trixie!J$37","v":0}]
[null,1111190086,24650,"БРАК ПОКРИТТЯ Миска Trixie для котів Mimi керамічна 300 мл/12 см","Менше 10","Миски для котів",73.92,0,{"$f":"Trixie!I$38","v":0},{"$f":"Trixie!J$38","v":0}]
[null,1111186612,24492,"БРАК ПОКРИТТЯ Миска Trixie для котів з рибкою керамічна 200мл d-13см","Менше 10","Миски для котів",51.36,0,{"$f":"Trixie!I$39","v":0},{"$f":"Trixie!J$39","v":0}]
[null,1111186797,24807,"БРАК ПОКРИТТЯ Миска Trixie для котів Котик керамічна 150мл d-14см","Менше 10","Миски для котів",119.04,0,{"$f":"Trixie!I$40","v":0},{"$f":"Trixie!J$40","v":0}]
[null,1111189384,25023,"БРАК ПОКРИТТЯ Миска Trixie для собак керамічна біла 400мл 13см","Менше 10","Миски та годівниці для собак",73.92,0,{"$f":"Trixie!I$41","v":0},{"$f":"Trixie!J$41","v":0}]
[null,1111186739,25020,"БРАК ПОКРИТТЯ Миска Trixie для собак керамічна чорна 400мл 13см","Менше 10","Миски та годівниці для собак",73.92,0,{"$f":"Trixie!I$42","v":0},{"$f":"Trixie!J$42","v":0}]
[null,1111186889,24520,"БРАК ПОКРИТТЯ Миска д/собак медленного кормления, керамика, 0.45л/14см","Менше 10","Миски та годівниці для собак",194.22,0,{"$f":"Trixie!I$43","v":0},{"$f":"Trixie!J$43","v":0}]
[null,1111186666,24790,"БРАК ПОКРИТТЯ Миски Trixie кот Eat on Feet мет/підст 2x300мл/12см","Менше 10","Миски та годівниці для собак",209.22,0,{"$f":"Trixie!I$44","v":0},{"$f":"Trixie!J$44","v":0}]
[null,1111186907,24791,"БРАК ПОКРИТТЯ Миски Trixie кот EatFeet керам метал/підст 2x300мл/12см","Менше 10","Миски та годівниці для собак",239.28,0,{"$f":"Trixie!I$45","v":0},{"$f":"Trixie!J$45","v":0}]
[null,1111187710,24820,"БРАК ПОКРИТТЯ Підставка дерев +миски керам/чорн собак 2*0,2л/28*5*15см","Менше 10","Миски та годівниці для собак",420.96,0,{"$f":"Trixie!I$46","v":0},{"$f":"Trixie!J$46","v":0}]
[null,1111187708,24791,"БРАК ПОКРИТТЯ, НЕТОВ. ВИГЛ. Підставка  Eat on Feet +миски 2*0,3л/12см","Менше 10","Миски та годівниці для собак",239.28,0,{"$f":"Trixie!I$47","v":0},{"$f":"Trixie!J$47","v":0}]
[null,1111188478,25021,"Брак.емал Миска Trixie для собак керамічна чорна 900мл 16см","Менше 10","Миски та годівниці для собак",103.98,0,{"$f":"Trixie!I$48","v":0},{"$f":"Trixie!J$48","v":0}]
[null,1111188939,45739,"ВІДІРВАНІ Іграшка Trixie для котів Вудочка з трьома м_ячиками 35см","Менше 10","Іграшки для котів",44.52,0,{"$f":"Trixie!I$49","v":0},{"$f":"Trixie!J$49","v":0}]
[null,1111188830,24920,"відс.винт.стійк Миска Trixie д/соб подвійна мет2x750мл/17см h-27см","Менше 10","Миски та годівниці для собак",336.36,0,{"$f":"Trixie!I$50","v":0},{"$f":"Trixie!J$50","v":0}]
[null,1111188643,40394,"відс.рамк Туалет Trixie Brisko для кот з борт пласт прозор 38x11x50см","Менше 10","Туалети для котів",167.28,0,{"$f":"Trixie!I$51","v":0},{"$f":"Trixie!J$51","v":0}]
[null,1111188831,24922,"відс.центр.стійка Миска Trixie д/собак подвійна мет2x2,8 л/24см h-50см","Менше 10","Миски та годівниці для собак",590.03,0,{"$f":"Trixie!I$52","v":0},{"$f":"Trixie!J$52","v":0}]
[null,1111189864,2462,"Відсут. караб.Поїлка Trixie для собак для подорожей пластикова 250 мл","Менше 10","Сумки, переноски та посуд для подорожей з собаками",51.36,0,{"$f":"Trixie!I$53","v":0},{"$f":"Trixie!J$53","v":0}]
[null,1111188650,40154,"відсут.рамк.застіб Туалет Trixie Berto кот борт/сіт/заст сір39х22x59см","Менше 10","Туалети для котів",396.17,0,{"$f":"Trixie!I$54","v":0},{"$f":"Trixie!J$54","v":0}]
[null,1111165898,55610,"Годівниця Trixie для птахів для вікна з присосками 225мл 15х15х6см","Менше 10","Обладнання для птахів",238.01,294,{"$f":"Trixie!I$55","v":0},{"$f":"Trixie!J$55","v":0}]
[null,1111121667,2402,"Гребінець Trixie для котів від бліх пластиковий двухсторонній 9см","Менше 10","Догляд та гігієна для собак",36,47,{"$f":"Trixie!I$56","v":0},{"$f":"Trixie!J$56","v":0}]
[null,1111191319,39811,"ДЕФОРМОВ.  Переноска Trixie Capri 1-6кг сіра XS 32x31x48см","Менше 10","Сумки, переноски та посуд для подорожей з котами",298.02,0,{"$f":"Trixie!I$57","v":0},{"$f":"Trixie!J$57","v":0}]
[null,1111191318,39821,"ДЕФОРМОВ. Переноска Trixie Capri 2 до 8кг сіра XS-S 37x34x55см","Менше 10","Сумки, переноски та посуд для подорожей з котами",486.31,0,{"$f":"Trixie!I$58","v":0},{"$f":"Trixie!J$58","v":0}]
[null,1111188987,"3982-40","Застібка Trixie для переносок Capri 3981-83 3985 3986 5шт Арт3982-40","Менше 10","Сумки, переноски та посуд для подорожей з котами",0,0,{"$f":"Trixie!I$59","v":0},{"$f":"Trixie!J$59","v":0}]
[null,1111177746,"39741-60*****","Застібка Trixie для переносок Skudo для арт39741/39735/39736 пластик","Менше 10",null,50.16,65,{"$f":"Trixie!I$60","v":0},{"$f":"Trixie!J$60","v":0}]
[null,1111191442,43181,"ЗЛАМ. КУТИК Дряпка Trixie д/котів настінна сизаль/дерево беж 11x56см","Менше 10","Дряпки для котів",133.44,0,{"$f":"Trixie!I$61","v":0},{"$f":"Trixie!J$61","v":0}]
[null,1111190593,"4516_1шт","ЗЛАМАНА Іграшка Trixie для котів Мишка з пір_ям/м_ятою 50см","Менше 10","Іграшки для котів",22.55,0,{"$f":"Trixie!I$62","v":0},{"$f":"Trixie!J$62","v":0}]
[null,1111190005,4135,"ЗЛАМАНЕ КРІПЛ. Іграшка Trixie Crazy Circle кот ігр/трек/мишка 24х29см","Менше 10","Іграшки для котів",115.26,0,{"$f":"Trixie!I$63","v":0},{"$f":"Trixie!J$63","v":0}]
[null,1111191470,"92451_Christmas","Іграшка Trixie для котів Мишка тканина 2 шт 7 см арт 92451","Більше 10","Іграшки для котів",108.6,141,{"$f":"Trixie!I$64","v":0},{"$f":"Trixie!J$64","v":0}]
[null,1111191469,"92450_Christmas","Іграшка Trixie для котів Різдв_яна цукерка тканина 2шт 11см арт 92450","Менше 10","Іграшки для котів",108.6,141,{"$f":"Trixie!I$65","v":0},{"$f":"Trixie!J$65","v":0}]
[null,1111191463,"92605_Christmas","Іграшка Trixie для собак Різдв_яна кісточка плюш 24 см арт 92605","Менше 10","Іграшки для собак",136.32,177,{"$f":"Trixie!I$66","v":0},{"$f":"Trixie!J$66","v":0}]
[null,1111177550,"92592_Christmas","Іграшка Trixie для собак Різдв_яний олень плюш канат 32 см арт 92592","Менше 10","Іграшки для собак",308.52,401,{"$f":"Trixie!I$67","v":0},{"$f":"Trixie!J$67","v":0}]
[null,1111148121,"92497_Christmas 6шт","Іграшка Trixie для собак Різдвяна Сніжка зі звуком плюш 10см","Більше 10","Іграшки для собак",485.28,631,{"$f":"Trixie!I$68","v":0},{"$f":"Trixie!J$68","v":0}]
[null,1111192428,24790,"ІРЖА Миски Trixie Eat on Feet кераміка метал/підставка 2x300мл/12см","Менше 10","Миски для котів",209.22,0,{"$f":"Trixie!I$69","v":0},{"$f":"Trixie!J$69","v":0}]
[null,1111191289,24791,"ІРЖА Миски Trixie д/котів Eat on Feet метал/підставка 2x300мл/12см","Менше 10","Миски для котів",239.28,0,{"$f":"Trixie!I$70","v":0},{"$f":"Trixie!J$70","v":0}]
[null,1111176275,"24851-10","Кільце Trixie змінний для собачої миски 24851 гума","Менше 10",null,0,0,{"$f":"Trixie!I$71","v":0},{"$f":"Trixie!J$71","v":0}]
[null,1111180978,"31186 пошт.","Ласощі Denta Fun Chicken Pop д/собз курячою печінкою 13см/50г 1шт","Більше 100","Ласощі для собак",42.64,0,{"$f":"Trixie!I$72","v":0},{"$f":"Trixie!J$72","v":0}]
[null,1111181142,"317071_150шт","Ласощі PREMIO д/соб бублик ягня/курка 4см 17г 150шт/уп","Менше 10",null,3006.49,3908,{"$f":"Trixie!I$73","v":0},{"$f":"Trixie!J$73","v":0}]
[null,1111199563,"31900*****","Ласощі Trixie Creamy Snacks для собак з куркою 5 шт х 14 г PL","Більше 10","Ласощі для котів",70.150000000000006,91,{"$f":"Trixie!I$74","v":0},{"$f":"Trixie!J$74","v":0}]
[null,1111192883,"315432_10шт","Ласощі Trixie для собак Льодяник курка/сир 10см 20г","Більше 10","Ласощі для собак",0,0,{"$f":"Trixie!I$75","v":0},{"$f":"Trixie!J$75","v":0}]
[null,1111194650,"2704 _5шт","Ласощі Trixie для собак Пиріжок з бичачої печінки 45 г","Більше 10","Ласощі для собак",0,0,{"$f":"Trixie!I$76","v":0},{"$f":"Trixie!J$76","v":0}]
[null,1111192882,"31389_5шт","Ласощі Trixie для собак Рулет жувальний бичача піца 15 см 55 г","Більше 10","Ласощі для собак",298.74,338,{"$f":"Trixie!I$77","v":0},{"$f":"Trixie!J$77","v":0}]
[null,1111193099,"92660_5шт*****","Ласощі Trixie для собак Ялинка з качиним м_ясом 12 см 28 г","Більше 10","Ласощі для собак",0,0,{"$f":"Trixie!I$78","v":0},{"$f":"Trixie!J$78","v":0}]
[null,1111191533,"315433_10шт","Ласощі Trixie Міні крендель з куркою 6х4см_10шт","Менше 10","Ласощі для собак",0,0,{"$f":"Trixie!I$79","v":0},{"$f":"Trixie!J$79","v":0}]
[null,1111170778,"313261 пошт.*****","Ласощі д/соб. Жув. рол Denta Fun для чищення зубів з куркою 28см 1шт","Більше 10","Ласощі для собак",63.27,0,{"$f":"Trixie!I$80","v":0},{"$f":"Trixie!J$80","v":0}]
[null,1111188593,24798,"МАЛ. СКОЛ Миска Trixie для котів керамічна 0,15л діам-13см біла","Менше 10","Миски для котів",119.04,0,{"$f":"Trixie!I$81","v":0},{"$f":"Trixie!J$81","v":0}]
[null,1111189931,45786,"НЕ ПИЩИТЬ Ігр. Trixie д/котів Кріт з котячою мятою та звуком плюш 5см","Менше 10","Іграшки для котів",65.819999999999993,0,{"$f":"Trixie!I$82","v":0},{"$f":"Trixie!J$82","v":0}]
[null,1111187321,45785,"НЕ ПИЩИТЬ Іграшка Trixie д/котів Мишка пискавка/котяч.м'ята плюш 8см","Менше 10","Іграшки для котів",62.04,0,{"$f":"Trixie!I$83","v":0},{"$f":"Trixie!J$83","v":0}]
[null,1111187832,3539,"НЕ ПИЩИТЬ Іграшка Trixie для собак Курка з пискавкою латекс 43см","Менше 10","Іграшки для собак",134.04,0,{"$f":"Trixie!I$84","v":0},{"$f":"Trixie!J$84","v":0}]
[null,1111187584,"4199_1шт","НЕ ПИЩИТЬ Мишка-пищавка з чіпом 6 см","Менше 10","Іграшки для котів",77.67,0,{"$f":"Trixie!I$85","v":0},{"$f":"Trixie!J$85","v":0}]
[null,1111187704,24609,"НЕ ПРАЦ КЛАПАН Поїлка з мискою 0,55 біла/блакитна пластикова","Менше 10","Контейнери для зберігання їжі собак",90.82,0,{"$f":"Trixie!I$86","v":0},{"$f":"Trixie!J$86","v":0}]
[null,1111187705,24609,"НЕ ПРАЦ КЛАПАН, БЕЗ УП Поїлка з мискою 0,55 біла/блакитна пластикова","Менше 10","Контейнери для зберігання їжі собак",90.82,0,{"$f":"Trixie!I$87","v":0},{"$f":"Trixie!J$87","v":0}]
[null,1111193265,13447,"НЕ ПРАЦ. 1 ДІОД Брелок-ліхт.Trixie д/соб. водовідшт. силікон 8х2,4см","Менше 10","Амуніція для собак",77.67,0,{"$f":"Trixie!I$88","v":0},{"$f":"Trixie!J$88","v":0}]
[null,1111187585,4083,"НЕ ПРАЦЮЄ  Байбак 8,5 см в упаковці","Менше 10","Іграшки для котів",51.36,0,{"$f":"Trixie!I$89","v":0},{"$f":"Trixie!J$89","v":0}]
[null,1111187583,4092,"НЕ ПРАЦЮЄ Іграшка Trixie для котів Миша заводна 7см","Менше 10","Іграшки для котів",43.85,0,{"$f":"Trixie!I$90","v":0},{"$f":"Trixie!J$90","v":0}]
[null,1111187330,"4089_1шт","НЕ ПРАЦЮЄ Мышь меховая вибрирующая 7-10см, 1шт,","Менше 10","Іграшки для котів",44.52,0,{"$f":"Trixie!I$91","v":0},{"$f":"Trixie!J$91","v":0}]
[null,1111192413,13447,"НЕ СВІТИТЬ Брелок-ліхтарик Trixie водовідштовхувальний силікон 8х2,4см","Менше 10","Амуніція для собак",77.67,0,{"$f":"Trixie!I$92","v":0},{"$f":"Trixie!J$92","v":0}]
[null,1111190362,24544,"НЕ ТОВ ВИД Килим. під мис.Trixie д/кот. Comic Cat сірий пластик44х28см","Менше 10","Килимки під миски для котів",50.74,0,{"$f":"Trixie!I$93","v":0},{"$f":"Trixie!J$93","v":0}]
[null,1111187577,5161,"НЕ ТРИМ. КРІП  Гойдалка для птахів канат 66см?18мм","Менше 10","Обладнання для птахів",88.94,0,{"$f":"Trixie!I$94","v":0},{"$f":"Trixie!J$94","v":0}]
[null,1111187588,41686,"НЕ ТРИМ.ЗАСТ Нашийник для кошенят зі світловідбиваючою смугою","Менше 10","Амуніція для котів",26.94,0,{"$f":"Trixie!I$95","v":0},{"$f":"Trixie!J$95","v":0}]
[null,1111187725,4416,"НЕКОМПЛЕКТ  Решітка захисна для вікна 62х16/8 см","Менше 10","Інструменти для догляду за будинком з котами",103.98,0,{"$f":"Trixie!I$96","v":0},{"$f":"Trixie!J$96","v":0}]
[null,1111188595,2461,"НЕМАЄ КОРАБІНА Поїлка Trixie для собак для подорожей пластикова 500мл","Менше 10","Сумки, переноски та посуд для подорожей з собаками",64.56,0,{"$f":"Trixie!I$97","v":0},{"$f":"Trixie!J$97","v":0}]
[null,1111187452,35492,"НЕТОВ. В. Утка латекс ориг. звук 30см","Менше 10","Іграшки для собак",149.1,0,{"$f":"Trixie!I$98","v":0},{"$f":"Trixie!J$98","v":0}]
[null,1111187657,"3443_1шт","НЕТОВ. ВИГЛ. Іграшка Trixie для собак М_яч Неон ассорті поролон 6см","Менше 10","Іграшки для собак",31.32,0,{"$f":"Trixie!I$99","v":0},{"$f":"Trixie!J$99","v":0}]
[null,1111190444,35491,"НЕТОВ. ВИГЛ. Іграшка Trixie для собак Порося з пискавкою латекс 21см","Менше 10","Іграшки для собак",119.04,0,{"$f":"Trixie!I$100","v":0},{"$f":"Trixie!J$100","v":0}]
[null,1111187733,19406,"НЕТОВ. ВИГЛ. Пояс Trixie д/собак підтримуюч/неопренов/чорн M 55–65см","Менше 10","Амуніція для собак",130.32,0,{"$f":"Trixie!I$101","v":0},{"$f":"Trixie!J$101","v":0}]
[null,1111187006,24967,"НЕТОВ.В. БЕЗ РЕЗИНКИ Двойная миска д/собак, пластик, 2х0.2л/10см","Менше 10","Миски та годівниці для собак",60.66,0,{"$f":"Trixie!I$102","v":0},{"$f":"Trixie!J$102","v":0}]
[null,1111165785,"207518*****","Перестіжка  Fusion  нейлон, L–XL: 2.00 м/25 мм, графіт/синій","Менше 10","Амуніція для собак",523.63,647,{"$f":"Trixie!I$103","v":0},{"$f":"Trixie!J$103","v":0}]
[null,1111150625,"200313*****","Повідець Trixie д/собак Premium індіго неопрен/підкладка L-XL 1м/25мм","Менше 10","Амуніція для собак",410.17,506,{"$f":"Trixie!I$104","v":0},{"$f":"Trixie!J$104","v":0}]
[null,1111150606,"200114*****","Повідець Trixie д/собак Premium карам неопрен/підклад XS-S 120см/15мм","Менше 10","Амуніція для собак",288.85000000000002,358,{"$f":"Trixie!I$105","v":0},{"$f":"Trixie!J$105","v":0}]
[null,1111150631,"200319*****","Повідець Trixie д/собак Premium оливков неопрен/підкладка L-XL 1м/25мм","Менше 10","Амуніція для собак",410.17,506,{"$f":"Trixie!I$106","v":0},{"$f":"Trixie!J$106","v":0}]
[null,1111150621,"200219*****","Повідець Trixie д/собак Premium оливков неопрен/підкладка M-L 1м/20мм","Менше 10","Амуніція для собак",313.11,387,{"$f":"Trixie!I$107","v":0},{"$f":"Trixie!J$107","v":0}]
[null,1111141356,"14131*****","Повідець Trixie для собак Classic чорний нейлон L-XL 120х180см/25мм","Менше 10","Амуніція для собак",164.07,202,{"$f":"Trixie!I$108","v":0},{"$f":"Trixie!J$108","v":0}]
[null,1111150640,"200417*****","Повідець-перестібка Trixie д/собак Premium нейлон зелений XS-S 2м/15мм","Менше 10","Амуніція для собак",288.85000000000002,358,{"$f":"Trixie!I$109","v":0},{"$f":"Trixie!J$109","v":0}]
[null,1111150648,"200514*****","Повідець-перестібка Trixie д/собак Premium нейлон карамель M-L 2м/20мм","Менше 10","Амуніція для собак",361.64,447,{"$f":"Trixie!I$110","v":0},{"$f":"Trixie!J$110","v":0}]
[null,1111188731,39813,"ПОГАН.ТРИМ.ЗАСТІБК. Переноска Trixie соб/кот Capri 1-6кг XS 32x31x48см","Менше 10","Сумки, переноски та посуд для подорожей з собаками",298.02,0,{"$f":"Trixie!I$111","v":0},{"$f":"Trixie!J$111","v":0}]
[null,1111187571,2306,"ПОГНУТІ ЗУБЦ Пуходер. для соб із кульк. гумов. ручка двостор. 10?17 см","Менше 10","Догляд та гігієна для собак",64.52,0,{"$f":"Trixie!I$112","v":0},{"$f":"Trixie!J$112","v":0}]
[null,1111187567,2305,"ПОГНУТІ ЗУБЦІ  Пуход. д/соб. із кульк. двостор.дерев яна руч. 10*18 см","Менше 10","Догляд та гігієна для собак",64.52,0,{"$f":"Trixie!I$113","v":0},{"$f":"Trixie!J$113","v":0}]
[null,1111187407,2300,"ПОГНУТІ ЗУБЦІ Пуходерка д/собак із кульками дерев/ручка 10*18 см","Менше 10","Догляд та гігієна для собак",57.66,0,{"$f":"Trixie!I$114","v":0},{"$f":"Trixie!J$114","v":0}]
[null,1111187402,2301,"ПОГНУТІ ЗУБЦІ Пуходерка для собак із кульками гумова ручка 10*17см","Більше 10","Догляд та гігієна для собак",51.36,0,{"$f":"Trixie!I$115","v":0},{"$f":"Trixie!J$115","v":0}]
[null,1111187624,5401,"ПОДРЯПИНИ Басейн Trixie Bath House д/птахів/підвісн пластик 14х14х15см","Менше 10","Обладнання для птахів",58.92,0,{"$f":"Trixie!I$116","v":0},{"$f":"Trixie!J$116","v":0}]
[null,1111187623,63004,"ПОДРЯПИНИ Ванна для гризунів 22 * 12 * 12см дерев яна з піском","Менше 10","Обладнання для гризунів",217.97,0,{"$f":"Trixie!I$117","v":0},{"$f":"Trixie!J$117","v":0}]
[null,1111189550,40154,"ПодряпТуалет Trixie Berto кот борти/сітка/застібки пл сірий 39х22x59см","Менше 10","Туалети для котів",396.18,0,{"$f":"Trixie!I$118","v":0},{"$f":"Trixie!J$118","v":0}]
[null,1111162053,"925102_Christmas","Попона Trixie для собак Різдвяна червона поліестер S d=52*35см","Менше 10","Одяг для собак",365.1,475,{"$f":"Trixie!I$119","v":0},{"$f":"Trixie!J$119","v":0}]
[null,1111187418,3539,"ПОРВ Курка латексна 51см","Менше 10","Іграшки для собак",134.04,0,{"$f":"Trixie!I$120","v":0},{"$f":"Trixie!J$120","v":0}]
[null,1111186910,24832,"ПОРВ. ЕТ. Подставка под миски низкая+2 миски 0,75л/15см","Менше 10","Миски та годівниці для собак",119.04,0,{"$f":"Trixie!I$121","v":0},{"$f":"Trixie!J$121","v":0}]
[null,1111191960,35492,"ПОРВ. Іграшка Trixie для собак Качка з пискавкою латекс 30см","Менше 10","Іграшки для собак",149.1,0,{"$f":"Trixie!I$122","v":0},{"$f":"Trixie!J$122","v":0}]
[null,1111190404,19406,"ПОРВ. Пояс Trixie для собак підтримуючий неопреновий чорний M: 55–65 с","Менше 10","Амуніція для собак",130.32,0,{"$f":"Trixie!I$123","v":0},{"$f":"Trixie!J$123","v":0}]
[null,1111187070,2889,"ПОШКОДЖ. Сумка-переноска з кісточками  Adrina  42х27х26 см","Менше 10","Сумки, переноски та посуд для подорожей з собаками",452.23,0,{"$f":"Trixie!I$124","v":0},{"$f":"Trixie!J$124","v":0}]
[null,1111187794,"60573_1шт Trixie","ПРОКР. КОВП. Поїлка Trixie д/гриз. автом. гвинт/кріплення пласт. 500мл","Менше 10","Обладнання для гризунів",64.52,0,{"$f":"Trixie!I$125","v":0},{"$f":"Trixie!J$125","v":0}]
[null,1111187795,"6054_1шт","ПРОКР.КОВПАЧ.  Поїлка Trixie д/гризунів автомат. пластикова 450мл","Менше 10","Обладнання для гризунів",36.33,0,{"$f":"Trixie!I$126","v":0},{"$f":"Trixie!J$126","v":0}]
[null,1111191725,60808,"СКОЛ Миска Trixie HoneyHopper  керамічна 250 мл 11 см Арт60808","Менше 10","Обладнання для гризунів",74,0,{"$f":"Trixie!I$127","v":0},{"$f":"Trixie!J$127","v":0}]
[null,1111193149,25120,"СКОЛ Миска Trixie д/кот Zentangle керам чорно-біла 12см 0,3л","Менше 10","Миски для котів",73.92,0,{"$f":"Trixie!I$128","v":0},{"$f":"Trixie!J$128","v":0}]
[null,1111186900,24494,"СКОЛ Миска Trixie д/кот форма котячої мордочки керам 250мл/12см","Менше 10","Миски для котів",73.91,0,{"$f":"Trixie!I$129","v":0},{"$f":"Trixie!J$129","v":0}]
[null,1111187843,24499,"СКОЛ Миска Trixie д/котів біла чорн/котик керам 250мл d-13см","Менше 10","Миски для котів",58.92,0,{"$f":"Trixie!I$130","v":0},{"$f":"Trixie!J$130","v":0}]
[null,1111186898,24531,"СКОЛ Миска Trixie д/котів з лапками коричн/керам 12см 300мл","Менше 10","Миски та годівниці для собак",73.91,0,{"$f":"Trixie!I$131","v":0},{"$f":"Trixie!J$131","v":0}]
[null,1111187850,24799,"СКОЛ Миска Trixie д/котів з лапками срібна кераміч 11см 300мл","Менше 10","Миски для котів",103.98,0,{"$f":"Trixie!I$132","v":0},{"$f":"Trixie!J$132","v":0}]
[null,1111186602,24778,"СКОЛ Миска Trixie д/собак Jimmy чорна лапка керам 750мл 16см","Менше 10","Миски та годівниці для собак",179.16,0,{"$f":"Trixie!I$133","v":0},{"$f":"Trixie!J$133","v":0}]
[null,1111187361,4009,"СКОЛ Миска Trixie для котів з котиком керамічна 11см 300мл","Менше 10","Миски для котів",65.819999999999993,0,{"$f":"Trixie!I$134","v":0},{"$f":"Trixie!J$134","v":0}]
[null,1111186614,24492,"СКОЛ Миска Trixie для котів з рибкою керамічна 200мл d-13см","Менше 10","Миски для котів",51.36,0,{"$f":"Trixie!I$135","v":0},{"$f":"Trixie!J$135","v":0}]
[null,1111186607,"4008_1шт","СКОЛ Миска Trixie для котів керамічна 200мл d-11,5см","Менше 10","Миски для котів",65.819999999999993,0,{"$f":"Trixie!I$136","v":0},{"$f":"Trixie!J$136","v":0}]
[null,1111192416,24795,"СКОЛ Миска Trixie для котів короткомордих порід керамічна 15см 300мл","Менше 10","Миски для котів",88.94,0,{"$f":"Trixie!I$137","v":0},{"$f":"Trixie!J$137","v":0}]
[null,1111187846,24770,"СКОЛ Миска Trixie для котів короткомордих порід синя/біла 15см 300мл","Менше 10","Миски для котів",88.94,0,{"$f":"Trixie!I$138","v":0},{"$f":"Trixie!J$138","v":0}]
[null,1111187842,24807,"СКОЛ Миска Trixie для котів Котик керамічна 150мл d-14см","Менше 10","Миски для котів",119.04,0,{"$f":"Trixie!I$139","v":0},{"$f":"Trixie!J$139","v":0}]
[null,1111187853,24802,"СКОЛ Миска Trixie для котів пласка та широка керамічна 23см 600мл","Менше 10","Миски для котів",179.14,0,{"$f":"Trixie!I$140","v":0},{"$f":"Trixie!J$140","v":0}]
[null,1111191847,25025,"СКОЛ Миска Trixie для собак керамічна біла 1,6л 20см","Менше 10","Миски та годівниці для собак",179.14,0,{"$f":"Trixie!I$141","v":0},{"$f":"Trixie!J$141","v":0}]
[null,1111186930,25023,"СКОЛ Миска Trixie для собак керамічна біла 400мл 13см","Менше 10","Миски та годівниці для собак",73.92,0,{"$f":"Trixie!I$142","v":0},{"$f":"Trixie!J$142","v":0}]
[null,1111187856,24651,"СКОЛ Миска Trixie керамічна пласка з принтом 0,2 л 15 см біла Арт24651","Менше 10","Миски та годівниці для собак",88.98,0,{"$f":"Trixie!I$143","v":0},{"$f":"Trixie!J$143","v":0}]
[null,1111191335,24495,"СКОЛ Миска Trixie овальна кераміч 15х10см 200мл","Менше 10","Миски для котів",73.92,0,{"$f":"Trixie!I$144","v":0},{"$f":"Trixie!J$144","v":0}]
[null,1111186611,25051,"СКОЛ Миска д/собак Pets Home, 0.8л/16см,керамика крем/голубая","Менше 10","Миски та годівниці для собак",103.98,0,{"$f":"Trixie!I$145","v":0},{"$f":"Trixie!J$145","v":0}]
[null,1111186887,24784,"СКОЛ Миска керам. д/перса серая 0,3л/15см","Менше 10","Миски для котів",88.94,0,{"$f":"Trixie!I$146","v":0},{"$f":"Trixie!J$146","v":0}]
[null,1111186652,"25083 Trixie","СКОЛ Миска керам. д/соб. серебро/белая 0,3л/12см","Менше 10","Миски та годівниці для собак",95.94,0,{"$f":"Trixie!I$147","v":0},{"$f":"Trixie!J$147","v":0}]
[null,1111186896,4007,"СКОЛ Миска керамічна для котів 0,2л/11,5см","Менше 10","Миски для котів",73.91,0,{"$f":"Trixie!I$148","v":0},{"$f":"Trixie!J$148","v":0}]
[null,1111192069,24791,"СКОЛ Миски Trixie кот Eat on Feet керам метал/підст 2x300мл/12см","Менше 10","Миски для котів",239.27,0,{"$f":"Trixie!I$149","v":0},{"$f":"Trixie!J$149","v":0}]
[null,1111191601,"39814*****","Скол пласт.Переноска Trixie Capri 1 до 6кг зелена XS 32x31x48см","Менше 10","Сумки, переноски та посуд для подорожей з котами",274.86,0,{"$f":"Trixie!I$150","v":0},{"$f":"Trixie!J$150","v":0}]
[null,1111186667,24790,"СКОЛ Подставка Eat on Feet с керам. мисками д/котов 0,3л/12см","Менше 10","Миски та годівниці для собак",209.22,0,{"$f":"Trixie!I$151","v":0},{"$f":"Trixie!J$151","v":0}]
[null,1111186922,24640,"СКОЛ Подставка Eat on Feet с керам. мисками для собак 0,25л/13см","Менше 10","Миски та годівниці для собак",224.28,0,{"$f":"Trixie!I$152","v":0},{"$f":"Trixie!J$152","v":0}]
[null,1111192643,27742,"ТЕРМ 03.26 ПОРВ Trixie Ріг буйвола лас.д/соб жувал. M серед. 109г","Більше 10","Ласощі для собак",82.68,0,{"$f":"Trixie!I$153","v":0},{"$f":"Trixie!J$153","v":0}]
[null,1111204601,"31389_5шт","ТЕРМ 10.25 Ласощі Trixie д/соб. Рулет жувальний бичача піца 15 см 55 г","Менше 10","Ласощі для собак",149.4,0,{"$f":"Trixie!I$154","v":0},{"$f":"Trixie!J$154","v":0}]
[null,1111191889,"315431_5шт","ТЕРМ 11.25 БИТ Лас.Trixie PREMIO Lollipop bulk д/соб 8 см 10 г 5 шт/уп","Менше 10","Ласощі для собак",35.04,0,{"$f":"Trixie!I$155","v":0},{"$f":"Trixie!J$155","v":0}]
[null,1111187043,27742,"ТЕРМ. 02.26 ПОРВ. Ласощі Trixie для собак Ріг буйвола жувальний M 109г","Більше 10","Ласощі для собак",81.61,0,{"$f":"Trixie!I$156","v":0},{"$f":"Trixie!J$156","v":0}]
[null,1111194003,31260,"ТЕРМ. 02.27, ЗЛАМ. Ласощі Trixie Chewing cheese, XS: 13.5 см, 30 г","Менше 10","Ласощі для собак",100.86,0,{"$f":"Trixie!I$157","v":0},{"$f":"Trixie!J$157","v":0}]
[null,1111193871,"2801_500г","ТЕРМ. 05.25 Trixie Sprats dried fish for dogs Шпроти в_ялена риба 500г","Більше 10","Ласощі для собак",370.02,0,{"$f":"Trixie!I$158","v":0},{"$f":"Trixie!J$158","v":0}]
[null,1111187703,2461,"ТРІСН. ВУШКО Поїлка Trixie для собак для подорожей пластикова 500мл","Менше 10","Сумки, переноски та посуд для подорожей з собаками",64.52,0,{"$f":"Trixie!I$159","v":0},{"$f":"Trixie!J$159","v":0}]
[null,1111150870,204816,"Шлея-вісімка Trixie д/собак Premium Н-подіб графіт XXS-XS 20-32см/10мм","Більше 10","Амуніція для собак",181.64,224,{"$f":"Trixie!I$160","v":0},{"$f":"Trixie!J$160","v":0}]
[null,1111150834,"204313*****","Шлея-петля Trixie для собак Premium нейлон індіго XS-S 30-40см/10мм","Менше 10","Амуніція для собак",181.4,224,{"$f":"Trixie!I$161","v":0},{"$f":"Trixie!J$161","v":0}]
[null,1111113347,"33031***","Tropical'!I8","Менше 10","Засоби для догляду за акваріумом",147.06,198,{"$f":"Tropical!I$8","v":0},{"$f":"Tropical!J$8","v":0}]
[null,1111204171,171545,"ТЕРМ. 08.25 Carnilove True Fresh Fish for Adult dogs соб/усі риб 1,4кг","Більше 10","Корм сухий для собак",343.26,0,{"$f":"'True Fresh'!I$8","v":0},{"$f":"'True Fresh'!J$8","v":0}]
[null,1111203239,172137,"ТЕРМ. 09.25 Carnilove True FreshFish Adult SmallBreed соб/мал риба 4кг","Менше 10","Корм сухий для собак",806.16,0,{"$f":"'True Fresh'!I$9","v":0},{"$f":"'True Fresh'!J$9","v":0}]
[null,1111193872,21641,"ТЕРМ 05.25Кор. Vitakraft African для середніх африканських папуг 750 г","Менше 10","Корм для птахів",157.08000000000001,0,{"$f":"Vitakraft!I$8","v":0},{"$f":"Vitakraft!J$8","v":0}]
[null,1111202818,"10645-29219","ТЕРМ 09.25 Корм Vitakraft Premium Menu Vital д/декор. гриз./крол. 1кг","Більше 10","Корм для гризунів",146.82,0,{"$f":"Vitakraft!I$9","v":0},{"$f":"Vitakraft!J$9","v":0}]
[null,1111200571,28823,"ТЕРМ. 08.25 Ласощі Vitakraft Yums подушечки д/котів лосось/Омега-3 40г","Більше 10","Ласощі для котів",57.54,0,{"$f":"Vitakraft!I$10","v":0},{"$f":"Vitakraft!J$10","v":0}]
[null,1111191225,25076,"ТЕРМ. 11.25, ПОРВ. Корм Vitakraft Pellets для шиншил1 кг","Більше 10","Корм для гризунів",65.28,0,{"$f":"Vitakraft!I$11","v":0},{"$f":"Vitakraft!J$11","v":0}]
[null,1111168431,"T000001*****","Наповнювач  Білі лапки  мінеральний, 3-6 мм, T000001","Більше 100","Наповнювачі для котячих туалетів",99.84,135,{"$f":"'Білі лапки'!I$8","v":0},{"$f":"'Білі лапки'!J$8","v":0}]
[null,1111188110,"PR740830","БЕЗ БОК СТІН, Куля Природа для гризунів  діаметром 19см","Менше 10","Обладнання для гризунів",63.45,0,{"$f":"Природа!I$8","v":0},{"$f":"Природа!J$8","v":0}]
[null,1111187632,"PR740830","БЕЗ КРИШ Куля Природа для гризунів прогулянкова діаметром 19см","Менше 10","Обладнання для гризунів",60.44,0,{"$f":"Природа!I$9","v":0},{"$f":"Природа!J$9","v":0}]
[null,1111191317,"PR740444","БЕЗ СІТКИ Туалет Природа №1 з сіткою для котів 34,5х26х5см","Менше 10","Туалети для котів",32.340000000000003,0,{"$f":"Природа!I$10","v":0},{"$f":"Природа!J$10","v":0}]
[null,1111192853,"PR241976","БИТ КУТ  Сумка-переноска Природа Basic 3 для котів та собак 42х32х24см","Менше 10","Сумки, переноски та посуд для подорожей з собаками",444.84,0,{"$f":"Природа!I$11","v":0},{"$f":"Природа!J$11","v":0}]
[null,1111187840,"PR241232","БИТ.  Декорація Природа Піраміда Майя для акваріума 11,5х11х8см","Менше 10","Декорації для акваріума",115,0,{"$f":"Природа!I$12","v":0},{"$f":"Природа!J$12","v":0}]
[null,1111187636,"PR740806","БИТ. Будиночок Природа для птахів середній 13x15x16см","Менше 10","Обладнання для птахів",80.14,0,{"$f":"Природа!I$13","v":0},{"$f":"Природа!J$13","v":0}]
[null,1111187639,"PR241106","БИТ. Декорація Природа Вулкан для акваріума 11x6x8см","Менше 10","Декорації для акваріума",117.75,0,{"$f":"Природа!I$14","v":0},{"$f":"Природа!J$14","v":0}]
[null,1111193370,"PR001198","БРАК ЗБОРУ Будиночок Природа Мрія для кролика 30x22x18 см","Менше 10","Обладнання для гризунів",216.42,0,{"$f":"Природа!I$15","v":0},{"$f":"Природа!J$15","v":0}]
[null,1111191611,"PR740435","Відс.рамка,Туалет Природа Маркіз з рамкою для котів 42,5х31,5х13см","Менше 10","Туалети для котів",57.06,0,{"$f":"Природа!I$16","v":0},{"$f":"Природа!J$16","v":0}]
[null,5155,"PR240124*****","Вітаміни Природа Медові для хвилястих папуг мультивітамін насіння 20г","Немає в наявності","Вітаміни та мінерали для птахів",9.18,14,{"$f":"Природа!I$17","v":0},{"$f":"Природа!J$17","v":0}]
[null,1111182749,"PR243791","Дряпка Гігант стовпчик сизаль МІКС","Менше 10","Дряпки для котів",584.1,876,{"$f":"Природа!I$18","v":0},{"$f":"Природа!J$18","v":0}]
[null,1111179154,"PR243474","Дряпка Шале сіро-бежева","Менше 10","Дряпки для котів",1317.54,1711,{"$f":"Природа!I$19","v":0},{"$f":"Природа!J$19","v":0}]
[null,1111189986,"PR740325*****","ЗЛАМ. БАРАБАН Дряпка Природа Д22 д/котів з барабаном беж 36x36x107см","Менше 10","Дряпки для котів",786.12,0,{"$f":"Природа!I$20","v":0},{"$f":"Природа!J$20","v":0}]
[null,1111187630,"PR740817","ЗЛАМ. НІЖКА  Колесо Природа для хом_яків 14см","Менше 10","Обладнання для гризунів",14.83,0,{"$f":"Природа!I$21","v":0},{"$f":"Природа!J$21","v":0}]
[null,1111138561,"PR240098","Ласощі Природа Колосок Коктейль д/серед/папуг мультифрукт/гор/цитр 90г","Більше 100","Ласощі для птахів",37.44,59,{"$f":"Природа!I$22","v":0},{"$f":"Природа!J$22","v":0}]
[null,1111180865,"PR243562*****","Натуральні сушені ласощі д/собак Жила станова яловича сушена 1000г","Менше 10","Ласощі для собак",521.64,678,{"$f":"Природа!I$23","v":0},{"$f":"Природа!J$23","v":0}]
[null,1111180869,"PR243558*****","Натуральні сушені ласощі д/собак Лапи курячі сушені 1000г","Менше 10","Ласощі для собак",377.4,490,{"$f":"Природа!I$24","v":0},{"$f":"Природа!J$24","v":0}]
[null,1111180877,"PR243550*****","Натуральні сушені ласощі д/собак Мікс яловичий сушений 1000г","Більше 10","Ласощі для собак",488.16,634,{"$f":"Природа!I$25","v":0},{"$f":"Природа!J$25","v":0}]
[null,1111180859,"PR243568*****","Натуральні сушені ласощі д/собак Нирки яловичі сушені 1000г","Менше 10","Ласощі для собак",640.86,833,{"$f":"Природа!I$26","v":0},{"$f":"Природа!J$26","v":0}]
[null,1111180857,"PR243570*****","Натуральні сушені ласощі д/собак Печінка яловича сушена 1000г","Більше 10","Ласощі для собак",483.24,629,{"$f":"Природа!I$27","v":0},{"$f":"Природа!J$27","v":0}]
[null,1111180849,"PR243578*****","Натуральні сушені ласощі д/собак Рубець яловичий сушений 500г","Менше 10","Ласощі для собак",275.88,358,{"$f":"Природа!I$28","v":0},{"$f":"Природа!J$28","v":0}]
[null,1111180851,"PR243576*****","Натуральні сушені ласощі д/собак Рубець яловичий сушений слайсами 500г","Більше 10","Ласощі для собак",296.94,408,{"$f":"Природа!I$29","v":0},{"$f":"Природа!J$29","v":0}]
[null,1111180847,"PR243580*****","Натуральні сушені ласощі д/собак Трахея яловича сушена рублена 500г","Менше 10","Ласощі для собак",266.82,348,{"$f":"Природа!I$30","v":0},{"$f":"Природа!J$30","v":0}]
[null,1111180875,"PR243552*****","Натуральні сушені ласощі д/собак Шлунок качиний сушений слайсами 1000г","Менше 10","Ласощі для собак",649.5,843,{"$f":"Природа!I$31","v":0},{"$f":"Природа!J$31","v":0}]
[null,1111187633,"PR740830","НЕ ПРАЦЮЄ  Куля Природа для гризунів прогулянкова діаметром 19см","Менше 10","Обладнання для гризунів",60.44,0,{"$f":"Природа!I$32","v":0},{"$f":"Природа!J$32","v":0}]
[null,1111188403,"PR001193","НЕЯКІСНА ЗБІРКА Будиночок Природа Мрія для морскої свинки 25x15x13см","Менше 10","Обладнання для гризунів",130.32,0,{"$f":"Природа!I$33","v":0},{"$f":"Природа!J$33","v":0}]
[null,1111191495,"PR240278","ПОРВ. Куля-міні Природа для гризунів бігова на підставці діаметром 13","Менше 10","Обладнання для гризунів",78.540000000000006,0,{"$f":"Природа!I$34","v":0},{"$f":"Природа!J$34","v":0}]
[null,1111187033,"PR241685","ПОРВ. Пісок Природа для гризунів та шиншил 1кг","Більше 10","Догляд та гігієна для гризунів",16.62,0,{"$f":"Природа!I$35","v":0},{"$f":"Природа!J$35","v":0}]
[null,1111188427,"PR241687","ПОРВ. Пісок Природа для декоративних птахів 1000 г","Менше 10","Предмети гігієни для птахів",14.76,0,{"$f":"Природа!I$36","v":0},{"$f":"Природа!J$36","v":0}]
[null,1111187064,"PR243276","ПОРВ. Сумка-переноска Природа Carri для собак 43х32х25см","Менше 10","Сумки, переноски та посуд для подорожей з собаками",227.75,0,{"$f":"Природа!I$37","v":0},{"$f":"Природа!J$37","v":0}]
[null,1111188401,"PR740788/31К","СКОЛ Декорація Природа Дві колоди з амфорою для акваріума 23х23 см","Менше 10","Декорації для акваріума",274.56,0,{"$f":"Природа!I$38","v":0},{"$f":"Природа!J$38","v":0}]
[null,1111193340,"PR740826","СКОЛ ЕМАЛІ Годівничка-поїлка Природа для гризунів 10x6см","Менше 10","Обладнання для гризунів",79.02,0,{"$f":"Природа!I$39","v":0},{"$f":"Природа!J$39","v":0}]
[null,1111193037,"PR740159","ТЕРМ 04.26 БИТ Ласощі Природа Десерт мікс Асорт гриз шар/труб/тарт 70г","Більше 10","Ласощі для гризунів",14.46,0,{"$f":"Природа!I$40","v":0},{"$f":"Природа!J$40","v":0}]
[null,1111193204,"PR740060","ТЕРМ 07.27 БИТ Мінерал Природа Фієста Максі д/птахів мультифрукт 124г","Менше 10","Вітаміни та мінерали для птахів",15.09,0,{"$f":"Природа!I$41","v":0},{"$f":"Природа!J$41","v":0}]
[null,1111190455,"PR740094","ТЕРМ 07.27 ПОРВ Корм Природа Супермікс для яскраво-забарвлених риб 10г","Менше 10","Корм сухий для акваріумних риб",4.9000000000000004,0,{"$f":"Природа!I$42","v":0},{"$f":"Природа!J$42","v":0}]
[null,1111187254,"PR740159","ТЕРМ 09.25, БИТІ Ласощі Природа Десерт  Асорті д/гриз  70г","Менше 10","Ласощі для гризунів",14.46,0,{"$f":"Природа!I$43","v":0},{"$f":"Природа!J$43","v":0}]
[null,1111187161,"PR740013","ТЕРМ 09.26 БИТ  Мінерал Природа для  папуг зелене яблуко 18г","Менше 10","Вітаміни та мінерали для птахів",4.34,0,{"$f":"Природа!I$44","v":0},{"$f":"Природа!J$44","v":0}]
[null,1111193441,"PR740117","ТЕРМ 10.26 ПОРВ  Корм Природа Аквабазіс для акваріумних риб 10г","Менше 10","Корм сухий для акваріумних риб",5.13,0,{"$f":"Природа!I$45","v":0},{"$f":"Природа!J$45","v":0}]
[null,1111187147,"PR740061","ТЕРМ. 01.27 БИТ. Мінерал Природа Фієста Максі для гризунів бурячок 18г","Менше 10","Вітаміни та мінерали для гризунів",16.059999999999999,0,{"$f":"Природа!I$46","v":0},{"$f":"Природа!J$46","v":0}]
[null,1111187125,"PR740063","ТЕРМ. 01.27 БИТ. Мінерал Природа Фієста Максі для гризунів мюслі 18г","Менше 10","Вітаміни та мінерали для гризунів",14.38,0,{"$f":"Природа!I$47","v":0},{"$f":"Природа!J$47","v":0}]
[null,1111187155,"PR740060","ТЕРМ. 01.27 БИТ. Мінерал Природа Фієста Максі для птахів мультиф 124г","Менше 10","Вітаміни та мінерали для птахів",14.38,0,{"$f":"Природа!I$48","v":0},{"$f":"Природа!J$48","v":0}]
[null,1111187133,"PR740063","ТЕРМ. 02.26 БИТ. Мінерал Природа Фієста Максі для гризунів мюслі 18г","Менше 10","Вітаміни та мінерали для гризунів",14.38,0,{"$f":"Природа!I$49","v":0},{"$f":"Природа!J$49","v":0}]
[null,1111191714,"PR740159","ТЕРМ. 02.26, БИТ. Ласощі Природа ДесертМіксАсорт гриз шар/труб/тарт 70","Менше 10","Ласощі для гризунів",14.46,0,{"$f":"Природа!I$50","v":0},{"$f":"Природа!J$50","v":0}]
[null,1111187127,"PR740063","ТЕРМ. 02.27 БИТ. Мінерал Природа Фієста Максі для гризунів мюслі 18г","Менше 10","Вітаміни та мінерали для гризунів",14.38,0,{"$f":"Природа!I$51","v":0},{"$f":"Природа!J$51","v":0}]
[null,1111187142,"PR740061","ТЕРМ. 03.26 БИТ. Мінерал Природа Фієста Максі для гризунів бурячок 18г","Менше 10","Вітаміни та мінерали для гризунів",16.059999999999999,0,{"$f":"Природа!I$52","v":0},{"$f":"Природа!J$52","v":0}]
[null,1111187129,"PR740063","ТЕРМ. 03.26 БИТ. Мінерал Природа Фієста Максі для гризунів мюслі 18г","Менше 10","Вітаміни та мінерали для гризунів",14.38,0,{"$f":"Природа!I$53","v":0},{"$f":"Природа!J$53","v":0}]
[null,1111187150,"PR740060","ТЕРМ. 03.26 БИТ. Мінерал Природа Фієста Максі для птахів мультиф 124г","Менше 10","Вітаміни та мінерали для птахів",14.38,0,{"$f":"Природа!I$54","v":0},{"$f":"Природа!J$54","v":0}]
[null,1111187144,"PR740061","ТЕРМ. 03.27 БИТ. Мінерал Природа Фієста Максі для гризунів бурячок 18г","Менше 10","Вітаміни та мінерали для гризунів",16.059999999999999,0,{"$f":"Природа!I$55","v":0},{"$f":"Природа!J$55","v":0}]
[null,1111187148,"PR740060","ТЕРМ. 03.27 БИТ.Мінерал Природа Фієста Максі для птахів мультиф 124г","Менше 10","Вітаміни та мінерали для птахів",15.12,0,{"$f":"Природа!I$56","v":0},{"$f":"Природа!J$56","v":0}]
[null,1111187145,"PR740061","ТЕРМ. 04.27 БИТ. Мінерал Природа Фієста Максі для гризунів бурячок 18г","Менше 10","Вітаміни та мінерали для гризунів",16.059999999999999,0,{"$f":"Природа!I$57","v":0},{"$f":"Природа!J$57","v":0}]
[null,1111187131,"PR740063","ТЕРМ. 06.26 БИТ. Мінерал Природа Фієста Максі для гризунів мюслі 18г","Менше 10","Вітаміни та мінерали для гризунів",14.38,0,{"$f":"Природа!I$58","v":0},{"$f":"Природа!J$58","v":0}]
[null,1111187997,"PR740063","ТЕРМ. 06.27, БИТ. Мінерал Природа Фієста Максі гризун/мюслі 124г","Менше 10","Вітаміни та мінерали для гризунів",15.12,0,{"$f":"Природа!I$59","v":0},{"$f":"Природа!J$59","v":0}]
[null,1111187166,"PR740758","ТЕРМ. 07.25, НЕТОВ. ВИГЛ. Ласощі Природа д/папуг чумиза натуральна 25г","Менше 10","Ласощі для птахів",27.67,0,{"$f":"Природа!I$60","v":0},{"$f":"Природа!J$60","v":0}]
[null,1111187134,"PR740063","ТЕРМ. 07.26 БИТ. Мінерал Природа Фієста Максі для гризунів мюслі 18г","Менше 10","Вітаміни та мінерали для гризунів",14.38,0,{"$f":"Природа!I$61","v":0},{"$f":"Природа!J$61","v":0}]
[null,1111187143,"PR740061","ТЕРМ. 07.27 БИТ.Мінерал Природа Фієста Максі для гризунів бурячок 18г","Менше 10","Вітаміни та мінерали для гризунів",16.86,0,{"$f":"Природа!I$62","v":0},{"$f":"Природа!J$62","v":0}]
[null,1111187106,"PR740062","ТЕРМ. 08.26 БИТ. Мінерал Природа Фієста Максі  каротин та трави 124г","Менше 10","Вітаміни та мінерали для гризунів",16.059999999999999,0,{"$f":"Природа!I$63","v":0},{"$f":"Природа!J$63","v":0}]
[null,1111187141,"PR740061","ТЕРМ. 08.26 БИТ. Мінерал Природа Фієста Максі для гризунів бурячок 18г","Менше 10","Вітаміни та мінерали для гризунів",16.059999999999999,0,{"$f":"Природа!I$64","v":0},{"$f":"Природа!J$64","v":0}]
[null,1111187153,"PR740060","ТЕРМ. 08.26 БИТ. Мінерал Природа Фієста Максі для птахів мультиф 124г","Менше 10","Вітаміни та мінерали для птахів",14.38,0,{"$f":"Природа!I$65","v":0},{"$f":"Природа!J$65","v":0}]
[null,1111187140,"PR740061","ТЕРМ. 09.26 БИТ. Мінерал Природа Фієста Максі для гризунів бурячок 18г","Менше 10","Вітаміни та мінерали для гризунів",16.059999999999999,0,{"$f":"Природа!I$66","v":0},{"$f":"Природа!J$66","v":0}]
[null,1111187124,"PR740063","ТЕРМ. 09.26 БИТ. Мінерал Природа Фієста Максі для гризунів мюслі 18г","Менше 10","Вітаміни та мінерали для гризунів",14.38,0,{"$f":"Природа!I$67","v":0},{"$f":"Природа!J$67","v":0}]
[null,1111187152,"PR740060","ТЕРМ. 09.26 БИТ. Мінерал Природа Фієста Максі для птахів мультиф 124г","Менше 10","Вітаміни та мінерали для птахів",15.12,0,{"$f":"Природа!I$68","v":0},{"$f":"Природа!J$68","v":0}]
[null,1111187103,"PR740062","ТЕРМ. 09.26 БИТ. Мінерал Природа Фієста Максі каротин та трави 124г","Менше 10","Вітаміни та мінерали для гризунів",16.059999999999999,0,{"$f":"Природа!I$69","v":0},{"$f":"Природа!J$69","v":0}]
[null,1111187128,"PR740063","ТЕРМ. 10.25 БИТ. Мінерал Природа Фієста Максі для гризунів мюслі 18г","Менше 10","Вітаміни та мінерали для гризунів",14.38,0,{"$f":"Природа!I$70","v":0},{"$f":"Природа!J$70","v":0}]
[null,1111189173,"PR740159","ТЕРМ. 10.25, БИТ Ласощі Природа Десерт мікс Асорті д/гриз.кул/труб/","Менше 10","Ласощі для гризунів",14.46,0,{"$f":"Природа!I$71","v":0},{"$f":"Природа!J$71","v":0}]
[null,1111187105,"PR740062","ТЕРМ. 10.26 БИТ. Мінерал Природа Фієста Максі  каротин та трави 124г","Менше 10","Вітаміни та мінерали для гризунів",16.059999999999999,0,{"$f":"Природа!I$72","v":0},{"$f":"Природа!J$72","v":0}]
[null,1111187151,"PR740060","ТЕРМ. 10.26 БИТ. Мінерал Природа Фієста Максі для птахів мультиф 124г","Менше 10","Вітаміни та мінерали для птахів",15.12,0,{"$f":"Природа!I$73","v":0},{"$f":"Природа!J$73","v":0}]
[null,1111187139,"PR740061","ТЕРМ. 10.26 БИТ.Мінерал Природа Фієста Максі для гризунів бурячок 18г","Менше 10","Вітаміни та мінерали для гризунів",16.059999999999999,0,{"$f":"Природа!I$74","v":0},{"$f":"Природа!J$74","v":0}]
[null,1111187104,"PR740062","ТЕРМ. 11.25 БИТ. Мінерал Природа Фієста Максі  каротин та трави 124г","Менше 10","Вітаміни та мінерали для гризунів",16.059999999999999,0,{"$f":"Природа!I$75","v":0},{"$f":"Природа!J$75","v":0}]
[null,1111187137,"PR740061","ТЕРМ. 11.25 БИТ. Мінерал Природа Фієста Максі для гризунів бурячок 18г","Менше 10","Вітаміни та мінерали для гризунів",16.059999999999999,0,{"$f":"Природа!I$76","v":0},{"$f":"Природа!J$76","v":0}]
[null,1111187138,"PR740061","ТЕРМ. 12.26 БИТ. Мінерал Природа Фієста Максі для гризунів бурячок 18г","Менше 10","Вітаміни та мінерали для гризунів",16.059999999999999,0,{"$f":"Природа!I$77","v":0},{"$f":"Природа!J$77","v":0}]
[null,1111187154,"PR740060","ТЕРМ. 12.26 БИТ. Мінерал Природа Фієста Максі для птахів мультиф 124г","Менше 10","Вітаміни та мінерали для птахів",14.38,0,{"$f":"Природа!I$78","v":0},{"$f":"Природа!J$78","v":0}]
[null,1111187102,"PR740062","ТЕРМ. 12.27 БИТ.Мінерал Природа Фієста Максі каротинта трави 124г","Більше 10","Вітаміни та мінерали для гризунів",16.059999999999999,0,{"$f":"Природа!I$79","v":0},{"$f":"Природа!J$79","v":0}]
[null,1111174669,"PR242772*****","Толстовка ROLLIE XS2","Менше 10","Одяг для собак",497.29,671.34,{"$f":"Природа!I$80","v":0},{"$f":"Природа!J$80","v":0}]
[null,1111182750,"PR243705","Туалет з сіточкою Том сірий","Більше 100","Туалети для котів",60,80,{"$f":"Природа!I$81","v":0},{"$f":"Природа!J$81","v":0}]
[null,1111196646,"PR242205","БИТ. Шампунь Provet ПРОФІЛАЙН для котів глибоке очищення з алое 300мл","Менше 10","Догляд та гігієна для котів",48.54,0,{"$f":"Профілайн!I$8","v":0},{"$f":"Профілайн!J$8","v":0}]
[null,1111192302,"PR242204","ТЕРМ 03.27 БИТ Шамп.Provet Профіл.д/соб. з білою та світ. шерстю 300мл","Менше 10","Догляд та гігієна для собак",48.54,0,{"$f":"Профілайн!I$9","v":0},{"$f":"Профілайн!J$9","v":0}]
[null,1111196979,"PR242201","ТЕРМ 03.27 БИТ Шампунь Provet ПРОФІЛАЙН д/тхорів/гриз.300мл","Менше 10","Догляд та гігієна для тхорів",55.56,0,{"$f":"Профілайн!I$10","v":0},{"$f":"Профілайн!J$10","v":0}]
[null,1111196974,"PR242199","ТЕРМ 03.27 БИТ Шампунь Provet ПРОФІЛАЙН для кошенят з ромашкою 300мл","Менше 10","Догляд та гігієна для котів",55.26,0,{"$f":"Профілайн!I$11","v":0},{"$f":"Профілайн!J$11","v":0}]
[null,1111202733,"PR242206","ТЕРМ 07.27 БИТ ДОЗ Шампунь PROVET Профілайн д/соб.гіпоалергенний 300мл","Менше 10","Догляд та гігієна для собак",48.54,0,{"$f":"Профілайн!I$12","v":0},{"$f":"Профілайн!J$12","v":0}]
[null,1111201386,"PR242205","ТЕРМ 07.27 БИТ Шам.PROVET Профілайн д/кот. глиб. очищення з алое 300мл","Менше 10","Догляд та гігієна для котів",48.54,0,{"$f":"Профілайн!I$13","v":0},{"$f":"Профілайн!J$13","v":0}]
[null,1111204277,"PR242205","ТЕРМ 09.27 БИТ ДОЗ Шамп.PROVET Профілайн глибоке очищення з алое 300мл","Менше 10","Догляд та гігієна для котів",48.54,0,{"$f":"Профілайн!I$14","v":0},{"$f":"Профілайн!J$14","v":0}]
[null,1111192508,"PR242205","ТЕРМ. 03.27 БИТ.ДОЗАТ. Шампунь Provet ПРОФІЛАЙН кот глиб/очищ алое 300","Менше 10","Догляд та гігієна для котів",48.54,0,{"$f":"Профілайн!I$15","v":0},{"$f":"Профілайн!J$15","v":0}]
[null,1111196986,"PR242208","ТЕРМ.03.27 БИТ ШампProvet ПРОФІЛАЙН для собак антибактер. 300мл","Менше 10","Догляд та гігієна для собак",48.54,0,{"$f":"Профілайн!I$16","v":0},{"$f":"Профілайн!J$16","v":0}]
[null,1111196088,"PR242204","ТЕРМ.03.27ПОШК.ПАК Шампунь Provet ПРОФІЛАЙН д/соб з біл/світ шер300мл","Менше 10","Догляд та гігієна для собак",48.54,0,{"$f":"Профілайн!I$17","v":0},{"$f":"Профілайн!J$17","v":0}]
[null,1111193878,"PR241914_1уп.(2табл.)","ТЕРМ 05.25 Таб. Provet МОКСІСТОП МІДІ д/соб. 4/10кг антиг. 2штх120мг","Більше 100","Антипаразитарні препарати для собак",59.76,0,{"$f":"Стоп!I$8","v":0},{"$f":"Стоп!J$8","v":0}]